{"text_format":"1","workbook":"xlsx","n_sheets":25,"sheets":["留意事項","PDF出力","測量・建設コンサルタント等申請書類","測量等実績調書_1","測量等実績調書_template","技術者経歴書_1","技術者経歴書_template","営業所一覧表","競争参加資格希望業種に応じた希望地域","調査票","業態調書","区分一覧","申請書様式1-1","申請書様式1-2","申請書様式1-3","申請書様式2","申請書様式2_template","申請書様式3","申請書様式3_template","申請書様式4","申請書様式5","申請書様式6","申請書様式7","申請書様式8","QRコード"],"not_rendered":{"charts":0,"images":21,"macros":1,"external_links":0,"defined_names":211,"comments":0,"pivot_tables":0},"unopened":[],"bounds":{"document_bytes":16777216,"sheet_cells":100000,"rows_first":2000,"rows_last":500,"rows_between":2000,"halvings":0,"cell_chars":16384,"cell_head_chars":4096},"cells_cut":0,"cells_raw":0,"read":"whole","date_system":"1900"}

{"sheet":"留意事項","index":0,"n_rows":125,"n_cols":4,"rows_kept":125,"cut":false,"hidden":false,"merged":[]}
[]
[null,"留意事項"]
[]
[null,"1.","本入力フォームではExcelのマクロ機能を使用して、申請書の作成を行っているため、Excelのマクロ機能を有効化してください。"]
[null,null,"ファイルを開いた際に以下のようなセキュリティの警告が表示される場合は、「コンテンツの有効化」をクリックして、マクロを有効としてください。"]
[]
[]
[null,null,"セキュリティの警告が表示されず、マクロも無効となっている場合は以下の方法でマクロを有効にしてください。"]
[]
[null,null,"マクロの有効化方法）"]
[null,null,null,"①ファイル＞オプションをクリックしてオプション画面を表示する。"]
[]
[]
[]
[]
[]
[]
[]
[]
[]
[]
[]
[]
[]
[]
[]
[]
[]
[]
[]
[null,null,null,"②トラストセンターのタブを表示して、トラストセンターの設定をクリックする。"]
[]
[]
[]
[]
[]
[]
[]
[]
[]
[]
[]
[]
[]
[]
[]
[]
[]
[]
[]
[null,null,null,"③マクロの設定タブから「警告して、VBAマクロを無効にする」に設定する。"]
[]
[]
[]
[]
[]
[]
[]
[]
[]
[]
[]
[]
[]
[]
[]
[]
[]
[]
[]
[null,null,null,"④再度ファイルを開きなおすと、セキュリティの警告が表示されるので、「コンテンツの有効化」をクリックしてマクロを有効にする。"]
[]
[]
[null,"2.","Microsoftのセキュリティでソースが信頼できないためマクロの実行がブロックされる場合は、ファイルのアクセスを許可してください。"]
[null,null,"ファイルを開いた際に次のようなセキュリティの警告が表示される場合は、以下の方法でファイルのブロックを解除してください。"]
[]
[]
[null,null,"ファイルのブロック解除方法）"]
[null,null,null,"①申請書入力フォームのエクセルファイルを閉じる。"]
[]
[null,null,null,"②エクスプローラー上でファイルを選択して、右クリックメニューからプロパティをクリックする。"]
[]
[null,null,null,"③セキュリティの「許可する」にチェックを入れた状態で、OKをクリックしてプロパティを閉じる。"]
[]
[]
[]
[]
[]
[]
[]
[]
[]
[]
[]
[]
[]
[]
[]
[]
[]
[]
[]
[]
[null,null,null,"④申請書入力フォームのエクセルファイルを開く。"]
[]
[]
[null,"3.","測量・建設コンサルタント等申請書類入力フォームでは入力する値に以下の制限があります。"]
[]
[null,null,"・記号「|」は使用することができないため、「|」を入力する場合は他の文字に置き換えてください。"]
[]
[null,null,"上記の制限や各項目固有の制限（全角のみの入力項目等）に当てはまらない場合には、メッセージが表示され対象項目の背景色がオレンジ色になります。"]
[null,null,"メッセージが表示された際には、メッセージの内容と入力内容を確認し、修正をお願いいたします。"]
[]
[null,null,"例）","メッセージ表示"]
[]
[]
[]
[]
[]
[]
[]
[]
[]
[]
[null,null,"例）","背景色の変化"]

{"sheet":"PDF出力","index":1,"n_rows":11,"n_cols":5,"rows_kept":11,"cut":false,"hidden":false,"merged":[]}
[]
[null,null,null,null,"以下の各シートへの入力内容をもとにして、測量・建設コンサルタント用申請書類の印刷を行います。"]
[null,null,null,null,"合わせて、各シートへの入力内容をQRコードに変換し、「QRコード」を印刷します。"]
[null,null,null,null,"入力シートは以下の通りです。"]
[null,null,null,null,"・測量・建設コンサルタント等申請書類"]
[null,null,null,null,"・測量等実績調書"]
[null,null,null,null,"・技術者経歴書"]
[null,null,null,null,"・営業所一覧表"]
[null,null,null,null,"・競争参加資格希望業種に応じた希望地域"]
[null,null,null,null,"・調査票"]
[null,null,null,null,"・業態調書"]

{"sheet":"測量・建設コンサルタント等申請書類","index":2,"n_rows":103,"n_cols":31,"rows_kept":103,"cut":false,"hidden":false,"merged":[[60,32,62,32],[53,24,54,24],[53,25,54,25],[60,31,62,31],[59,23,59,30],[39,2,39,3],[39,4,39,5],[40,2,40,3],[40,4,40,5],[41,2,41,3],[41,4,41,5],[55,9,55,11],[55,13,55,15],[55,17,55,19],[49,2,49,7],[50,2,50,7],[57,2,57,4],[57,5,57,7],[57,9,57,11],[58,2,58,4],[58,5,58,7],[58,9,58,11],[56,2,56,4],[56,5,56,7],[32,2,32,12],[11,2,11,12],[7,2,7,7],[8,2,8,7],[9,2,9,7],[13,1,14,1],[22,3,22,6],[15,2,15,12],[16,2,16,12],[17,2,17,12],[18,2,18,12],[19,2,19,12],[20,2,20,12],[21,8,21,12],[22,8,22,12],[25,2,25,12],[14,3,14,8],[13,2,13,3],[56,9,56,11],[51,2,51,7],[48,2,48,7],[57,17,57,19],[3,2,3,7],[4,2,4,7],[5,2,5,7],[6,2,6,7],[12,2,12,3],[21,3,21,6],[23,2,23,12],[24,2,24,12],[33,2,33,3],[33,4,33,6],[33,7,33,12],[26,2,26,12],[27,3,27,6],[27,8,27,12],[29,2,29,12],[30,2,30,12],[28,3,28,6],[28,8,28,12],[35,4,35,5],[31,2,31,12],[46,1,47,1],[48,1,51,1],[34,2,34,3],[34,4,34,5],[35,2,35,3],[38,4,38,5],[52,13,52,20],[42,2,42,3],[42,4,42,5],[43,2,43,3],[43,4,43,5],[44,2,44,3],[44,4,44,5],[33,1,45,1],[46,2,46,7],[55,21,55,22],[58,21,58,22],[56,17,56,19],[56,21,56,22],[61,22,62,22],[61,15,62,15],[61,16,62,16],[61,17,62,17],[61,18,62,18],[61,19,62,19],[61,20,62,20],[57,21,57,22],[58,17,58,19],[56,13,56,15],[57,13,57,15],[58,13,58,15],[61,29,62,29],[61,30,62,30],[61,24,62,24],[61,25,62,25],[61,26,62,26],[96,4,96,5],[97,2,97,3],[97,4,97,5],[98,2,98,3],[98,4,98,5],[61,10,62,10],[61,11,62,11],[61,12,62,12],[61,27,62,27],[61,28,62,28],[61,13,62,13],[61,14,62,14],[61,23,62,23],[65,2,65,4],[69,2,69,4],[66,5,66,6],[70,5,70,6],[67,2,67,4],[71,2,71,4],[61,9,62,9],[99,2,99,3],[88,5,88,6],[89,1,93,1],[89,2,89,3],[90,2,91,3],[92,2,92,3],[93,2,93,3],[93,4,93,5],[82,1,88,1],[82,2,82,3],[82,5,82,7],[96,2,96,3],[0,0,0,5],[77,5,77,6],[79,1,81,1],[69,5,69,6],[55,2,55,4],[55,5,55,7],[45,2,45,3],[45,4,45,5],[52,1,58,1],[52,2,54,4],[52,5,52,12],[36,2,36,3],[36,4,36,5],[37,2,37,3],[37,4,37,5],[38,2,38,3],[61,2,62,2],[61,3,62,3],[61,4,62,4],[61,5,62,5],[61,6,62,6],[61,7,62,7],[61,8,62,8],[71,5,71,6],[100,2,100,3],[101,2,101,3],[102,2,102,3],[81,5,81,6],[73,2,73,4],[73,5,73,6],[74,1,77,1],[74,2,74,4],[74,5,74,6],[75,2,75,4],[75,5,75,6],[76,2,76,4],[76,5,76,6],[77,2,77,4],[84,5,84,6],[85,2,88,3],[85,5,85,7],[86,5,86,6],[87,5,87,7],[99,4,99,5],[95,1,99,1],[95,2,95,3],[95,4,95,5],[52,21,54,23],[59,1,62,1],[59,2,59,22],[83,2,84,3],[83,5,83,7],[78,2,78,4],[78,5,78,6],[65,5,65,6],[68,2,68,4],[68,5,68,6],[70,2,70,4],[72,2,72,4],[72,5,72,6],[64,5,64,7],[67,5,67,6],[66,2,66,4],[64,1,72,1],[64,2,64,4],[79,2,79,4],[79,5,79,6],[80,2,80,4],[80,5,80,6],[81,2,81,4],[61,21,62,21]]}
["測量・建設コンサルタント等申請書類"]
["ア 代理人による申請の有無"]
[null,"申請代理人","※代理申請時のみ記入"]
[null,"郵便番号"]
[null,"住所"]
[null,"氏名"]
[null,"電話番号"]
[null,"委任状"]
[null,"登録番号"]
[null,"業種"]
["イ 申請者（本店）の情報"]
[null,"新規又は更新"]
[null,"申請年月日","令和",null,null,"年",null,"月",null,"日"]
[null,"適格組合証明",null,null,null,"年",null,"月",null,"日"]
[null,null,"第",null,null,null,null,null,null,"号"]
[null,"法人番号"]
[null,"郵便番号"]
[null,"本社（店）住所フリガナ"]
[null,"本社（店）住所"]
[null,"商号又は名称フリガナ"]
[null,"商号又は名称"]
[null,"代表者氏名フリガナ（姓・名）","姓",null,null,null,null,"名"]
[null,"代表者氏名（姓・名）","姓",null,null,null,null,"名"]
[null,"役職"]
[null,"本社（店）電話番号"]
[null,"本社（店）FAX番号"]
[null,"メールアドレス"]
[null,"担当者氏名フリガナ（姓・名）","姓",null,null,null,null,"名"]
[null,"担当者氏名（姓・名）","姓",null,null,null,null,"名"]
[null,"担当者電話番号"]
[null,"担当者内線番号"]
[null,"メール配信サービス希望有無"]
[null,"配信先メールアドレス"]
[null,"登録を受けている事業","登録事業名",null,"登録番号",null,null,"登録年月日"]
[null,null,"測量業者",null,null,null,"号",null,"年",null,"月",null,"日"]
[null,null,"地質調査業者",null,null,null,"号",null,"年",null,"月",null,"日"]
[null,null,"土地家屋調査士",null,null,null,"号",null,"年",null,"月",null,"日"]
[null,null,"建築士事務所",null,null,null,"号",null,"年",null,"月",null,"日"]
[null,null,"補償コンサルタント",null,null,null,"号",null,"年",null,"月",null,"日"]
[null,null,"司法書士",null,null,null,"号",null,"年",null,"月",null,"日"]
[null,null,"建設コンサルタント",null,null,null,"号",null,"年",null,"月",null,"日"]
[null,null,"不動産鑑定業者",null,null,null,"号",null,"年",null,"月",null,"日"]
[null,null,"計量証明業者",null,null,null,"号",null,"年",null,"月",null,"日"]
[null,null,null,null,null,null,"号",null,"年",null,"月",null,"日"]
[null,null,null,null,null,null,"号",null,"年",null,"月",null,"日"]
[null,null,null,null,null,null,"号",null,"年",null,"月",null,"日"]
[null,"設立年月日"]
[null,null,null,"年",null,"月",null,"日"]
[null,"みなし大企業","\n"]
[null,null,"・発行済株式の総数又は出資金額の総額の2分の1以上を同一の大企業が所有している中小企業"]
[null,null,"・発行済株式の総数又は出資金額の総額の3分の2以上を大企業が所有している中小企業"]
[null,null,"・大企業の役員又は職員を兼ねている者が、役員総数の2分の1以上を占めている中小企業"]
[null,"測量等実績高","競争参加資格希望業種区分",null,null,"直前2年度分決算",null,null,null,null,null,null,null,"直前1年度分決算",null,null,null,null,null,null,null,"直前2か年間の\n年間平均実績高"]
[null,null,null,null,null,null,"年",null,"月から",null,"年",null,"月から",null,"年",null,"月から",null,"年",null,"月から"]
[null,null,null,null,null,null,"年",null,"月まで",null,"年",null,"月まで",null,"年",null,"月まで",null,"年",null,"月まで"]
[null,null,"測量",null,null,null,null,null,"千円",null,null,null,"千円",null,null,null,"千円",null,null,null,"千円",null,null,"千円"]
[null,null,"建築関係建設コンサルタント",null,null,null,null,null,"千円",null,null,null,"千円",null,null,null,"千円",null,null,null,"千円",null,null,"千円"]
[null,null,"地質調査業務",null,null,null,null,null,"千円",null,null,null,"千円",null,null,null,"千円",null,null,null,"千円",null,null,"千円"]
[null,null,"合計",null,null,{"$f":"SUM(F56:H58)","v":0},null,null,"千円",{"$f":"SUM(J56:L58)","v":0},null,null,"千円",{"$f":"SUM(N56:P58)","v":0},null,null,"千円",{"$f":"SUM(R56:T58)","v":0},null,null,"千円",{"$f":"SUM(V56:W58)","v":0},null,"千円"]
[null,"建設コンサルタント及び補償コンサルタント登録業者の登録部門","建設コンサルタント業務",null,null,null,null,null,null,null,null,null,null,null,null,null,null,null,null,null,null,null,null,"補償コンサルタント業務"]
[null,null,1,2,3,4,5,6,7,8,9,10,11,12,13,14,15,16,17,18,19,20,21,22,23,24,25,26,27,28,29]
[null,null,"河川、砂防及び海岸・海洋","港湾及び空港","電力土木","道路","鉄道","上水道及び工業用水道","下水道","農業土木","森林土木","水産土木","廃棄物","造園","都市計画及び地方計画","地質","土質及び\n基礎","鋼構造物及びｺﾝｸﾘーﾄ","トンネル","施工計画、施工設備及び積算","建設環境","機械","電気電子","土地調査","土地評価","物件","機械工作物","営業補償・特殊補償","事業損失","補償関連","総合補償"]
[]
["ウ 申請者（本店）の経営状況の情報"]
[null,"自己資本額","区分",null,null,"直前決算時"]
[null,null,"（株主資本のうち外国資本）",null,null,null,null,"千円"]
[null,null,"（株主資本のうち資本金）",null,null,null,null,"千円"]
[null,null,"株主資本",null,null,null,null,"千円"]
[null,null,"評価・換算差額等",null,null,null,null,"千円"]
[null,null,"新株予約権",null,null,null,null,"千円"]
[null,null,"株式引受権",null,null,null,null,"千円"]
[null,null,"個人",null,null,null,null,"千円"]
[null,null,"計",null,null,{"$f":"自己資本額株主資本+自己資本額差額等+自己資本額予約権+自己資本額株式引受権+自己資本額個人","v":0},null,"千円"]
[null,"損益計算書","税引前当期利益",null,null,null,null,"千円"]
[null,"貸借対照表","流動資産",null,null,null,null,"千円"]
[null,null,"流動負債",null,null,null,null,"千円"]
[null,null,"固定資産",null,null,null,null,"千円"]
[null,null,"総資本額",null,null,null,null,"千円"]
[null,"資本金額","資本金額",null,null,null,null,"千円"]
[null,"経営比率","総資本純利益率　(S/R×100)",null,null,{"$f":"IF(OR(貸借対照表総資本額=0 ),0, ROUND(損益計算書/貸借対照表総資本額*100, 1))","v":0},null,"％"]
[null,null,"流動比率　　　　(m/n×100)",null,null,{"$f":"IF(OR(貸借対照表流動負債=0),0,ROUND(貸借対照表流動資産/貸借対照表流動負債*100,1))","v":0},null,"％"]
[null,null,"自己資本固定比率(P/Q×100)",null,null,{"$f":"IF(OR(貸借対照表固定資産=0),0,ROUND(自己資本額合計/貸借対照表固定資産*100,1))","v":0},null,"％"]
[null,"外資状況","外国籍会社",null,"国名"]
[null,null,"日本国籍会社",null,"国名"]
[null,null,null,null,"外資比率",100,null,"％"]
[null,null,"日本国籍会社",null,"国名"]
[null,null,null,null,"外資比率",null,null,"％"]
[null,null,null,null,"国名"]
[null,null,null,null,"外資比率",null,null,"％"]
[null,"営業年数等","創業",null,null,"年",null,"月",null,"日"]
[null,null,"休業期間又は\n転（廃）業の期間",null,null,"年",null,"月",null,"日から"]
[null,null,null,null,null,"年",null,"月",null,"日まで"]
[null,null,"現組織への変更",null,null,"年",null,"月",null,"日"]
[null,null,"営業年数",null,null,null,"年"]
["エ 職員数等の情報"]
[null,"常勤職員の数","①技術職員",null,null,null,"人"]
[null,null,"②事務職員",null,null,null,"人"]
[null,null,"③その他の職員",null,null,null,"人"]
[null,null,"④計",null,{"$f":"SUM(E96:F98)","v":0},null,"人"]
[null,null,"⑤役員等　※④の内数",null,null,null,"人"]
[null,"測量士",null,null,"人"]
[null,"測量士補",null,null,"人"]
[null,"地質調査",null,null,"人"]

{"sheet":"測量等実績調書_1","index":3,"n_rows":29,"n_cols":15,"rows_kept":29,"cut":false,"hidden":false,"merged":[[7,7,8,10],[7,11,8,14],[7,1,8,1],[7,2,8,2],[7,3,8,3],[7,4,8,4],[7,5,8,5],[7,6,8,6]]}
[null,null,null,null,null,null,null,null,"年",null,"月",null,"年",null,"月"]
["オ 測量等実績調書"]
[]
[null,"（登録業種区分）"]
[]
[]
[]
[null,"注文者","元請又は下請の別","件名","測 量 等 対 象 の 規 模 等","業務履行場所のある都道府県名","請負代金の額（千円）","着   工   年   月",null,null,null,"完成（予定）年月"]
[]
[null,null,null,null,null,null,null,null,"年",null,"月",null,"年",null,"月"]
[null,null,null,null,null,null,null,null,"年",null,"月",null,"年",null,"月"]
[null,null,null,null,null,null,null,null,"年",null,"月",null,"年",null,"月"]
[null,null,null,null,null,null,null,null,"年",null,"月",null,"年",null,"月"]
[null,null,null,null,null,null,null,null,"年",null,"月",null,"年",null,"月"]
[null,null,null,null,null,null,null,null,"年",null,"月",null,"年",null,"月"]
[null,null,null,null,null,null,null,null,"年",null,"月",null,"年",null,"月"]
[null,null,null,null,null,null,null,null,"年",null,"月",null,"年",null,"月"]
[null,null,null,null,null,null,null,null,"年",null,"月",null,"年",null,"月"]
[null,null,null,null,null,null,null,null,"年",null,"月",null,"年",null,"月"]
[null,null,null,null,null,null,null,null,"年",null,"月",null,"年",null,"月"]
[null,null,null,null,null,null,null,null,"年",null,"月",null,"年",null,"月"]
[null,null,null,null,null,null,null,null,"年",null,"月",null,"年",null,"月"]
[]
[null,"記載要領"]
[null,"１本表は、登録を受けた業種の各別又はその他の営業の種類の各別に作成すること。"]
[null,"２本表は、直前２年間の主な完成業務及び直前２年間に着手した主な未完成業務について記載すること。"]
[null,"３下請については、「注文者」の欄には元請業者名を記載し、「件名」の欄には下請件を記載すること。"]
[null,"４「測量等対象の規模等」は、例えば測量の面積・精度等、設計の階数・構造・延べ面積等を記載すること。"]
[null,"５「請負代金の額」は、消費税込みの金額を記載すること。"]

{"sheet":"測量等実績調書_template","index":4,"n_rows":29,"n_cols":15,"rows_kept":29,"cut":false,"hidden":true,"merged":[[7,7,8,10],[7,11,8,14],[7,1,8,1],[7,2,8,2],[7,3,8,3],[7,4,8,4],[7,5,8,5],[7,6,8,6]]}
[null,null,null,null,null,null,null,null,"年",null,"月",null,"年",null,"月"]
["オ 測量等実績調書"]
[]
[null,"（登録業種区分）"]
[]
[]
[]
[null,"注文者","元請又は下請の別","件名","測 量 等 対 象 の 規 模 等","業務履行場所のある都道府県名","請負代金の額（千円）","着   工   年   月",null,null,null,"完成（予定）年月"]
[]
[null,null,null,null,null,null,null,null,"年",null,"月",null,"年",null,"月"]
[null,null,null,null,null,null,null,null,"年",null,"月",null,"年",null,"月"]
[null,null,null,null,null,null,null,null,"年",null,"月",null,"年",null,"月"]
[null,null,null,null,null,null,null,null,"年",null,"月",null,"年",null,"月"]
[null,null,null,null,null,null,null,null,"年",null,"月",null,"年",null,"月"]
[null,null,null,null,null,null,null,null,"年",null,"月",null,"年",null,"月"]
[null,null,null,null,null,null,null,null,"年",null,"月",null,"年",null,"月"]
[null,null,null,null,null,null,null,null,"年",null,"月",null,"年",null,"月"]
[null,null,null,null,null,null,null,null,"年",null,"月",null,"年",null,"月"]
[null,null,null,null,null,null,null,null,"年",null,"月",null,"年",null,"月"]
[null,null,null,null,null,null,null,null,"年",null,"月",null,"年",null,"月"]
[null,null,null,null,null,null,null,null,"年",null,"月",null,"年",null,"月"]
[null,null,null,null,null,null,null,null,"年",null,"月",null,"年",null,"月"]
[]
[null,"記載要領"]
[null,"１本表は、登録を受けた業種の各別又はその他の営業の種類の各別に作成すること。"]
[null,"２本表は、直前２年間の主な完成業務及び直前２年間に着手した主な未完成業務について記載すること。"]
[null,"３下請については、「注文者」の欄には元請業者名を記載し、「件名」の欄には下請件を記載すること。"]
[null,"４「測量等対象の規模等」は、例えば測量の面積・精度等、設計の階数・構造・延べ面積等を記載すること。"]
[null,"５「請負代金の額」は、消費税込みの金額を記載すること。"]

{"sheet":"技術者経歴書_1","index":5,"n_rows":31,"n_cols":9,"rows_kept":31,"cut":false,"hidden":false,"merged":[[7,1,8,1],[7,2,7,3],[7,4,8,4],[7,5,8,8]]}
[null,null,null,null,null,null,"年",null,"月"]
["カ 技術者経歴書"]
[]
[null,"（種類）"]
[]
[]
[]
[null,"氏名","法令による免許等",null,"実務経歴","実務経験月年数"]
[null,null,"名称","取得年月日"]
[null,null,null,null,null,null,"年",null,"月"]
[null,null,null,null,null,null,"年",null,"月"]
[null,null,null,null,null,null,"年",null,"月"]
[null,null,null,null,null,null,"年",null,"月"]
[null,null,null,null,null,null,"年",null,"月"]
[null,null,null,null,null,null,"年",null,"月"]
[null,null,null,null,null,null,"年",null,"月"]
[null,null,null,null,null,null,"年",null,"月"]
[null,null,null,null,null,null,"年",null,"月"]
[null,null,null,null,null,null,"年",null,"月"]
[null,null,null,null,null,null,"年",null,"月"]
[null,null,null,null,null,null,"年",null,"月"]
[null,null,null,null,null,null,"年",null,"月"]
[null,null,null,null,null,null,"年",null,"月"]
[null,null,null,null,null,null,"年",null,"月"]
[]
[null,"記載要領"]
[null,"１本表は、土木、建築若しくは設備又は職種の各別に作成すること。"]
[null,"  また、「氏名」の記載は、営業所（本店又は支店若しくは常時契約する事務所）ごとにまとめて行い、その直前に、（   ）書きで当該営業所名を記載すること。"]
[null,"２「法令による免許等」の欄には、業務に関し法律又は命令による免許又は技術若しくは技能の認定を受けたものを記載すること。"]
[null,"   (例 ： ○○建築士、○○土木施工管理技士）"]
[null,"３「実務経歴」の欄には、最近のものから記載し、純粋に測量、建設コンサルタント等業務に従事した職種及び地位を記載すること。"]

{"sheet":"技術者経歴書_template","index":6,"n_rows":31,"n_cols":9,"rows_kept":31,"cut":false,"hidden":true,"merged":[[7,1,8,1],[7,2,7,3],[7,4,8,4],[7,5,8,8]]}
[null,null,null,null,null,null,"年",null,"月"]
["カ 技術者経歴書"]
[]
[null,"（種類）"]
[]
[]
[]
[null,"氏名","法令による免許等",null,"実務経歴","実務経験月年数"]
[null,null,"名称","取得年月日"]
[null,null,null,null,null,null,"年",null,"月"]
[null,null,null,null,null,null,"年",null,"月"]
[null,null,null,null,null,null,"年",null,"月"]
[null,null,null,null,null,null,"年",null,"月"]
[null,null,null,null,null,null,"年",null,"月"]
[null,null,null,null,null,null,"年",null,"月"]
[null,null,null,null,null,null,"年",null,"月"]
[null,null,null,null,null,null,"年",null,"月"]
[null,null,null,null,null,null,"年",null,"月"]
[null,null,null,null,null,null,"年",null,"月"]
[null,null,null,null,null,null,"年",null,"月"]
[null,null,null,null,null,null,"年",null,"月"]
[null,null,null,null,null,null,"年",null,"月"]
[null,null,null,null,null,null,"年",null,"月"]
[null,null,null,null,null,null,"年",null,"月"]
[]
[null,"記載要領"]
[null,"１本表は、土木、建築若しくは設備又は職種の各別に作成すること。"]
[null,"  また、「氏名」の記載は、営業所（本店又は支店若しくは常時契約する事務所）ごとにまとめて行い、その直前に、（   ）書きで当該営業所名を記載すること。"]
[null,"２「法令による免許等」の欄には、業務に関し法律又は命令による免許又は技術若しくは技能の認定を受けたものを記載すること。"]
[null,"   (例 ： ○○建築士、○○土木施工管理技士）"]
[null,"３「実務経歴」の欄には、最近のものから記載し、純粋に測量、建設コンサルタント等業務に従事した職種及び地位を記載すること。"]

{"sheet":"営業所一覧表","index":7,"n_rows":27,"n_cols":7,"rows_kept":27,"cut":false,"hidden":false,"merged":[[20,11,20,12],[20,13,20,14],[5,4,6,4],[5,5,6,5],[5,1,6,1],[5,2,6,2],[5,3,6,3],[20,2,20,5],[20,7,20,10],[5,6,6,6]]}
[null,13]
["キ 営業所一覧の情報"]
[]
[]
[]
[null,"番号","営業所名称","郵便番号","所在地","電話番号","FAX番号"]
[]
[null,{"$f":"ROW()-7","v":1}]
[null,{"$f":"ROW()-7","v":2}]
[null,3]
[null,4]
[null,5]
[null,6]
[null,7]
[null,8]
[null,9]
[null,10]
[null,11]
[null,12]
[null,13]
[]
[null,"記載要領"]
[null,"１本表は、申請日現在で作成すること。"]
[null,"２「営業所名称」欄には、常時契約を締結する本店又は支店等営業所の名称を記載すること。"]
[null,"３「所在地」欄には、営業所の所在地を上段から左詰めで記載すること。"]
[null,"４「電話番号・ＦＡＸ番号」欄、市外局番、市内局番及び番号は、「-（ハイフン）」で区切ること。"]
[null,"　なお、FAX番号を有していない場合は、空欄とすること。"]

{"sheet":"競争参加資格希望業種に応じた希望地域","index":8,"n_rows":14,"n_cols":50,"rows_kept":14,"cut":false,"hidden":false,"merged":[[13,2,13,7],[2,1,4,2],[2,3,2,49],[5,1,5,2],[6,1,6,2],[7,1,7,2],[9,3,9,8],[10,3,10,8],[11,3,11,4]]}
["ク 競争参加資格希望業種に応じた希望地域"]
[]
[null,"参加希望業種",null,"本 社 ・ 支 店 ・ 営 業 所 又 は 出 張 所 の 所 在 都 道 府 県 別 希 望 地 域"]
[null,null,null,1,2,3,4,5,6,7,8,9,10,11,12,13,14,15,16,17,18,19,20,21,22,23,24,25,26,27,28,29,30,31,32,33,34,35,36,37,38,39,40,41,42,43,44,45,46,47]
[null,null,null,"北海道","青森","岩手","宮城","秋田","山形","福島","茨城","栃木","群馬","埼玉","千葉","東京","神奈川","新潟","富山","石川","福井","山梨","長野","岐阜","静岡","愛知","三重","滋賀","京都","大阪","兵庫","奈良","和歌山","鳥取","島根","岡山","広島","山口","徳島","香川","愛媛","高知","福岡","佐賀","長崎","熊本","大分","宮崎","鹿児島","沖縄"]
[null,"測量"]
[null,"建築関係建設コンサルタント"]
[null,"地質調査業務"]
[]
[null,null,null,"　A　……　本社・支店・営業所等があり、業務を希望する都道府県"]
[null,null,null,"　B　……　本社・支店・営業所等がないが、業務を希望する都道府県"]
[null,null,null,"空欄 ……　希望しない"]
[]
[null,"会社名",{"$f":"IF(名称=0,\"\",名称)","v":""}]

{"sheet":"調査票","index":9,"n_rows":42,"n_cols":18,"rows_kept":42,"cut":false,"hidden":false,"merged":[[38,12,38,13],[38,15,38,16],[41,1,41,2],[12,6,12,7],[12,8,12,9],[37,6,37,7],[37,9,37,10],[38,6,38,7],[38,9,38,10],[28,15,28,16],[29,15,29,16],[11,1,13,1],[25,12,25,13],[26,12,26,13],[27,12,27,13],[32,6,32,7],[33,6,33,7],[30,9,30,10],[31,9,31,10],[32,9,32,10],[33,9,33,10],[30,6,30,7],[31,6,31,7],[28,12,28,13],[29,12,29,13],[25,6,25,7],[26,6,26,7],[27,6,27,7],[28,6,28,7],[29,6,29,7],[30,15,30,16],[31,15,31,16],[33,15,33,16],[24,6,24,8],[24,9,24,11],[24,12,24,14],[24,15,24,17],[32,15,32,16],[25,9,25,10],[26,9,26,10],[27,9,27,10],[28,9,28,10],[29,9,29,10],[25,15,25,16],[26,15,26,16],[27,15,27,16],[34,15,34,16],[35,15,35,16],[36,15,36,16],[0,6,0,7],[0,9,0,10],[0,12,0,13],[0,15,0,16],[23,6,23,17],[22,6,22,17],[3,2,3,7],[4,2,4,7],[11,2,11,10],[22,2,24,2],[22,3,24,5],[12,2,12,3],[12,4,12,5],[35,6,35,7],[36,6,36,7],[35,12,35,13],[36,12,36,13],[34,9,34,10],[35,9,35,10],[36,9,36,10],[34,12,34,13],[26,1,40,1],[40,6,40,7],[40,9,40,10],[40,12,40,13],[40,15,40,16],[39,6,39,7],[39,9,39,10],[39,12,39,13],[39,15,39,16],[31,12,31,13],[30,12,30,13],[32,12,32,13],[33,12,33,13],[37,12,37,13],[37,15,37,16],[34,6,34,7]]}
[null,null,null,"計",null,"名",null,null,"名",null,null,"名",null,null,"名",null,null,"名"]
["ケ 調査票"]
[]
[null,"会社名"]
[null,"登録番号",null,null,null,null,null,null,"※付与されている場合のみ記入してください。"]
[]
[null,"　次の事項について、必要事項を記入してください。"]
[]
[null,"①　貴社が希望する業務区分に○印を記入してください。ただし、希望する業務区分のうち、他事務所の協力を得る場合は△印を記入してください（希望しない場合は×印を記入し、空欄としないでください。）。"]
[null,"　　なお、希望する場合には、業態調書についても記入してください。"]
[]
[null,"業務区分","建築"]
[null,null,"意匠",null,"構造",null,"設備",null,"耐震",null,"工事監理"]
[null,null,"設計","積算","設計","積算","設計","積算","診断","補強設計"]
[null,"○△×印"]
[]
[]
[null,"②　本店、支店、営業所及び出張所について、その所在地（都道府県名のみ）及びそこに所属する技術者の人数を記入してください。複数ある場合はその全て（日本国内のみ）について記入してください。"]
[null,"　　なお、記載する技術者は自社の常勤職員のみとし、非常勤職員、友好・協力関係にある別企業の職員等は記載しないでください。"]
[]
[]
[]
[null,null,"所在都道府県","技術者の人数",null,null,"※構造設計一級建築士、設備設計一級建築士、一級建築士、二級建築士の人数の合計を記入してください。"]
[null,null,null,null,null,null,"内訳"]
[null,null,null,null,null,null,"構造設計\n一級建築士",null,null,"設備設計\n一級建築士",null,null,"一級建築士",null,null,"二級建築士"]
[null,"本店",null,"計",null,"名",null,null,"名",null,null,"名",null,null,"名",null,null,"名"]
[null,"支店・営業所・出張所",null,"計",null,"名",null,null,"名",null,null,"名",null,null,"名",null,null,"名"]
[null,null,null,"計",null,"名",null,null,"名",null,null,"名",null,null,"名",null,null,"名"]
[null,null,null,"計",null,"名",null,null,"名",null,null,"名",null,null,"名",null,null,"名"]
[null,null,null,"計",null,"名",null,null,"名",null,null,"名",null,null,"名",null,null,"名"]
[null,null,null,"計",null,"名",null,null,"名",null,null,"名",null,null,"名",null,null,"名"]
[null,null,null,"計",null,"名",null,null,"名",null,null,"名",null,null,"名",null,null,"名"]
[null,null,null,"計",null,"名",null,null,"名",null,null,"名",null,null,"名",null,null,"名"]
[null,null,null,"計",null,"名",null,null,"名",null,null,"名",null,null,"名",null,null,"名"]
[null,null,null,"計",null,"名",null,null,"名",null,null,"名",null,null,"名",null,null,"名"]
[null,null,null,"計",null,"名",null,null,"名",null,null,"名",null,null,"名",null,null,"名"]
[null,null,null,"計",null,"名",null,null,"名",null,null,"名",null,null,"名",null,null,"名"]
[null,null,null,"計",null,"名",null,null,"名",null,null,"名",null,null,"名",null,null,"名"]
[null,null,null,"計",null,"名",null,null,"名",null,null,"名",null,null,"名",null,null,"名"]
[null,null,null,"計",null,"名",null,null,"名",null,null,"名",null,null,"名",null,null,"名"]
[null,null,null,"計",null,"名",null,null,"名",null,null,"名",null,null,"名",null,null,"名"]
[null,"合計",null,"合計",{"$f":"SUM(E26:OFFSET(E42,-1,0))","v":0},"名","合計",{"$f":"SUM(G26:OFFSET(H42,-1,0))","v":0},"名","合計",{"$f":"SUM(J26:OFFSET(K42,-1,0))","v":0},"名","合計",{"$f":"SUM(M26:OFFSET(N42,-1,0))","v":0},"名","合計",{"$f":"SUM(P26:OFFSET(Q42,-1,0))","v":0},"名"]

{"sheet":"業態調書","index":10,"n_rows":21,"n_cols":51,"rows_kept":21,"cut":false,"hidden":false,"merged":[[5,4,5,50],[16,2,16,3],[2,2,2,7],[3,2,3,7],[8,1,16,1],[8,2,9,2],[10,2,11,2],[12,2,13,2],[14,2,15,2],[5,1,7,3]]}
["コ 業態調書（アンケート用）"]
[]
[null,"会社名"]
[null,"登録番号"]
[]
[null,"参加希望業種",null,null,"本 社 ・ 支 店 ・ 営 業 所 又 は 出 張 所 の 所 在 都 道 府 県 別 希 望 地 域"]
[null,null,null,null,1,2,3,4,5,6,7,8,9,10,11,12,13,14,15,16,17,18,19,20,21,22,23,24,25,26,27,28,29,30,31,32,33,34,35,36,37,38,39,40,41,42,43,44,45,46,47]
[null,null,null,null,"北海道","青森","岩手","宮城","秋田","山形","福島","茨城","栃木","群馬","埼玉","千葉","東京","神奈川","新潟","富山","石川","福井","山梨","長野","岐阜","静岡","愛知","三重","滋賀","京都","大阪","兵庫","奈良","和歌山","鳥取","島根","岡山","広島","山口","徳島","香川","愛媛","高知","福岡","佐賀","長崎","熊本","大分","宮崎","鹿児島","沖縄"]
[null,"建\n築\n関\n係\n建\n設\nコ\nン\nサ\nル\nタ\nン\nト\n業\n務","意匠","設計"]
[null,null,null,"積算"]
[null,null,"構造","設計"]
[null,null,null,"積算"]
[null,null,"設備","設計"]
[null,null,null,"積算"]
[null,null,"耐震","診断"]
[null,null,null,"補強設計"]
[null,null,"工事監理"]
[]
[null,null,"Ａ　    ……　本社・支店・営業所等があり、業務を希望する都道府県"]
[null,null," B　    ……　本社・支店・営業所等はないが、業務を希望する都道府県"]
[null,null,"空欄　……　希望しない"]

{"sheet":"区分一覧","index":11,"n_rows":49,"n_cols":1,"rows_kept":49,"cut":false,"hidden":true,"merged":[]}
["都道府県"]
["北海道"]
["青森"]
["岩手"]
["宮城"]
["秋田"]
["山形"]
["福島"]
["茨城"]
["栃木"]
["群馬"]
["埼玉"]
["千葉"]
["東京"]
["神奈川"]
["新潟"]
["富山"]
["石川"]
["福井"]
["山梨"]
["長野"]
["岐阜"]
["静岡"]
["愛知"]
["三重"]
["滋賀"]
["京都"]
["大阪"]
["兵庫"]
["奈良"]
["和歌山"]
["鳥取"]
["島根"]
["岡山"]
["広島"]
["山口"]
["徳島"]
["香川"]
["愛媛"]
["高知"]
["福岡"]
["佐賀"]
["長崎"]
["熊本"]
["大分"]
["宮崎"]
["鹿児島"]
["沖縄"]
[" "]

{"sheet":"申請書様式1-1","index":12,"n_rows":66,"n_cols":165,"rows_kept":66,"cut":false,"hidden":true,"merged":[[53,156,53,158],[54,150,54,152],[54,156,54,158],[55,150,55,152],[55,156,55,158],[56,150,56,152],[56,156,56,158],[53,128,53,138],[54,128,54,138],[55,128,55,138],[56,128,56,138],[53,143,53,147],[54,143,54,147],[55,143,55,147],[56,143,56,147],[53,148,53,149],[54,148,54,149],[55,148,55,149],[56,148,56,149],[53,44,53,45],[54,44,54,45],[55,44,55,45],[56,44,56,45],[53,39,53,43],[54,39,54,43],[55,39,55,43],[56,39,56,43],[53,150,53,152],[56,58,56,75],[53,46,53,48],[54,46,54,48],[55,46,55,48],[56,46,56,48],[53,52,53,54],[54,52,54,54],[55,52,55,54],[56,52,56,54],[53,76,53,86],[54,76,54,86],[55,76,55,86],[56,76,56,86],[56,98,56,100],[56,104,56,106],[1,145,1,157],[0,151,0,153],[0,156,0,158],[0,161,0,163],[8,21,8,23],[8,31,8,33],[0,106,0,108],[0,109,0,111],[0,112,0,114],[0,126,1,130],[0,57,0,59],[0,82,0,84],[0,85,0,87],[0,88,0,90],[0,91,0,93],[0,94,0,96],[0,97,0,99],[0,100,0,102],[0,103,0,105],[0,30,0,32],[0,33,0,35],[0,36,0,38],[0,39,0,41],[0,42,0,44],[0,45,0,47],[0,48,0,50],[0,51,0,53],[0,54,0,56],[55,7,55,22],[55,59,55,74],[55,111,55,126],[53,7,53,22],[53,59,53,74],[53,111,53,126],[54,7,54,22],[54,59,54,74],[54,111,54,126],[53,98,53,100],[53,104,53,106],[54,98,54,100],[54,104,54,106],[55,98,55,100],[55,104,55,106],[17,22,18,25],[46,42,46,97],[48,42,48,97],[53,24,53,34],[17,26,18,29],[40,152,41,153],[40,154,41,155],[40,156,41,157],[40,158,41,159],[40,160,41,161],[44,0,44,2],[40,140,41,141],[40,142,41,143],[40,144,41,145],[40,146,41,147],[40,122,41,123],[40,124,41,125],[40,126,41,127],[40,148,41,149],[40,150,41,151],[40,128,41,129],[40,130,41,131],[40,132,41,133],[40,134,41,135],[40,136,41,137],[40,138,41,139],[37,168,38,171],[40,22,41,23],[40,24,41,25],[40,26,41,27],[40,28,41,29],[40,30,41,31],[37,128,38,131],[37,132,38,135],[37,136,38,139],[40,60,41,61],[40,62,41,63],[40,64,41,65],[40,66,41,67],[40,44,41,45],[40,46,41,47],[40,48,41,49],[40,50,41,51],[40,52,41,53],[40,54,41,55],[40,68,41,69],[40,70,41,71],[40,72,41,73],[40,74,41,75],[40,76,41,77],[0,0,0,2],[0,8,0,12],[0,67,0,81],[1,8,1,12],[3,0,3,162],[37,140,38,143],[37,144,38,147],[37,148,38,151],[40,32,41,33],[40,34,41,35],[40,36,41,37],[40,38,41,39],[40,40,41,41],[40,42,41,43],[37,108,38,111],[40,78,41,79],[40,80,41,81],[40,82,41,83],[40,84,41,85],[40,86,41,87],[40,88,41,89],[40,90,41,91],[40,92,41,93],[40,94,41,95],[17,162,18,165],[17,118,18,121],[17,122,18,125],[17,126,18,129],[17,130,18,133],[37,152,38,155],[37,156,38,159],[37,160,38,163],[40,56,41,57],[40,58,41,59],[37,164,38,167],[40,96,41,97],[40,98,41,99],[40,100,41,101],[40,102,41,103],[40,104,41,105],[40,106,41,107],[40,108,41,109],[40,110,41,111],[40,112,41,113],[40,114,41,115],[40,116,41,117],[40,118,41,119],[40,120,41,121],[17,30,18,33],[17,34,18,37],[17,38,18,41],[17,42,18,45],[37,112,38,115],[37,116,38,119],[37,120,38,123],[33,99,33,113],[17,78,18,81],[17,82,18,85],[17,86,18,89],[17,90,18,93],[17,46,18,49],[17,50,18,53],[17,54,18,57],[17,58,18,61],[17,62,18,65],[17,66,18,69],[20,58,20,59],[20,61,20,62],[20,64,20,65],[20,67,20,68],[20,70,20,71],[20,73,20,74],[17,158,18,161],[17,166,18,169],[17,170,18,173],[17,174,18,177],[17,178,18,181],[12,22,13,24],[12,25,13,27],[12,28,13,30],[12,35,13,37],[12,38,13,40],[17,134,18,137],[17,138,18,141],[17,142,18,145],[17,146,18,149],[17,150,18,153],[17,154,18,157],[17,94,18,97],[17,98,18,101],[17,102,18,105],[17,106,18,109],[17,110,18,113],[17,114,18,117],[17,70,18,73],[17,74,18,77],[15,46,15,47],[15,49,15,50],[15,52,15,53],[15,55,15,56],[15,58,15,59],[15,61,15,62],[12,41,13,43],[12,44,13,46],[15,22,15,23],[15,25,15,26],[15,28,15,29],[15,31,15,32],[15,34,15,35],[15,37,15,38],[15,40,15,41],[15,43,15,44],[15,82,15,83],[15,85,15,86],[15,88,15,89],[15,91,15,92],[15,94,15,95],[15,97,15,98],[15,64,15,65],[15,67,15,68],[15,70,15,71],[15,73,15,74],[15,76,15,77],[15,79,15,80],[15,124,15,125],[15,127,15,128],[15,130,15,131],[15,133,15,134],[15,100,15,101],[15,103,15,104],[15,106,15,107],[15,109,15,110],[15,112,15,113],[15,115,15,116],[15,172,15,173],[15,175,15,176],[15,178,15,179],[15,181,15,182],[20,22,20,23],[20,25,20,26],[20,28,20,29],[20,31,20,32],[20,34,20,35],[20,37,20,38],[15,154,15,155],[15,157,15,158],[15,160,15,161],[15,163,15,164],[15,166,15,167],[15,169,15,170],[15,136,15,137],[15,139,15,140],[15,142,15,143],[15,145,15,146],[15,148,15,149],[15,151,15,152],[15,118,15,119],[15,121,15,122],[20,40,20,41],[20,43,20,44],[20,46,20,47],[20,49,20,50],[20,52,20,53],[20,55,20,56],[20,103,20,104],[20,106,20,107],[20,109,20,110],[20,76,20,77],[20,79,20,80],[20,82,20,83],[20,85,20,86],[20,88,20,89],[20,91,20,92],[20,175,20,176],[20,115,20,116],[20,118,20,119],[20,121,20,122],[20,124,20,125],[20,127,20,128],[20,94,20,95],[20,97,20,98],[20,100,20,101],[20,178,20,179],[20,181,20,182],[20,148,20,149],[20,151,20,152],[20,154,20,155],[20,157,20,158],[20,160,20,161],[20,163,20,164],[22,22,23,25],[22,26,23,29],[22,30,23,33],[22,34,23,37],[22,38,23,41],[22,42,23,45],[20,166,20,167],[20,169,20,170],[20,172,20,173],[20,130,20,131],[20,133,20,134],[20,136,20,137],[20,139,20,140],[20,142,20,143],[20,145,20,146],[20,112,20,113],[22,166,23,169],[22,170,23,173],[22,174,23,177],[22,178,23,181],[25,22,26,25],[25,26,26,29],[25,30,26,33],[25,34,26,37],[25,38,26,41],[25,42,26,45],[22,118,23,121],[22,122,23,125],[22,126,23,129],[22,58,23,61],[22,62,23,65],[22,66,23,69],[22,70,23,73],[22,74,23,77],[22,78,23,81],[22,82,23,85],[22,46,23,49],[22,50,23,53],[22,54,23,57],[22,106,23,109],[25,46,26,49],[25,50,26,53],[22,130,23,133],[22,134,23,137],[22,138,23,141],[22,142,23,145],[22,110,23,113],[22,114,23,117],[22,86,23,89],[22,90,23,93],[28,55,28,56],[28,114,28,115],[28,117,28,118],[28,120,28,121],[28,73,28,74],[22,162,23,165],[22,94,23,97],[22,98,23,101],[22,102,23,105],[22,146,23,149],[22,150,23,153],[22,154,23,157],[22,158,23,161],[28,58,28,59],[28,61,28,62],[28,64,28,65],[28,67,28,68],[28,135,28,136],[28,40,28,41],[28,43,28,44],[28,46,28,47],[30,46,31,49],[28,49,28,50],[30,50,31,53],[28,22,28,23],[28,25,28,26],[28,28,28,29],[28,31,28,32],[28,34,28,35],[28,37,28,38],[28,52,28,53],[28,174,28,175],[28,165,28,166],[30,174,31,177],[30,162,31,165],[30,166,31,169],[30,170,31,173],[28,138,28,139],[28,177,28,178],[30,150,31,153],[30,154,31,157],[30,158,31,161],[30,138,31,141],[30,142,31,145],[30,146,31,149],[28,141,28,142],[28,144,28,145],[28,147,28,148],[28,150,28,151],[28,153,28,154],[28,156,28,157],[28,159,28,160],[28,162,28,163],[28,168,28,169],[28,171,28,172],[37,58,38,61],[37,62,38,65],[37,66,38,69],[33,158,34,161],[35,138,35,141],[35,142,35,145],[35,146,35,149],[35,150,35,153],[35,154,35,157],[33,126,34,129],[33,130,34,133],[33,134,34,137],[33,138,34,141],[33,142,34,145],[33,146,34,149],[33,150,34,153],[33,154,34,157],[33,58,34,61],[37,124,38,127],[30,70,31,73],[30,74,31,77],[30,78,31,81],[30,82,31,85],[30,58,31,61],[28,126,28,127],[28,129,28,130],[28,70,28,71],[28,76,28,77],[28,79,28,80],[30,126,31,129],[30,130,31,133],[28,82,28,83],[28,85,28,86],[30,114,31,117],[30,118,31,121],[30,122,31,125],[28,132,28,133],[12,115,13,118],[12,56,12,65],[12,67,13,70],[12,71,13,74],[12,75,13,78],[12,79,13,82],[12,83,13,86],[12,87,13,90],[12,91,13,94],[12,95,13,98],[12,99,13,102],[12,103,13,106],[12,107,13,110],[12,111,13,114],[60,45,61,48],[60,70,60,72],[60,107,60,109],[60,13,61,16],[60,17,61,20],[60,21,61,24],[60,25,61,28],[60,29,61,32],[60,33,61,36],[60,37,61,40],[60,41,61,44],[53,91,53,95],[54,91,54,95],[55,91,55,95],[56,91,56,95],[53,96,53,97],[30,54,31,57],[37,22,38,25],[37,26,38,29],[37,30,38,33],[37,34,38,37],[37,38,38,41],[37,42,38,45],[37,46,38,49],[37,50,38,53],[37,54,38,57],[33,54,34,57],[30,22,31,25],[30,26,31,29],[30,30,31,33],[30,34,31,37],[30,38,31,41],[30,42,31,45],[30,62,31,65],[30,66,31,69],[30,134,31,137],[28,123,28,124],[8,8,8,13],[56,110,56,127],[33,22,34,25],[33,26,34,29],[33,30,34,33],[33,34,34,37],[33,38,34,41],[33,42,34,45],[33,46,34,49],[33,50,34,53],[33,62,34,65],[33,66,34,69],[33,114,34,117],[33,118,34,121],[33,122,34,125],[54,24,54,34],[55,24,55,34],[56,24,56,34],[54,96,54,97],[55,96,55,97],[56,96,56,97],[56,6,56,23]]}
["01",null,null,null,"１ ： ",null,null,null,"新規",null,null,null,null,null,null,"※ 02 受付番号",null,null,null,null,null,null,null,null,null,null,null,null,null,null,null,null,null,null,null,null,null,null,null,null,null,null,null,null,null,null,null,null,null,null,null,null,null,null,null,null,null,null,null,null,null,"※",null,null,"03",null,null,"業者コ－ド",null,null,null,null,null,null,null,null,null,null,null,null,null,null,null,null,null,null,null,null,null,null,null,null,null,null,null,null,null,null,null,null,null,null,null,null,null,null,null,null,null,null,null,null,null,null,null,null,"※",null,null,"申請者",null,null,null,null,null,null,null,null,null,null,null,"05",null,null,"適格組",null,null,null,null,null,null,null,"平成・令和      ",null,null,null,null,null,null,null,null,null,null,null,"年",null,null,null,null,"月",null,null,null,null,"日"]
[null,null,null,null,"２ ：",null,null,null,"更新",null,null,null,null,null,null,null,null,null,null,null,null,null,null,null,null,null,null,null,null,null,null,null,null,null,null,null,null,null,null,null,null,null,null,null,null,null,null,null,null,null,null,null,null,null,null,null,null,null,null,null,null,null,null,null,null,null,null,null,null,null,null,null,null,null,null,null,null,null,null,null,null,null,null,null,null,null,null,null,null,null,null,null,null,null,null,null,null,null,null,null,null,null,null,null,null,null,null,null,null,null,null,null,null,null,null,null,"04",null,null,"の規模",null,null,null,null,null,null,null,null,null,null,null,null,null,null,"合証明",null,null,null,null,null,null,null,"第                         ",null,null,null,null,null,null,null,null,null,null,null,null,null,null,null,"号"]
[]
["一般競争（指名競争）参加資格審査申請書（測量・建設コンサルタント等）"]
[]
[null,"令和７・８年度において、貴省で行われる測量・建設コンサルタント等業務に係る競争に参加する資格の審査を申請します。"]
[null,"なお、この申請書及び添付書類の内容については、事実と相違しないことを誓約します。"]
[]
[null,null,"令和  ",null,null,null,null,null,null,null,null,null,null,null,"年",null,null,null,null,null,null,null,null,null,"月",null,null,null,null,null,null,null,null,null,"日"]
[]
[null,null,null,null,null,null,null,null,null,null,null,null,null,null,null,null,null,null,"法務省大臣官房施設課長",null,null,null,null,null,null,null,null,null,null,null,null,null,null,null,null,null,null,null,null,null,null,null,null,null,null,"殿"]
[]
["06",null,null,null,"本社（店）郵便番号",null,null,null,null,null,null,null,null,null,null,null,null,null,null,null,null,null,null,null,null,null,null,null,null,null,null,null,null,null,null,null,null,null,null,null,null,null,null,null,null,null,null,null,null,null,null,"07",null,null,null,null,"法人番号"]
[]
[]
[null,null,null,null,"ﾌ",null,"ﾘ",null,"ｶﾞ",null,"ﾅ"]
[]
["08",null,null,null,"本社（店）住所"]
[]
[]
[null,null,null,null,"ﾌ",null,"ﾘ",null,"ｶﾞ",null,"ﾅ"]
[]
["09",null,null,null,"商号又は名称"]
[]
[]
["10",null,null,null,"役職"]
[]
[]
[null,null,null,null,"ﾌ",null,"ﾘ",null,"ｶﾞ",null,"ﾅ",null,null,null,null,null,null,null,null,null,null,null,null,null,null,null,null,null,null,null,null,null,null,null,null,null,null,null,null,null,null,null,null,null,null,null,null,null,null,null,null,null,null,null,null,null,null,null,null,null,null,null,null,null,null,null,null,null,null,null,null,null,null,null,null,null,null,null,null,null,null,null,null,null,null,null,null,null,null,null,null,null,null,null,null,null,null,null,null,"ﾌ",null,"ﾘ",null,"ｶﾞ",null,"ﾅ",null,null,null,null,null,null,null,null," "]
[]
[null,null,null,null,"代表者氏名",null,null,null,null,null,null,null,null,null,null,null,null,null,null,null,null,null,null,null,null,null,null,null,null,null,null,null,null,null,null,null,null,null,null,null,null,null,null,null,null,null,null,null,null,null,null,null,null,null,null,null,null,null,null,null,null,null,null,null,null,null,null,null,null,null,null,null,null,null,null,null,null,null,null,null,null,null,null,null,null,null,null,null,null,null,null,null,null,null,null,"11",null,null,null,"担当者氏名",null,null,null,null,null,null,null,null,null,null,null,null,null,null,"　"]
[]
[]
["12",null,null,null,"本社（店）電話番号",null,null,null,null,null,null,null,null,null,null,null,null,null,null,null,null,null,null,null,null,null,null,null,null,null,null,null,null,null,null,null,null,null,null,null,null,null,null,null,null,null,null,null,null,null,null,null,null,null,null,null,null,null,null,null,null,null,null,null,null,null,null,null,null,null,null,null,null,null,null,null,null,null,null,null,null,null,null,null,null,null,null,null,null,null,null,null,null,null,null,"13",null,null,null,"担当者電話番号"]
[]
[null,null,null,null,null,null,null,null,null,null,null,null,null,null,null,null,null,null,null,null,null,null,null,null,null,null,null,null,null,null,null,null,null,null,null,null,null,null,null,null,null,null,null,null,null,null,null,null,null,null,null,null,null,null,null,null,null,null,null,null,null,null,null,null,null,null,null,null,null,null,null,null,null,null,null,null,null,null,null,null,null,null,null,null,null,null,null,null,null,null,null,null,null,null,null,null,null,null,null,null,null,null,null,null,null,null,null,null,null,null,null,null,null,null,null,null,null,null,null,null,null,null,null,null,null,null,null,null,"（","内線番号",null,null,null,null,null,null,null,null,null,null,null,null,null,null,null,null,null,null,null,null,null,null,null,null,null,null,null,null,"）"]
[]
["14",null,null,null,"本社（店）ＦＡＸ番号",null,null,null,null,null,null,null,null,null,null,null,null,null,null,null,null,null,null,null,null,null,null,null,null,null,null,null,null,null,null,null,null,null,null,null,null,null,null,null,null,null,null,null,null,null,null,null,null,null,null,null,null,null,null,null,null,null,null,null,null,null,null,null,null,null,null,null,null,null,"15",null,null,null,"電子入札用ICカードの登録番号"]
[]
[]
["16",null,null,null,"メールアドレス"]
[]
[]
["（17 代理申請時使用欄）"]
["17",null,null,null,"申請代理人",null,null,null,null,null,null,null,null,null,null,null,null,null,null,null,null,null,"申請代理人郵便番号"]
[]
[null,null,null,null,null,null,null,null,null,null,null,null,null,null,null,null,null,null,null,null,null,null,"申請代理人住    所",null,null,null,null,null,null,null,null,null,null,null,null,null,null,null,null,null,null,null,"",null,null,null,null,null,null,null,null,null,null,null,null,null,null,null,null,null,null,null,null,null,null,null,null,null,null,null,null,null,null,null,null,null,null,null,null,null,null,null,null,null,null,null,null,null,null,null,null,null,null,null,null,null,null,null,null,"申請代理人電話番号"]
[]
[null,null,null,null,null,null,null,null,null,null,null,null,null,null,null,null,null,null,null,null,null,null,"申請代理人氏    名"]
[]
["18",null,null,null,"登録を受けている事業"]
[]
[null,null,null,null,null,null,"登 録 事 業 名",null,null,null,null,null,null,null,null,null,null,null,null,null,null,null,null,null,"登 録 番 号",null,null,null,null,null,null,null,null,null,null,null,null,null,null,"登 録 年 月 日",null,null,null,null,null,null,null,null,null,null,null,null,null,null,null,null,null,null,"登 録 事 業 名",null,null,null,null,null,null,null,null,null,null,null,null,null,null,null,null,null,"登 録 番 号",null,null,null,null,null,null,null,null,null,null,null,null,null,null,"登 録 年 月 日",null,null,null,null,null,null,null,null,null,null,null,null,null,null,null,null,null,null,"登 録 事 業 名",null,null,null,null,null,null,null,null,null,null,null,null,null,null,null,null,null,"登 録 番 号",null,null,null,null,null,null,null,null,null,null,null,null,null,null,"登 録 年 月 日"]
[null,null,null,null,null,null," ","測量業者",null,null,null,null,null,null,null,null,null,null,null,null,null,null,null,null,"",null,null,null,null,null,null,null,null,null,null,"号",null,null,null,"",null,null,null,null,"年",null,null,null,null,"月",null,null,null,null,null,"日",null,null,null,"建築士事務所",null,null,null,null,null,null,null,null,null,null,null,null,null,null,null,null,"",null,null,null,null,null,null,null,null,null,null,"号",null,null,null,"",null,null,null,null,"年",null,null,null,null,"月",null,null,null,null,null,"日",null,null,null,"建設ｺﾝｻﾙﾀﾝﾄ",null,null,null,null,null,null,null,null,null,null,null,null,null,null,null,null,"",null,null,null,null,null,null,null,null,null,null,"号",null,null,null,"",null,null,null,null,"年",null,null,null,null,"月",null,null,null,null,null,"日"]
[null,null,null,null,null,null,null,"地質調査業者",null,null,null,null,null,null,null,null,null,null,null,null,null,null,null,null,null,null,null,null,null,null,null,null,null,null,null,"号",null,null,null,null,null,null,null,null,"年",null,null,null,null,"月",null,null,null,null,null,"日",null,null,null,"補償ｺﾝｻﾙﾀﾝﾄ",null,null,null,null,null,null,null,null,null,null,null,null,null,null,null,null,null,null,null,null,null,null,null,null,null,null,null,"号",null,null,null,null,null,null,null,null,"年",null,null,null,null,"月",null,null,null,null,null,"日",null,null,null,"不動産鑑定業者",null,null,null,null,null,null,null,null,null,null,null,null,null,null,null,null,null,null,null,null,null,null,null,null,null,null,null,"号",null,null,null,null,null,null,null,null,"年",null,null,null,null,"月",null,null,null,null,null,"日"]
[null,null,null,null,null,null,null,"土地家屋調査士",null,null,null,null,null,null,null,null,null,null,null,null,null,null,null,null,null,null,null,null,null,null,null,null,null,null,null,"号",null,null,null,null,null,null,null,null,"年",null,null,null,null,"月",null,null,null,null,null,"日",null,null,null,"司法書士",null,null,null,null,null,null,null,null,null,null,null,null,null,null,null,null,null,null,null,null,null,null,null,null,null,null,null,"号",null,null,null,null,null,null,null,null,"年",null,null,null,null,"月",null,null,null,null,null,"日",null,null,null,"計量証明事業者",null,null,null,null,null,null,null,null,null,null,null,null,null,null,null,null,null,null,null,null,null,null,null,null,null,null,null,"号",null,null,null,null,null,null,null,null,"年",null,null,null,null,"月",null,null,null,null,null,"日"]
[null,null,null,null,null,null,null,null,null,null,null,null,null,null,null,null,null,null,null,null,null,null,null,null,null,null,null,null,null,null,null,null,null,null,null,"号",null,null,null,null,null,null,null,null,"年",null,null,null,null,"月",null,null,null,null,null,"日",null,null,null,null,null,null,null,null,null,null,null,null,null,null,null,null,null,null,null,null,null,null,null,null,null,null,null,null,null,null,null,"号",null,null,null,null,null,null,null,null,"年",null,null,null,null,"月",null,null,null,null,null,"日",null,null,null,null,null,null,null,null,null,null,null,null,null,null,null,null,null,null,null,null,null,null,null,null,null,null,null,null,null,null,null,"号",null,null,null,null,null,null,null,null,"年",null,null,null,null,"月",null,null,null,null,null,"日"]
[]
["19",null,null,null,"設立年月日（和暦）",null,null,null,null,null,null,null,null,null,null,null,null,null,null,null,null,null,null,null,null,null,null,null,null,null,null,null,null,null,null,null,null,null,null,null,null,null,null,null,null,null,null,null,null,null,null,null,null,null,null,null,null,null,null,null,null,null,null,null,null,null,null,null,"20",null,null,null,"みなし大企業"]
[]
[null,"明治　大正",null,null,null,null,null,null,null,null,null,null,null,null,null,null,null,null,null,null,null,"年",null,null,null,null,null,null,null,null,null,null,null,"月",null,null,null,null,null,null,null,null,null,null,null,"日",null,null,null,null,null,null,null,null,null,null,null,null,null,null,null,null,null,null,null,null,null,null,null,null,null,null,null,null,null,"下記のいずれかに該当する",null,null,null,null,null,null,null,null,null,null,null,null,null,null,null,null,null,null,null,null,null,null,null,null,null,null,null,null,null,null,null,null,null,null,null,null,"該当しない"]
[null,"昭和　平成",null,null,null,null,null,null,null,null,null,null,null,null,null,null,null,null,null,null,null,null,null,null,null,null,null,null,null,null,null,null,null,null,null,null,null,null,null,null,null,null,null,null,null,null,null,null,null,null,null,null,null,null,null,null,null,null,null,null,null,null,null,null,null,null,null,null,null,null,null,"・",null,null,"発行済株式の総数又は出資金額の総額の2分の1以上を同一の大企業が所有している中小企業"]
[null,"令和",null,null,null,null,null,null,null,null,null,null,null,null,null,null,null,null,null,null,null,null,null,null,null,null,null,null,null,null,null,null,null,null,null,null,null,null,null,null,null,null,null,null,null,null,null,null,null,null,null,null,null,null,null,null,null,null,null,null,null,null,null,null,null,null,null,null,null,null,null,"・",null,null,"発行済株式の総数又は出資金額の総額の3分の2以上を大企業が所有している中小企業"]
[null,null,null,null,null,null,null,null,null,null,null,null,null,null,null,null,null,null,null,null,null,null,null,null,null,null,null,null,null,null,null,null,null,null,null,null,null,null,null,null,null,null,null,null,null,null,null,null,null,null,null,null,null,null,null,null,null,null,null,null,null,null,null,null,null,null,null,null,null,null,null,"・",null,null,"大企業の役員又は職員を兼ねている者が、役員総数の2分の1以上を占めている中小企業"]
[]
["※欄については、記載しないこと（以下同じ）。"]

{"sheet":"申請書様式1-2","index":13,"n_rows":26,"n_cols":163,"rows_kept":26,"cut":false,"hidden":true,"merged":[[14,0,14,27],[28,35,28,46],[28,47,28,58],[28,59,28,70],[28,71,28,82],[22,162,22,166],[28,95,28,106],[5,123,5,163],[6,162,6,166],[7,5,7,24],[9,0,9,27],[7,92,7,112],[6,92,6,112],[28,11,28,22],[28,23,28,34],[8,162,8,166],[6,5,6,24],[10,0,10,27],[11,0,11,27],[12,0,12,27],[13,0,13,27],[6,33,6,35],[7,33,7,35],[6,28,6,30],[31,11,32,22],[31,23,32,34],[31,35,32,46],[31,47,32,58],[32,143,32,154],[31,71,32,82],[31,83,32,94],[31,59,32,70],[31,95,32,106],[31,107,32,118],[31,119,32,130],[31,131,32,142],[31,143,31,154],[7,28,7,30],[6,47,6,49],[7,47,7,49],[28,155,28,166],[31,155,31,166],[32,155,32,166],[28,83,28,94],[28,107,28,118],[28,119,28,130],[28,131,28,142],[28,143,28,154],[6,61,6,63],[7,61,7,63],[6,75,6,77],[7,75,7,77],[6,42,6,44],[7,42,7,44],[6,56,6,58],[7,56,7,58],[6,70,6,72],[7,70,7,72],[9,56,9,69],[9,70,9,83],[10,56,10,69],[10,70,10,83],[11,56,11,69],[11,70,11,83],[9,28,9,41],[10,28,10,41],[11,28,11,41],[9,42,9,55],[10,42,10,55],[11,42,11,55],[9,90,9,92],[10,90,10,92],[11,90,11,92],[9,93,9,95],[10,93,10,95],[11,93,11,95],[9,84,9,86],[10,84,10,86],[11,84,11,86],[9,87,9,89],[10,87,10,89],[11,87,11,89],[9,105,9,107],[10,99,10,101],[10,102,10,104],[10,105,10,107],[11,99,11,101],[11,102,11,104],[11,105,11,107],[9,96,9,98],[10,96,10,98],[11,96,11,98],[9,99,9,101],[9,102,9,104],[9,108,9,110],[9,111,9,113],[10,108,10,110],[10,111,10,113],[11,108,11,110],[11,111,11,113],[9,114,9,116],[10,114,10,116],[11,114,11,116]]}
["※ 受付番号",null,null,null,null,null,null,null,null,null,null,null,null,null,null,null,null,null,null,null,null,null,null,null,null,null,null,null,null,null,null,null,null,null,null,null,null,null,null,null,null,null,null,null,null,null,"※ 業者コ－ド"]
[]
["21",null,null,null,null,"測量等実績高"]
[]
[]
[null,null,null,null,null,null,null,null,null,null,null,null,null,null,null,null,null,null,null,null,null,null,null,null,null,null,null,null,null,"②  直 前 ２ 年 度 分 決 算",null,null,null,null,null,null,null,null,null,null,null,null,null,null,null,null,null,null,null,null,null,null,null,null,null,null,null,"③  直 前 １ 年 度 分 決 算",null,null,null,null,null,null,null,null,null,null,null,null,null,null,null,null,null,null,null,null,null,null,null,null,null,null,null,null,null,null,null,null,null,null,null,null,null,null,null,null,null,null,null,null,null,null,null,null,null,null,null,null,null,null,null,null,null,null,null,null,null,null,"⑤",null,null,"  申    請    を    希    望    す    る    部    局"]
[null,"①",null,null,null,"競争参加資格",null,null,null,null,null,null,null,null,null,null,null,null,null,null,null,null,null,null,null,null,null,null,"",null,null,"年",null,null,null,null,"月 から",null,null,null,null,null,null,null,null,"年",null,null,null,null,"月 から",null,null,null,null,null,"",null,null,"年",null,null,null,null,"月 から",null,null,null,null,null,null,null,null,"年",null,null,null,null,"月 から",null,null,null,null,null,null,null,null,null,"④",null,null,null,"直前２か年間の",null,null,null,null,null,null,null,null,null,null,null,null,null,null,null,null,null,null,null,null,null,null,null,null,"01",null,null,"02",null,null,"03",null,null,"04",null,null,"05",null,null,"06",null,null,"07",null,null,"08",null,null,"09",null,null,"10",null,null,"11",null,null,"12",null,null,"13",null,null,"14",null,null,"15",null,null,"合"]
[null,null,null,null,null,"希望業種区分",null,null,null,null,null,null,null,null,null,null,null,null,null,null,null,null,null,null,null,null,null,null,null,null,null,"年",null,null,null,null,"月 まで",null,null,null,null,null,null,null,null,"年",null,null,null,null,"月 まで",null,null,null,null,null,null,null,null,"年",null,null,null,null,"月 まで",null,null,null,null,null,null,null,null,"年",null,null,null,null,"月 まで",null,null,null,null,null,null,null,null,null,null,null,null,null,"年間平均実績高"]
[null,null,null,null,null,null,null,null,null,null,null,null,null,null,null,null,null,null,null,null,null,null,null,null,null,null,null,null,null,null,null,null,null,null,null,null,null,null,null,null,"（千円）",null,null,null,null,null,null,null,null,null,null,null,null,null,"（千円）",null,null,null,null,null,null,null,null,null,null,null,null,null,"（千円）",null,null,null,null,null,null,null,null,null,null,null,null,null,"（千円）",null,null,null,null,null,null,null,null,null,null,null,null,null,null,null,null,null,null,null,null,null,null,null,null,null,null,null,null,null,null,null,null,"（千円）",null,null,null,null,null,null,null,null,null,null,null,null,null,null,null,null,null,null,null,null,null,null,null,null,null,null,null,null,null,null,null,null,null,null,null,null,null,null,null,null,null,null,null,null,null,null,"計"]
["　測　量"]
["　建築関係建設コンサルタント"]
["　地質調査業務"]
[]
[]
[]
[]
[]
[]
[]
[]
[]
[]
[null,null,null,"合                 計"]
["（注） 法務省では、「測量」、「建築関係建設コンサルタント」、「地質調査業務」の３業種のみ登録を行うが、数値については全て記入する。"]
[]
["22",null,null,null,null,"有資格者数（人）"]

{"sheet":"申請書様式1-3","index":14,"n_rows":30,"n_cols":154,"rows_kept":30,"cut":false,"hidden":true,"merged":[[20,4,20,15],[6,60,6,64],[6,50,6,54],[6,0,6,4],[6,5,6,9],[6,10,6,14],[6,15,6,19],[6,140,6,144],[4,105,4,144],[16,93,16,118],[18,93,18,118],[16,128,16,153],[6,90,6,94],[6,95,6,99],[6,100,6,104],[4,0,4,104],[6,125,6,129],[12,11,12,41],[13,11,13,41],[14,11,14,41],[16,11,16,41],[8,1,9,3],[18,4,18,15],[18,71,18,73],[18,74,18,76],[19,44,19,46],[19,47,19,49],[19,50,19,52],[19,53,19,55],[19,56,19,58],[18,44,18,46],[18,47,18,49],[18,50,18,52],[18,53,18,55],[18,56,18,58],[18,59,18,61],[18,62,18,64],[18,65,18,67],[18,68,18,70],[19,59,19,61],[19,62,19,64],[19,65,19,67],[19,68,19,70],[19,71,19,73],[19,74,19,76],[28,4,28,20],[26,22,26,40],[22,93,22,119],[22,84,22,86],[23,93,23,119],[24,93,24,119],[25,93,25,119],[26,93,26,119],[23,84,26,86],[25,22,25,40],[26,56,26,58],[26,59,26,61],[26,62,26,64],[26,67,26,70],[24,4,24,15],[24,22,24,40],[24,59,24,61],[22,71,22,73],[22,44,22,46],[22,47,22,49],[22,50,22,52],[22,53,22,55],[22,56,22,58],[24,62,24,64],[6,135,6,139],[6,105,6,109],[6,110,6,114],[6,115,6,119],[6,120,6,124],[6,130,6,134],[6,65,6,69],[6,70,6,74],[6,75,6,79],[6,80,6,84],[6,85,6,89],[6,20,6,24],[6,25,6,29],[6,30,6,34],[6,35,6,39],[6,40,6,44],[6,45,6,49],[6,55,6,59],[10,44,10,46],[12,44,12,46],[10,47,10,49],[12,47,12,49],[11,44,11,46],[11,47,11,49],[10,13,10,41],[11,13,11,41],[12,68,12,70],[10,71,10,73],[12,71,12,73],[10,50,10,52],[12,50,12,52],[10,53,10,55],[12,53,12,55],[10,56,10,58],[12,56,12,58],[10,59,10,61],[12,59,12,61],[10,62,10,64],[12,62,12,64],[10,65,10,67],[12,65,12,67],[11,50,11,52],[11,53,11,55],[11,56,11,58],[11,59,11,61],[11,62,11,64],[11,65,11,67],[11,68,11,70],[11,71,11,73],[16,74,16,76],[14,59,14,61],[14,62,14,64],[14,65,14,67],[14,68,14,70],[14,71,14,73],[16,59,16,61],[16,62,16,64],[16,65,16,67],[16,68,16,70],[16,44,16,46],[16,47,16,49],[16,50,16,52],[16,53,16,55],[16,56,16,58],[13,62,13,64],[13,65,13,67],[13,68,13,70],[16,71,16,73],[13,71,13,73],[13,44,13,46],[13,47,13,49],[13,50,13,52],[13,53,13,55],[13,56,13,58],[13,59,13,61],[20,74,20,76],[21,44,21,46],[21,47,21,49],[21,50,21,52],[21,53,21,55],[21,56,21,58],[21,59,21,61],[21,62,21,64],[21,65,21,67],[21,68,21,70],[21,71,21,73],[21,74,21,76],[20,59,20,61],[20,62,20,64],[20,65,20,67],[20,68,20,70],[20,71,20,73],[20,44,20,46],[20,47,20,49],[20,50,20,52],[20,53,20,55],[20,56,20,58],[25,56,25,58],[25,59,25,61],[25,62,25,64],[24,67,24,70],[25,67,25,70],[22,59,22,61],[22,62,22,64],[22,65,22,67],[22,68,22,70],[29,83,29,86],[29,87,29,90],[29,91,29,94],[29,99,29,102],[29,103,29,106],[16,84,16,86],[17,84,20,86],[29,23,29,26],[29,27,29,30],[29,31,29,34],[29,35,29,38],[29,39,29,42],[29,43,29,46],[29,47,29,50],[29,51,29,54],[29,55,29,58],[29,59,29,62],[29,63,29,66],[29,67,29,70],[29,71,29,74],[29,75,29,78],[29,79,29,82],[22,74,22,76],[24,56,24,58],[29,127,29,130],[29,131,29,134],[29,95,29,98],[22,123,22,130],[23,123,23,130],[24,123,24,130],[25,123,25,130],[22,134,22,139],[23,134,23,139],[24,134,24,139],[25,134,25,139],[29,107,29,110],[29,111,29,114],[29,115,29,118],[29,119,29,122],[29,123,29,126],[22,143,22,148],[23,143,23,148],[24,143,24,148],[25,143,25,148],[26,123,26,131],[26,132,26,140],[26,141,26,149],[17,97,17,117],[19,97,19,117],[17,132,17,152],[19,132,19,152],[18,143,18,148],[20,143,20,148],[10,1,15,3],[11,74,11,76],[15,11,15,41],[15,44,15,46],[15,47,15,49],[15,50,15,52],[15,53,15,55],[15,56,15,58],[15,59,15,61],[15,62,15,64],[15,65,15,67],[15,68,15,70],[15,71,15,73],[15,74,15,76],[12,74,12,76],[14,74,14,76],[10,74,10,76],[14,44,14,46],[14,47,14,49],[14,50,14,52],[14,53,14,55],[14,56,14,58],[13,74,13,76],[10,68,10,70]]}
["※ 受付番号",null,null,null,null,null,null,null,null,null,null,null,null,null,null,null,null,null,null,null,null,null,null,null,null,null,null,null,null,null,null,null,null,null,null,null,null,null,null,null,null,null,null,null,null,null,"※ 業者コ－ド"]
[]
["23",null,null,null,null,"建設コンサルタント及び補償コンサルタント登録業者の登録部門"]
[]
["建     設     コ     ン     サ     ル     タ     ン     ト     業     務",null,null,null,null,null,null,null,null,null,null,null,null,null,null,null,null,null,null,null,null,null,null,null,null,null,null,null,null,null,null,null,null,null,null,null,null,null,null,null,null,null,null,null,null,null,null,null,null,null,null,null,null,null,null,null,null,null,null,null,null,null,null,null,null,null,null,null,null,null,null,null,null,null,null,null,null,null,null,null,null,null,null,null,null,null,null,null,null,null,null,null,null,null,null,null,null,null,null,null,null,null,null,null,null,"補 償 コ ン サ ル タ ン ト 業 務"]
["１",null,null,null,null,"２",null,null,null,null,"３",null,null,null,null,"４",null,null,null,null,"５",null,null,null,null,"６",null,null,null,null,"７",null,null,null,null,"８",null,null,null,null,"９",null,null,null,null,"１０",null,null,null,null,"１１",null,null,null,null,"１２",null,null,null,null,"１３",null,null,null,null,"１４",null,null,null,null,"１５",null,null,null,null,"１６",null,null,null,null,"１７",null,null,null,null,"１８",null,null,null,null,"１９",null,null,null,null,"２０",null,null,null,null,"２１",null,null,null,null,"２２",null,null,null,null,"２３",null,null,null,null,"２４",null,null,null,null,"２５",null,null,null,null,"２６",null,null,null,null,"２７",null,null,null,null,"２８",null,null,null,null,"２９"]
["河川、砂防及び海岸・海洋",null,null,null,null,"港湾及び空港",null,null,null,null,"電力土木",null,null,null,null,"道路",null,null,null,null,"鉄道",null,null,null,null,"上水道及び工業用水道",null,null,null,null,"下水道",null,null,null,null,"農業土木",null,null,null,null,"森林土木",null,null,null,null,"水産土木",null,null,null,null,"廃棄物",null,null,null,null,"造園",null,null,null,null,"都市計画及び地方計画",null,null,null,null,"地質",null,null,null,null,"土質及び基礎",null,null,null,null,"鋼構造物及びｺﾝｸﾘーﾄ",null,null,null,null,"トンネル",null,null,null,null,"施工計画、施工設備及び積算",null,null,null,null,"建設環境",null,null,null,null,"機械",null,null,null,null,"電気電子",null,null,null,null,"土地調査",null,null,null,null,"土地評価",null,null,null,null,"物件",null,null,null,null,"機械工作物",null,null,null,null,"営業補償・特殊補償",null,null,null,null,"事業損失",null,null,null,null,"補償関連",null,null,null,null,"総合補償"]
[]
[null,24,null,null,null,null,null,null,"区                            分",null,null,null,null,null,null,null,null,null,null,null,null,null,null,null,null,null,null,null,null,null,null,null,null,null,null,null,null,null,null,null,null,null,null,null,null,null,null,"直     前     決     算     時"]
[null,null,null,null,null,null,null,null,null,null,null,null,null,null,null,null,null,null,null,null,null,null,null,null,null,null,null,null,null,null,null,null,null,null,null,null,null,null,null,null,null,null,null,null,null,null,null,null,null,null,null,null,null,null,null,null,null,null,null,null,null,null,null,null,null,null,null,null,null,null,null,null,null,null,null,"（千円）"]
[null,"自己資本額",null,null,null,null,null,"①",null,null,null,null,null,"（株主資本のうち外国資本）"]
[null,null,null,null,null,null,null,null,null,null,null,null,null,"（株主資本のうち資本金）"]
[null,null,null,null,null,null,null,null,null,null,null,"株　　主　　資　　本"]
[null,null,null,null,null,null,null,"②",null,null,null,"評価・換算差額等"]
[null,null,null,null,null,null,null,"③",null,null,null,"新株予約権"]
[null,null,null,null,null,null,null,"④",null,null,null,"株式引受権"]
[null,null,null,null,null,null,null,"⑤",null,null,null,"計　（Ｐ）",null,null,null,null,null,null,null,null,null,null,null,null,null,null,null,null,null,null,null,null,null,null,null,null,null,null,null,null,null,null,null,null,null,null,null,null,null,null,null,null,null,null,null,null,null,null,null,null,null,null,null,null,null,null,null,null,null,null,null,null,null,null,null,null,null,null,null,null,null,null,null,null,"28",null,null,null,null,"１",null,null,null,"外国籍会社",null,null,null,null,null,null,null,null,null,null,null,null,null,null,null,null,null,null,null,null,null,null,null,null,null,null,null,null,null,null,"３",null,null,null,"日本国籍会社"]
[null,null,null,null,null,null,null,null,null,null,null,null,null,null,null,null,null,null,null,null,null,null,null,null,null,null,null,null,null,null,null,null,null,null,null,null,null,null,null,null,null,null,null,null,null,null,null,null,null,null,null,null,null,null,null,null,null,null,null,null,null,null,null,null,null,null,null,null,null,null,null,null,null,null,null,null,null,null,null,null,null,null,null,null,"外資状況",null,null,null,null,"［ 国名 ：",null,null,null,null,null,null,null,"",null,null,null,null,null,null,null,null,null,null,null,null,null,null,null,null,null,null,null,null,"］",null,null,null,null,null,"［ 国名 ：",null,null,null,null,null,null,null,"",null,null,null,null,null,null,null,null,null,null,null,null,null,null,null,null,null,null,null,null,"]"]
["25",null,null,null,"損益計算書",null,null,null,null,null,null,null,null,null,null,null,null,null,"税引前当期利益（千円）",null,null,null,null,null,null,null,null,null,null,null,null,null,null,null,null,null,null,null,null,null,null,null,"（S）",null,null,null,null,null,null,null,null,null,null,null,null,null,null,null,null,null,null,null,null,null,null,null,null,null,null,null,null,null,null,null,null,null,null,null,null,null,null,null,null,null,null,null,null,null,null,"２",null,null,null,"日本国籍会社",null,null,null,null,null,null,null,null,null,null,null,null,null,null,null,null,null,null,null,null,null,null,null,null,null,null,null,null,null,null,null,null,null,null,null,null,null,null,"（ 外資比率 ：",null,null,null,null,null,null,null,null,null,null,null,null,null,null,null,null,"％   ）"]
[null,null,null,null,null,null,null,null,null,null,null,null,null,null,null,null,null,null,"①",null,null,null,"流 動 資 産（千円）",null,null,null,null,null,null,null,null,null,null,null,null,null,null,null,null,null,null,null,"（m）",null,null,null,null,null,null,null,null,null,null,null,null,null,null,null,null,null,null,null,null,null,null,null,null,null,null,null,null,null,null,null,null,null,null,null,null,null,null,null,null,null,null,null,null,null,null,"［ 国名 ：",null,null,null,null,null,null,null,"",null,null,null,null,null,null,null,null,null,null,null,null,null,null,null,null,null,null,null,null,"］",null,null,null,null,null,"［ 国名 ：",null,null,null,null,null,null,null,"",null,null,null,null,null,null,null,null,null,null,null,null,null,null,null,null,null,null,null,null,"]"]
["26",null,null,null,"貸借対照表",null,null,null,null,null,null,null,null,null,null,null,null,null,"②",null,null,null,"流 動 負 債（千円）",null,null,null,null,null,null,null,null,null,null,null,null,null,null,null,null,null,null,null,"（ｎ）",null,null,null,null,null,null,null,null,null,null,null,null,null,null,null,null,null,null,null,null,null,null,null,null,null,null,null,null,null,null,null,null,null,null,null,null,null,null,null,null,null,null,null,null,null,null,null,null,null,null,null,null,null,null,"（ 外資比率 ：   １００％   ）",null,null,null,null,null,null,null,null,null,null,null,null,null,null,null,null,null,null,null,null,null,null,null,null,null,null,null,null,null,null,null,null,null,null,"（ 外資比率 ：",null,null,null,null,null,null,null,null,null,null,null,null,null,null,null,null,"％   ）"]
[null,null,null,null,null,null,null,null,null,null,null,null,null,null,null,null,null,null,"③",null,null,null,"固 定 資 産（千円）",null,null,null,null,null,null,null,null,null,null,null,null,null,null,null,null,null,null,null,"（Q）"]
[null,null,null,null,null,null,null,null,null,null,null,null,null,null,null,null,null,null,"④",null,null,null,"総 資 本 額（千円）",null,null,null,null,null,null,null,null,null,null,null,null,null,null,null,null,null,null,null,"（R）",null,null,null,null,null,null,null,null,null,null,null,null,null,null,null,null,null,null,null,null,null,null,null,null,null,null,null,null,null,null,null,null,null,null,null,null,null,null,null,null,null,"29",null,null,null,null,"①",null,null," ","創                             業",null,null,null,null,null,null,null,null,null,null,null,null,null,null,null,null,null,null,null,null,null,null,null,null,null,null,null,null,null,"",null,null,null,null,null,null,null,"年",null,null,"",null,null,null,null,null,"月",null,null,"",null,null,null,null,null,"日"]
[null,null,null,null,null,null,null,null,null,null,null,null,null,null,null,null,null,null,null,null,null,null,null,null,null,null,null,null,null,null,null,null,null,null,null,null,null,null,null,null,null,null,null,null,null,null,null,null,null,null,null,null,null,null,null,null,null,null,null,null,null,null,null,null,null,null,null,null,null,null,null,null,null,null,null,null,null,null,null,null,null,null,null,null,"営業年数等",null,null,null,null,"②",null,null,null,"休   業   期   間   又   は",null,null,null,null,null,null,null,null,null,null,null,null,null,null,null,null,null,null,null,null,null,null,null,null,null,null,null,null,null,"",null,null,null,null,null,null,null,"年",null,null,"",null,null,null,null,null,"月",null,null,"",null,null,null,null,null,"日 から"]
["27",null,null,null,"経 営 比 率",null,null,null,null,null,null,null,null,null,null,null,null,null,"①",null,null,null,"総資本純利益率",null,null,null,null,null,null,null,null,null,null,null,null,null,null,null,null,null,null,null,null,null,null,null,null,null,null,null,null,null,null,"（S/R×100）",null,null,null,null,null,null,null,null,null,null,null,"．",null,null,null,null,null,null,null,null,null,"（％）",null,null,null,null,null,null,null,null,null,null,null,null,null,null,null,null,null,"転  （  廃  ）  業  の  期  間",null,null,null,null,null,null,null,null,null,null,null,null,null,null,null,null,null,null,null,null,null,null,null,null,null,null,null,null,null,"",null,null,null,null,null,null,null,"年",null,null,"",null,null,null,null,null,"月",null,null,"",null,null,null,null,null,"日 まで"]
[null,null,null,null,null,null,null,null,null,null,null,null,null,null,null,null,null,null,"②",null,null,null,"流動比率",null,null,null,null,null,null,null,null,null,null,null,null,null,null,null,null,null,null,null,null,null,null,null,null,null,null,null,null,null,null,"（m/ｎ×100）",null,null,null,null,null,null,null,null,null,null,null,"．",null,null,null,null,null,null,null,null,null,"（％）",null,null,null,null,null,null,null,null,null,null,null,null,null,"③",null,null,null,"現  組  織  へ  の  変  更",null,null,null,null,null,null,null,null,null,null,null,null,null,null,null,null,null,null,null,null,null,null,null,null,null,null,null,null,null,"",null,null,null,null,null,null,null,"年",null,null,"",null,null,null,null,null,"月",null,null,"",null,null,null,null,null,"日"]
[null,null,null,null,null,null,null,null,null,null,null,null,null,null,null,null,null,null,"③",null,null,null,"自己資本固定比率",null,null,null,null,null,null,null,null,null,null,null,null,null,null,null,null,null,null,null,null,null,null,null,null,null,null,null,null,null,null,"（P/Q×100）",null,null,null,null,null,null,null,null,null,null,null,"．",null,null,null,null,null,null,null,null,null,"（％）",null,null,null,null,null,null,null,null,null,null,null,null,null,"④",null,null,null,"営       業       年       数",null,null,null,null,null,null,null,null,null,null,null,null,null,null,null,null,null,null,null,null,null,null,null,null,null,null,null,null,null,null,null,null,null,null,null,null,null,null,null,null,null,null,null,null,null,null,null,null,null,null,null,null,null,null,null,null,null,"年"]
[]
["30",null,null,null,"常勤職員 の数",null,null,null,null,null,null,null,null,null,null,null,null,null,null,null,null,null,null,null,null,"①",null,null,null,"技    術    職    員",null,null,null,null,null,null,null,null,null,null,null,null,null,null,null,null,null,null,null,"②",null,null,null,"事    務    職    員",null,null,null,null,null,null,null,null,null,null,null,null,null,null,null,null,null,null,null,"③",null,null,null,"そ の 他 の 職 員",null,null,null,null,null,null,null,null,null,null,null,null,null,null,null,null,null,null,null,null,null,null,null,"④",null,null,null,null,null,null,"計",null,null,null,null,null,null,null,null,null,null,null,null,null,null,"⑤ 役職員等"]
[null,null,null,null,null,null,null,null,null,null,null,null,null,null,null,null,null,null,null,null,"（ 人 ）",null,null,null,null,null,null,null,null,null,null,null,null,null,null,null,null,null,null,null,null,null,null,null,null,null,null,null,null,null,null,null,null,null,null,null,null,null,null,null,null,null,null,null,null,null,null,null,null,null,null,null,null,null,null,null,null,null,null,null,null,null,null,null,null,null,null,null,null,null,null,null,null,null,null,null,null,null,null,null,null,null,null,null,null,null,null,null,null,null,null,null,null,null,null,null,null,null,null,null,null,null,null,null,null,null,null,null,null,null,null,null,null,null,null,null,null,"※  ⑤は④の内数"]

{"sheet":"申請書様式2","index":15,"n_rows":38,"n_cols":165,"rows_kept":38,"cut":false,"hidden":true,"merged":[[1,0,1,166],[4,110,4,125],[5,110,5,125],[4,129,4,145],[4,3,5,22],[4,38,5,73],[4,78,5,106],[2,14,2,42],[6,127,7,147],[6,148,6,155],[6,159,6,163],[7,148,7,155],[7,159,7,163],[6,0,7,25],[6,26,7,35],[6,36,7,75],[6,76,7,108],[6,109,7,126],[8,127,9,147],[8,148,8,155],[8,159,8,163],[9,148,9,155],[9,159,9,163],[8,0,9,25],[8,26,9,35],[8,36,9,75],[8,76,9,108],[8,109,9,126],[10,127,11,147],[10,148,10,155],[10,159,10,163],[11,148,11,155],[11,159,11,163],[10,0,11,25],[10,26,11,35],[10,36,11,75],[10,76,11,108],[10,109,11,126],[12,127,13,147],[12,148,12,155],[12,159,12,163],[13,148,13,155],[13,159,13,163],[12,0,13,25],[12,26,13,35],[12,36,13,75],[12,76,13,108],[12,109,13,126],[14,127,15,147],[14,148,14,155],[14,159,14,163],[15,148,15,155],[15,159,15,163],[14,0,15,25],[14,26,15,35],[14,36,15,75],[14,76,15,108],[14,109,15,126],[16,127,17,147],[16,148,16,155],[16,159,16,163],[17,148,17,155],[17,159,17,163],[16,0,17,25],[16,26,17,35],[16,36,17,75],[16,76,17,108],[16,109,17,126],[18,127,19,147],[18,148,18,155],[18,159,18,163],[19,148,19,155],[19,159,19,163],[18,0,19,25],[18,26,19,35],[18,36,19,75],[18,76,19,108],[18,109,19,126],[20,127,21,147],[20,148,20,155],[20,159,20,163],[21,148,21,155],[21,159,21,163],[20,0,21,25],[20,26,21,35],[20,36,21,75],[20,76,21,108],[20,109,21,126],[22,127,23,147],[22,148,22,155],[22,159,22,163],[23,148,23,155],[23,159,23,163],[22,0,23,25],[22,26,23,35],[22,36,23,75],[22,76,23,108],[22,109,23,126],[24,127,25,147],[24,148,24,155],[24,159,24,163],[25,148,25,155],[25,159,25,163],[24,0,25,25],[24,26,25,35],[24,36,25,75],[24,76,25,108],[24,109,25,126],[26,127,27,147],[26,148,26,155],[26,159,26,163],[27,148,27,155],[27,159,27,163],[26,0,27,25],[26,26,27,35],[26,36,27,75],[26,76,27,108],[26,109,27,126],[28,127,29,147],[28,148,28,155],[28,159,28,163],[29,148,29,155],[29,159,29,163],[28,0,29,25],[28,26,29,35],[28,36,29,75],[28,76,29,108],[28,109,29,126],[30,127,31,147],[30,148,30,155],[30,159,30,163],[31,148,31,155],[31,159,31,163],[30,0,31,25],[30,26,31,35],[30,36,31,75],[30,76,31,108],[30,109,31,126]]}
["※ 受付番号",null,null,null,null,null,null,null,null,null,null,null,null,null,null,null,null,null,null,null,null,null,null,null,null,null,null,null,null,null,null,null,null,null,null,null,null,null,null,null,null,null,null,null,null,null,"※ 業者コ－ド"]
["測     量     等     実     績     調     書"]
["（登録業種区分）"]
[]
[null,null,null,"注           文           者",null,null,null,null,null,null,null,null,null,null,null,null,null,null,null,null,null,null,null,null,null,null,"元請又は",null,null,null,null,null,null,null,null,null,null,null,"件                      名",null,null,null,null,null,null,null,null,null,null,null,null,null,null,null,null,null,null,null,null,null,null,null,null,null,null,null,null,null,null,null,null,null,null,null,null,null,null,null,"測 量 等 対 象 の 規 模 等",null,null,null,null,null,null,null,null,null,null,null,null,null,null,null,null,null,null,null,null,null,null,null,null,null,null,null,null,null,null,null,"業務履行場所の",null,null,null,null,null,null,null,null,null,null,null,null,null,null,null,null,null,null,"請負代金の額",null,null,null,null,null,null,null,null,null,null,null,null,null,null,null,null,null,null,"着   工   年   月"]
[null,null,null,null,null,null,null,null,null,null,null,null,null,null,null,null,null,null,null,null,null,null,null,null,null,null,"下請の別",null,null,null,null,null,null,null,null,null,null,null,null,null,null,null,null,null,null,null,null,null,null,null,null,null,null,null,null,null,null,null,null,null,null,null,null,null,null,null,null,null,null,null,null,null,null,null,null,null,null,null,null,null,null,null,null,null,null,null,null,null,null,null,null,null,null,null,null,null,null,null,null,null,null,null,null,null,null,null,null,null,null,null,"ある都道府県名",null,null,null,null,null,null,null,null,null,null,null,null,null,null,null,null,null,null,null,null,null,null,null,null,null,null,null,null,null,null,null,null,null,null,null,"（ 千円 ）",null,"完成（予定）年月"]
["",null,null,null,null,null,null,null,null,null,null,null,null,null,null,null,null,null,null,null,null,null,null,null,null,null,"",null,null,null,null,null,null,null,null,null,"",null,null,null,null,null,null,null,null,null,null,null,null,null,null,null,null,null,null,null,null,null,null,null,null,null,null,null,null,null,null,null,null,null,null,null,null,null,null,null,"",null,null,null,null,null,null,null,null,null,null,null,null,null,null,null,null,null,null,null,null,null,null,null,null,null,null,null,null,null,null,null,null,"",null,null,null,null,null,null,null,null,null,null,null,null,null,null,null,null,null,null,null,null,null,null,null,null,null,null,null,null,null,null,null,null,null,null,null,null,null,null,"",null,null,null,null,null,null,null,"年",null,null,"",null,null,null,null,"月"]
[null,null,null,null,null,null,null,null,null,null,null,null,null,null,null,null,null,null,null,null,null,null,null,null,null,null,null,null,null,null,null,null,null,null,null,null,null,null,null,null,null,null,null,null,null,null,null,null,null,null,null,null,null,null,null,null,null,null,null,null,null,null,null,null,null,null,null,null,null,null,null,null,null,null,null,null,null,null,null,null,null,null,null,null,null,null,null,null,null,null,null,null,null,null,null,null,null,null,null,null,null,null,null,null,null,null,null,null,null,null,null,null,null,null,null,null,null,null,null,null,null,null,null,null,null,null,null,null,null,null,null,null,null,null,null,null,null,null,null,null,null,null,null,null,null,null,null,null,"",null,null,null,null,null,null,null,"年",null,null,"",null,null,null,null,"月"]
["",null,null,null,null,null,null,null,null,null,null,null,null,null,null,null,null,null,null,null,null,null,null,null,null,null,"",null,null,null,null,null,null,null,null,null,"",null,null,null,null,null,null,null,null,null,null,null,null,null,null,null,null,null,null,null,null,null,null,null,null,null,null,null,null,null,null,null,null,null,null,null,null,null,null,null,"",null,null,null,null,null,null,null,null,null,null,null,null,null,null,null,null,null,null,null,null,null,null,null,null,null,null,null,null,null,null,null,null,"",null,null,null,null,null,null,null,null,null,null,null,null,null,null,null,null,null,null,null,null,null,null,null,null,null,null,null,null,null,null,null,null,null,null,null,null,null,null,"",null,null,null,null,null,null,null,"年",null,null,"",null,null,null,null,"月"]
[null,null,null,null,null,null,null,null,null,null,null,null,null,null,null,null,null,null,null,null,null,null,null,null,null,null,null,null,null,null,null,null,null,null,null,null,null,null,null,null,null,null,null,null,null,null,null,null,null,null,null,null,null,null,null,null,null,null,null,null,null,null,null,null,null,null,null,null,null,null,null,null,null,null,null,null,null,null,null,null,null,null,null,null,null,null,null,null,null,null,null,null,null,null,null,null,null,null,null,null,null,null,null,null,null,null,null,null,null,null,null,null,null,null,null,null,null,null,null,null,null,null,null,null,null,null,null,null,null,null,null,null,null,null,null,null,null,null,null,null,null,null,null,null,null,null,null,null,"",null,null,null,null,null,null,null,"年",null,null,"",null,null,null,null,"月"]
["",null,null,null,null,null,null,null,null,null,null,null,null,null,null,null,null,null,null,null,null,null,null,null,null,null,"",null,null,null,null,null,null,null,null,null,"",null,null,null,null,null,null,null,null,null,null,null,null,null,null,null,null,null,null,null,null,null,null,null,null,null,null,null,null,null,null,null,null,null,null,null,null,null,null,null,"",null,null,null,null,null,null,null,null,null,null,null,null,null,null,null,null,null,null,null,null,null,null,null,null,null,null,null,null,null,null,null,null,"",null,null,null,null,null,null,null,null,null,null,null,null,null,null,null,null,null,null,null,null,null,null,null,null,null,null,null,null,null,null,null,null,null,null,null,null,null,null,"",null,null,null,null,null,null,null,"年",null,null,"",null,null,null,null,"月"]
[null,null,null,null,null,null,null,null,null,null,null,null,null,null,null,null,null,null,null,null,null,null,null,null,null,null,null,null,null,null,null,null,null,null,null,null,null,null,null,null,null,null,null,null,null,null,null,null,null,null,null,null,null,null,null,null,null,null,null,null,null,null,null,null,null,null,null,null,null,null,null,null,null,null,null,null,null,null,null,null,null,null,null,null,null,null,null,null,null,null,null,null,null,null,null,null,null,null,null,null,null,null,null,null,null,null,null,null,null,null,null,null,null,null,null,null,null,null,null,null,null,null,null,null,null,null,null,null,null,null,null,null,null,null,null,null,null,null,null,null,null,null,null,null,null,null,null,null,"",null,null,null,null,null,null,null,"年",null,null,"",null,null,null,null,"月"]
["",null,null,null,null,null,null,null,null,null,null,null,null,null,null,null,null,null,null,null,null,null,null,null,null,null,"",null,null,null,null,null,null,null,null,null,"",null,null,null,null,null,null,null,null,null,null,null,null,null,null,null,null,null,null,null,null,null,null,null,null,null,null,null,null,null,null,null,null,null,null,null,null,null,null,null,"",null,null,null,null,null,null,null,null,null,null,null,null,null,null,null,null,null,null,null,null,null,null,null,null,null,null,null,null,null,null,null,null,"",null,null,null,null,null,null,null,null,null,null,null,null,null,null,null,null,null,null,null,null,null,null,null,null,null,null,null,null,null,null,null,null,null,null,null,null,null,null,"",null,null,null,null,null,null,null,"年",null,null,"",null,null,null,null,"月"]
[null,null,null,null,null,null,null,null,null,null,null,null,null,null,null,null,null,null,null,null,null,null,null,null,null,null,null,null,null,null,null,null,null,null,null,null,null,null,null,null,null,null,null,null,null,null,null,null,null,null,null,null,null,null,null,null,null,null,null,null,null,null,null,null,null,null,null,null,null,null,null,null,null,null,null,null,null,null,null,null,null,null,null,null,null,null,null,null,null,null,null,null,null,null,null,null,null,null,null,null,null,null,null,null,null,null,null,null,null,null,null,null,null,null,null,null,null,null,null,null,null,null,null,null,null,null,null,null,null,null,null,null,null,null,null,null,null,null,null,null,null,null,null,null,null,null,null,null,"",null,null,null,null,null,null,null,"年",null,null,"",null,null,null,null,"月"]
["",null,null,null,null,null,null,null,null,null,null,null,null,null,null,null,null,null,null,null,null,null,null,null,null,null,"",null,null,null,null,null,null,null,null,null,"",null,null,null,null,null,null,null,null,null,null,null,null,null,null,null,null,null,null,null,null,null,null,null,null,null,null,null,null,null,null,null,null,null,null,null,null,null,null,null,"",null,null,null,null,null,null,null,null,null,null,null,null,null,null,null,null,null,null,null,null,null,null,null,null,null,null,null,null,null,null,null,null,"",null,null,null,null,null,null,null,null,null,null,null,null,null,null,null,null,null,null,null,null,null,null,null,null,null,null,null,null,null,null,null,null,null,null,null,null,null,null,"",null,null,null,null,null,null,null,"年",null,null,"",null,null,null,null,"月"]
[null,null,null,null,null,null,null,null,null,null,null,null,null,null,null,null,null,null,null,null,null,null,null,null,null,null,null,null,null,null,null,null,null,null,null,null,null,null,null,null,null,null,null,null,null,null,null,null,null,null,null,null,null,null,null,null,null,null,null,null,null,null,null,null,null,null,null,null,null,null,null,null,null,null,null,null,null,null,null,null,null,null,null,null,null,null,null,null,null,null,null,null,null,null,null,null,null,null,null,null,null,null,null,null,null,null,null,null,null,null,null,null,null,null,null,null,null,null,null,null,null,null,null,null,null,null,null,null,null,null,null,null,null,null,null,null,null,null,null,null,null,null,null,null,null,null,null,null,"",null,null,null,null,null,null,null,"年",null,null,"",null,null,null,null,"月"]
["",null,null,null,null,null,null,null,null,null,null,null,null,null,null,null,null,null,null,null,null,null,null,null,null,null,"",null,null,null,null,null,null,null,null,null,"",null,null,null,null,null,null,null,null,null,null,null,null,null,null,null,null,null,null,null,null,null,null,null,null,null,null,null,null,null,null,null,null,null,null,null,null,null,null,null,"",null,null,null,null,null,null,null,null,null,null,null,null,null,null,null,null,null,null,null,null,null,null,null,null,null,null,null,null,null,null,null,null,"",null,null,null,null,null,null,null,null,null,null,null,null,null,null,null,null,null,null,null,null,null,null,null,null,null,null,null,null,null,null,null,null,null,null,null,null,null,null,"",null,null,null,null,null,null,null,"年",null,null,"",null,null,null,null,"月"]
[null,null,null,null,null,null,null,null,null,null,null,null,null,null,null,null,null,null,null,null,null,null,null,null,null,null,null,null,null,null,null,null,null,null,null,null,null,null,null,null,null,null,null,null,null,null,null,null,null,null,null,null,null,null,null,null,null,null,null,null,null,null,null,null,null,null,null,null,null,null,null,null,null,null,null,null,null,null,null,null,null,null,null,null,null,null,null,null,null,null,null,null,null,null,null,null,null,null,null,null,null,null,null,null,null,null,null,null,null,null,null,null,null,null,null,null,null,null,null,null,null,null,null,null,null,null,null,null,null,null,null,null,null,null,null,null,null,null,null,null,null,null,null,null,null,null,null,null,"",null,null,null,null,null,null,null,"年",null,null,"",null,null,null,null,"月"]
["",null,null,null,null,null,null,null,null,null,null,null,null,null,null,null,null,null,null,null,null,null,null,null,null,null,"",null,null,null,null,null,null,null,null,null,"",null,null,null,null,null,null,null,null,null,null,null,null,null,null,null,null,null,null,null,null,null,null,null,null,null,null,null,null,null,null,null,null,null,null,null,null,null,null,null,"",null,null,null,null,null,null,null,null,null,null,null,null,null,null,null,null,null,null,null,null,null,null,null,null,null,null,null,null,null,null,null,null,"",null,null,null,null,null,null,null,null,null,null,null,null,null,null,null,null,null,null,null,null,null,null,null,null,null,null,null,null,null,null,null,null,null,null,null,null,null,null,"",null,null,null,null,null,null,null,"年",null,null,"",null,null,null,null,"月"]
[null,null,null,null,null,null,null,null,null,null,null,null,null,null,null,null,null,null,null,null,null,null,null,null,null,null,null,null,null,null,null,null,null,null,null,null,null,null,null,null,null,null,null,null,null,null,null,null,null,null,null,null,null,null,null,null,null,null,null,null,null,null,null,null,null,null,null,null,null,null,null,null,null,null,null,null,null,null,null,null,null,null,null,null,null,null,null,null,null,null,null,null,null,null,null,null,null,null,null,null,null,null,null,null,null,null,null,null,null,null,null,null,null,null,null,null,null,null,null,null,null,null,null,null,null,null,null,null,null,null,null,null,null,null,null,null,null,null,null,null,null,null,null,null,null,null,null,null,"",null,null,null,null,null,null,null,"年",null,null,"",null,null,null,null,"月"]
["",null,null,null,null,null,null,null,null,null,null,null,null,null,null,null,null,null,null,null,null,null,null,null,null,null,"",null,null,null,null,null,null,null,null,null,"",null,null,null,null,null,null,null,null,null,null,null,null,null,null,null,null,null,null,null,null,null,null,null,null,null,null,null,null,null,null,null,null,null,null,null,null,null,null,null,"",null,null,null,null,null,null,null,null,null,null,null,null,null,null,null,null,null,null,null,null,null,null,null,null,null,null,null,null,null,null,null,null,"",null,null,null,null,null,null,null,null,null,null,null,null,null,null,null,null,null,null,null,null,null,null,null,null,null,null,null,null,null,null,null,null,null,null,null,null,null,null,"",null,null,null,null,null,null,null,"年",null,null,"",null,null,null,null,"月"]
[null,null,null,null,null,null,null,null,null,null,null,null,null,null,null,null,null,null,null,null,null,null,null,null,null,null,null,null,null,null,null,null,null,null,null,null,null,null,null,null,null,null,null,null,null,null,null,null,null,null,null,null,null,null,null,null,null,null,null,null,null,null,null,null,null,null,null,null,null,null,null,null,null,null,null,null,null,null,null,null,null,null,null,null,null,null,null,null,null,null,null,null,null,null,null,null,null,null,null,null,null,null,null,null,null,null,null,null,null,null,null,null,null,null,null,null,null,null,null,null,null,null,null,null,null,null,null,null,null,null,null,null,null,null,null,null,null,null,null,null,null,null,null,null,null,null,null,null,"",null,null,null,null,null,null,null,"年",null,null,"",null,null,null,null,"月"]
["",null,null,null,null,null,null,null,null,null,null,null,null,null,null,null,null,null,null,null,null,null,null,null,null,null,"",null,null,null,null,null,null,null,null,null,"",null,null,null,null,null,null,null,null,null,null,null,null,null,null,null,null,null,null,null,null,null,null,null,null,null,null,null,null,null,null,null,null,null,null,null,null,null,null,null,"",null,null,null,null,null,null,null,null,null,null,null,null,null,null,null,null,null,null,null,null,null,null,null,null,null,null,null,null,null,null,null,null,"",null,null,null,null,null,null,null,null,null,null,null,null,null,null,null,null,null,null,null,null,null,null,null,null,null,null,null,null,null,null,null,null,null,null,null,null,null,null,"",null,null,null,null,null,null,null,"年",null,null,"",null,null,null,null,"月"]
[null,null,null,null,null,null,null,null,null,null,null,null,null,null,null,null,null,null,null,null,null,null,null,null,null,null,null,null,null,null,null,null,null,null,null,null,null,null,null,null,null,null,null,null,null,null,null,null,null,null,null,null,null,null,null,null,null,null,null,null,null,null,null,null,null,null,null,null,null,null,null,null,null,null,null,null,null,null,null,null,null,null,null,null,null,null,null,null,null,null,null,null,null,null,null,null,null,null,null,null,null,null,null,null,null,null,null,null,null,null,null,null,null,null,null,null,null,null,null,null,null,null,null,null,null,null,null,null,null,null,null,null,null,null,null,null,null,null,null,null,null,null,null,null,null,null,null,null,"",null,null,null,null,null,null,null,"年",null,null,"",null,null,null,null,"月"]
["",null,null,null,null,null,null,null,null,null,null,null,null,null,null,null,null,null,null,null,null,null,null,null,null,null,"",null,null,null,null,null,null,null,null,null,"",null,null,null,null,null,null,null,null,null,null,null,null,null,null,null,null,null,null,null,null,null,null,null,null,null,null,null,null,null,null,null,null,null,null,null,null,null,null,null,"",null,null,null,null,null,null,null,null,null,null,null,null,null,null,null,null,null,null,null,null,null,null,null,null,null,null,null,null,null,null,null,null,"",null,null,null,null,null,null,null,null,null,null,null,null,null,null,null,null,null,null,null,null,null,null,null,null,null,null,null,null,null,null,null,null,null,null,null,null,null,null,"",null,null,null,null,null,null,null,"年",null,null,"",null,null,null,null,"月"]
[null,null,null,null,null,null,null,null,null,null,null,null,null,null,null,null,null,null,null,null,null,null,null,null,null,null,null,null,null,null,null,null,null,null,null,null,null,null,null,null,null,null,null,null,null,null,null,null,null,null,null,null,null,null,null,null,null,null,null,null,null,null,null,null,null,null,null,null,null,null,null,null,null,null,null,null,null,null,null,null,null,null,null,null,null,null,null,null,null,null,null,null,null,null,null,null,null,null,null,null,null,null,null,null,null,null,null,null,null,null,null,null,null,null,null,null,null,null,null,null,null,null,null,null,null,null,null,null,null,null,null,null,null,null,null,null,null,null,null,null,null,null,null,null,null,null,null,null,"",null,null,null,null,null,null,null,"年",null,null,"",null,null,null,null,"月"]
["",null,null,null,null,null,null,null,null,null,null,null,null,null,null,null,null,null,null,null,null,null,null,null,null,null,"",null,null,null,null,null,null,null,null,null,"",null,null,null,null,null,null,null,null,null,null,null,null,null,null,null,null,null,null,null,null,null,null,null,null,null,null,null,null,null,null,null,null,null,null,null,null,null,null,null,"",null,null,null,null,null,null,null,null,null,null,null,null,null,null,null,null,null,null,null,null,null,null,null,null,null,null,null,null,null,null,null,null,"",null,null,null,null,null,null,null,null,null,null,null,null,null,null,null,null,null,null,null,null,null,null,null,null,null,null,null,null,null,null,null,null,null,null,null,null,null,null,"",null,null,null,null,null,null,null,"年",null,null,"",null,null,null,null,"月"]
[null,null,null,null,null,null,null,null,null,null,null,null,null,null,null,null,null,null,null,null,null,null,null,null,null,null,null,null,null,null,null,null,null,null,null,null,null,null,null,null,null,null,null,null,null,null,null,null,null,null,null,null,null,null,null,null,null,null,null,null,null,null,null,null,null,null,null,null,null,null,null,null,null,null,null,null,null,null,null,null,null,null,null,null,null,null,null,null,null,null,null,null,null,null,null,null,null,null,null,null,null,null,null,null,null,null,null,null,null,null,null,null,null,null,null,null,null,null,null,null,null,null,null,null,null,null,null,null,null,null,null,null,null,null,null,null,null,null,null,null,null,null,null,null,null,null,null,null,"",null,null,null,null,null,null,null,"年",null,null,"",null,null,null,null,"月"]
["",null,null,null,null,null,null,null,null,null,null,null,null,null,null,null,null,null,null,null,null,null,null,null,null,null,"",null,null,null,null,null,null,null,null,null,"",null,null,null,null,null,null,null,null,null,null,null,null,null,null,null,null,null,null,null,null,null,null,null,null,null,null,null,null,null,null,null,null,null,null,null,null,null,null,null,"",null,null,null,null,null,null,null,null,null,null,null,null,null,null,null,null,null,null,null,null,null,null,null,null,null,null,null,null,null,null,null,null,"",null,null,null,null,null,null,null,null,null,null,null,null,null,null,null,null,null,null,null,null,null,null,null,null,null,null,null,null,null,null,null,null,null,null,null,null,null,null,"",null,null,null,null,null,null,null,"年",null,null,"",null,null,null,null,"月"]
[null,null,null,null,null,null,null,null,null,null,null,null,null,null,null,null,null,null,null,null,null,null,null,null,null,null,null,null,null,null,null,null,null,null,null,null,null,null,null,null,null,null,null,null,null,null,null,null,null,null,null,null,null,null,null,null,null,null,null,null,null,null,null,null,null,null,null,null,null,null,null,null,null,null,null,null,null,null,null,null,null,null,null,null,null,null,null,null,null,null,null,null,null,null,null,null,null,null,null,null,null,null,null,null,null,null,null,null,null,null,null,null,null,null,null,null,null,null,null,null,null,null,null,null,null,null,null,null,null,null,null,null,null,null,null,null,null,null,null,null,null,null,null,null,null,null,null,null,"",null,null,null,null,null,null,null,"年",null,null,"",null,null,null,null,"月"]
["",null,null,null,null,null,null,null,null,null,null,null,null,null,null,null,null,null,null,null,null,null,null,null,null,null,"",null,null,null,null,null,null,null,null,null,"",null,null,null,null,null,null,null,null,null,null,null,null,null,null,null,null,null,null,null,null,null,null,null,null,null,null,null,null,null,null,null,null,null,null,null,null,null,null,null,"",null,null,null,null,null,null,null,null,null,null,null,null,null,null,null,null,null,null,null,null,null,null,null,null,null,null,null,null,null,null,null,null,"",null,null,null,null,null,null,null,null,null,null,null,null,null,null,null,null,null,null,null,null,null,null,null,null,null,null,null,null,null,null,null,null,null,null,null,null,null,null,"",null,null,null,null,null,null,null,"年",null,null,"",null,null,null,null,"月"]
[null,null,null,null,null,null,null,null,null,null,null,null,null,null,null,null,null,null,null,null,null,null,null,null,null,null,null,null,null,null,null,null,null,null,null,null,null,null,null,null,null,null,null,null,null,null,null,null,null,null,null,null,null,null,null,null,null,null,null,null,null,null,null,null,null,null,null,null,null,null,null,null,null,null,null,null,null,null,null,null,null,null,null,null,null,null,null,null,null,null,null,null,null,null,null,null,null,null,null,null,null,null,null,null,null,null,null,null,null,null,null,null,null,null,null,null,null,null,null,null,null,null,null,null,null,null,null,null,null,null,null,null,null,null,null,null,null,null,null,null,null,null,null,null,null,null,null,null,"",null,null,null,null,null,null,null,"年",null,null,"",null,null,null,null,"月"]
["記載要領"]
[null,"１",null,null,"本表は、登録を受けた業種の各別又はその他の営業の種類の各別に作成すること。"]
[null,"２",null,null,"本表は、直前２年間の主な完成業務及び直前２年間に着手した主な未完成業務について記載すること。"]
[null,"３",null,null,"下請については、「注文者」の欄には元請業者名を記載し、「件名」の欄には下請件を記載すること。"]
[null,"４",null,null,"「測量等対象の規模等」は、例えば測量の面積・精度等、設計の階数・構造・延べ面積等を記載すること。"]
[null,"５",null,null,"「請負代金の額」は、消費税込みの金額を記載すること。"]

{"sheet":"申請書様式2_template","index":16,"n_rows":38,"n_cols":165,"rows_kept":38,"cut":false,"hidden":true,"merged":[[1,0,1,166],[2,14,2,42],[4,3,5,22],[4,38,5,73],[4,78,5,106],[4,110,4,125],[4,129,4,145],[5,110,5,125],[28,0,29,25],[28,26,29,35],[28,36,29,75],[28,76,29,108],[28,109,29,126],[28,127,29,147],[28,148,28,155],[28,159,28,163],[29,148,29,155],[29,159,29,163],[26,0,27,25],[26,26,27,35],[26,36,27,75],[26,76,27,108],[26,109,27,126],[26,127,27,147],[30,0,31,25],[30,26,31,35],[30,36,31,75],[30,76,31,108],[30,109,31,126],[30,127,31,147],[30,148,30,155],[30,159,30,163],[31,148,31,155],[31,159,31,163],[26,148,26,155],[26,159,26,163],[27,148,27,155],[27,159,27,163],[24,0,25,25],[24,26,25,35],[24,36,25,75],[24,76,25,108],[24,109,25,126],[24,127,25,147],[24,148,24,155],[24,159,24,163],[25,148,25,155],[25,159,25,163],[22,0,23,25],[22,26,23,35],[22,36,23,75],[22,76,23,108],[22,109,23,126],[22,127,23,147],[22,148,22,155],[22,159,22,163],[23,148,23,155],[23,159,23,163],[20,0,21,25],[20,26,21,35],[20,36,21,75],[20,76,21,108],[20,109,21,126],[20,127,21,147],[20,148,20,155],[20,159,20,163],[21,148,21,155],[21,159,21,163],[18,0,19,25],[18,26,19,35],[18,36,19,75],[18,76,19,108],[18,109,19,126],[18,127,19,147],[18,148,18,155],[18,159,18,163],[19,148,19,155],[19,159,19,163],[16,0,17,25],[16,26,17,35],[16,36,17,75],[16,76,17,108],[16,109,17,126],[16,127,17,147],[16,148,16,155],[16,159,16,163],[17,148,17,155],[17,159,17,163],[14,0,15,25],[14,26,15,35],[14,36,15,75],[14,76,15,108],[14,109,15,126],[14,127,15,147],[14,148,14,155],[14,159,14,163],[15,148,15,155],[15,159,15,163],[12,0,13,25],[12,26,13,35],[12,36,13,75],[12,76,13,108],[12,109,13,126],[12,127,13,147],[12,148,12,155],[12,159,12,163],[13,148,13,155],[13,159,13,163],[10,0,11,25],[10,26,11,35],[10,36,11,75],[10,76,11,108],[10,109,11,126],[10,127,11,147],[10,148,10,155],[10,159,10,163],[11,148,11,155],[11,159,11,163],[8,0,9,25],[8,26,9,35],[8,36,9,75],[8,76,9,108],[8,109,9,126],[8,127,9,147],[8,148,8,155],[8,159,8,163],[9,148,9,155],[9,159,9,163],[6,0,7,25],[6,26,7,35],[6,36,7,75],[6,76,7,108],[6,109,7,126],[6,127,7,147],[6,148,6,155],[6,159,6,163],[7,148,7,155],[7,159,7,163]]}
["※ 受付番号",null,null,null,null,null,null,null,null,null,null,null,null,null,null,null,null,null,null,null,null,null,null,null,null,null,null,null,null,null,null,null,null,null,null,null,null,null,null,null,null,null,null,null,null,null,"※ 業者コ－ド"]
["測     量     等     実     績     調     書"]
["（登録業種区分）"]
[]
[null,null,null,"注           文           者",null,null,null,null,null,null,null,null,null,null,null,null,null,null,null,null,null,null,null,null,null,null,"元請又は",null,null,null,null,null,null,null,null,null,null,null,"件                      名",null,null,null,null,null,null,null,null,null,null,null,null,null,null,null,null,null,null,null,null,null,null,null,null,null,null,null,null,null,null,null,null,null,null,null,null,null,null,null,"測 量 等 対 象 の 規 模 等",null,null,null,null,null,null,null,null,null,null,null,null,null,null,null,null,null,null,null,null,null,null,null,null,null,null,null,null,null,null,null,"業務履行場所の",null,null,null,null,null,null,null,null,null,null,null,null,null,null,null,null,null,null,"請負代金の額",null,null,null,null,null,null,null,null,null,null,null,null,null,null,null,null,null,null,"着   工   年   月"]
[null,null,null,null,null,null,null,null,null,null,null,null,null,null,null,null,null,null,null,null,null,null,null,null,null,null,"下請の別",null,null,null,null,null,null,null,null,null,null,null,null,null,null,null,null,null,null,null,null,null,null,null,null,null,null,null,null,null,null,null,null,null,null,null,null,null,null,null,null,null,null,null,null,null,null,null,null,null,null,null,null,null,null,null,null,null,null,null,null,null,null,null,null,null,null,null,null,null,null,null,null,null,null,null,null,null,null,null,null,null,null,null,"ある都道府県名",null,null,null,null,null,null,null,null,null,null,null,null,null,null,null,null,null,null,null,null,null,null,null,null,null,null,null,null,null,null,null,null,null,null,null,"（ 千円 ）",null,"完成（予定）年月"]
["",null,null,null,null,null,null,null,null,null,null,null,null,null,null,null,null,null,null,null,null,null,null,null,null,null,"",null,null,null,null,null,null,null,null,null,"",null,null,null,null,null,null,null,null,null,null,null,null,null,null,null,null,null,null,null,null,null,null,null,null,null,null,null,null,null,null,null,null,null,null,null,null,null,null,null,"",null,null,null,null,null,null,null,null,null,null,null,null,null,null,null,null,null,null,null,null,null,null,null,null,null,null,null,null,null,null,null,null,"",null,null,null,null,null,null,null,null,null,null,null,null,null,null,null,null,null,null,null,null,null,null,null,null,null,null,null,null,null,null,null,null,null,null,null,null,null,null,"",null,null,null,null,null,null,null,"年",null,null,"",null,null,null,null,"月"]
[null,null,null,null,null,null,null,null,null,null,null,null,null,null,null,null,null,null,null,null,null,null,null,null,null,null,null,null,null,null,null,null,null,null,null,null,null,null,null,null,null,null,null,null,null,null,null,null,null,null,null,null,null,null,null,null,null,null,null,null,null,null,null,null,null,null,null,null,null,null,null,null,null,null,null,null,null,null,null,null,null,null,null,null,null,null,null,null,null,null,null,null,null,null,null,null,null,null,null,null,null,null,null,null,null,null,null,null,null,null,null,null,null,null,null,null,null,null,null,null,null,null,null,null,null,null,null,null,null,null,null,null,null,null,null,null,null,null,null,null,null,null,null,null,null,null,null,null,"",null,null,null,null,null,null,null,"年",null,null,"",null,null,null,null,"月"]
["",null,null,null,null,null,null,null,null,null,null,null,null,null,null,null,null,null,null,null,null,null,null,null,null,null,"",null,null,null,null,null,null,null,null,null,"",null,null,null,null,null,null,null,null,null,null,null,null,null,null,null,null,null,null,null,null,null,null,null,null,null,null,null,null,null,null,null,null,null,null,null,null,null,null,null,"",null,null,null,null,null,null,null,null,null,null,null,null,null,null,null,null,null,null,null,null,null,null,null,null,null,null,null,null,null,null,null,null,"",null,null,null,null,null,null,null,null,null,null,null,null,null,null,null,null,null,null,null,null,null,null,null,null,null,null,null,null,null,null,null,null,null,null,null,null,null,null,"",null,null,null,null,null,null,null,"年",null,null,"",null,null,null,null,"月"]
[null,null,null,null,null,null,null,null,null,null,null,null,null,null,null,null,null,null,null,null,null,null,null,null,null,null,null,null,null,null,null,null,null,null,null,null,null,null,null,null,null,null,null,null,null,null,null,null,null,null,null,null,null,null,null,null,null,null,null,null,null,null,null,null,null,null,null,null,null,null,null,null,null,null,null,null,null,null,null,null,null,null,null,null,null,null,null,null,null,null,null,null,null,null,null,null,null,null,null,null,null,null,null,null,null,null,null,null,null,null,null,null,null,null,null,null,null,null,null,null,null,null,null,null,null,null,null,null,null,null,null,null,null,null,null,null,null,null,null,null,null,null,null,null,null,null,null,null,"",null,null,null,null,null,null,null,"年",null,null,"",null,null,null,null,"月"]
["",null,null,null,null,null,null,null,null,null,null,null,null,null,null,null,null,null,null,null,null,null,null,null,null,null,"",null,null,null,null,null,null,null,null,null,"",null,null,null,null,null,null,null,null,null,null,null,null,null,null,null,null,null,null,null,null,null,null,null,null,null,null,null,null,null,null,null,null,null,null,null,null,null,null,null,"",null,null,null,null,null,null,null,null,null,null,null,null,null,null,null,null,null,null,null,null,null,null,null,null,null,null,null,null,null,null,null,null,"",null,null,null,null,null,null,null,null,null,null,null,null,null,null,null,null,null,null,null,null,null,null,null,null,null,null,null,null,null,null,null,null,null,null,null,null,null,null,"",null,null,null,null,null,null,null,"年",null,null,"",null,null,null,null,"月"]
[null,null,null,null,null,null,null,null,null,null,null,null,null,null,null,null,null,null,null,null,null,null,null,null,null,null,null,null,null,null,null,null,null,null,null,null,null,null,null,null,null,null,null,null,null,null,null,null,null,null,null,null,null,null,null,null,null,null,null,null,null,null,null,null,null,null,null,null,null,null,null,null,null,null,null,null,null,null,null,null,null,null,null,null,null,null,null,null,null,null,null,null,null,null,null,null,null,null,null,null,null,null,null,null,null,null,null,null,null,null,null,null,null,null,null,null,null,null,null,null,null,null,null,null,null,null,null,null,null,null,null,null,null,null,null,null,null,null,null,null,null,null,null,null,null,null,null,null,"",null,null,null,null,null,null,null,"年",null,null,"",null,null,null,null,"月"]
["",null,null,null,null,null,null,null,null,null,null,null,null,null,null,null,null,null,null,null,null,null,null,null,null,null,"",null,null,null,null,null,null,null,null,null,"",null,null,null,null,null,null,null,null,null,null,null,null,null,null,null,null,null,null,null,null,null,null,null,null,null,null,null,null,null,null,null,null,null,null,null,null,null,null,null,"",null,null,null,null,null,null,null,null,null,null,null,null,null,null,null,null,null,null,null,null,null,null,null,null,null,null,null,null,null,null,null,null,"",null,null,null,null,null,null,null,null,null,null,null,null,null,null,null,null,null,null,null,null,null,null,null,null,null,null,null,null,null,null,null,null,null,null,null,null,null,null,"",null,null,null,null,null,null,null,"年",null,null,"",null,null,null,null,"月"]
[null,null,null,null,null,null,null,null,null,null,null,null,null,null,null,null,null,null,null,null,null,null,null,null,null,null,null,null,null,null,null,null,null,null,null,null,null,null,null,null,null,null,null,null,null,null,null,null,null,null,null,null,null,null,null,null,null,null,null,null,null,null,null,null,null,null,null,null,null,null,null,null,null,null,null,null,null,null,null,null,null,null,null,null,null,null,null,null,null,null,null,null,null,null,null,null,null,null,null,null,null,null,null,null,null,null,null,null,null,null,null,null,null,null,null,null,null,null,null,null,null,null,null,null,null,null,null,null,null,null,null,null,null,null,null,null,null,null,null,null,null,null,null,null,null,null,null,null,"",null,null,null,null,null,null,null,"年",null,null,"",null,null,null,null,"月"]
["",null,null,null,null,null,null,null,null,null,null,null,null,null,null,null,null,null,null,null,null,null,null,null,null,null,"",null,null,null,null,null,null,null,null,null,"",null,null,null,null,null,null,null,null,null,null,null,null,null,null,null,null,null,null,null,null,null,null,null,null,null,null,null,null,null,null,null,null,null,null,null,null,null,null,null,"",null,null,null,null,null,null,null,null,null,null,null,null,null,null,null,null,null,null,null,null,null,null,null,null,null,null,null,null,null,null,null,null,"",null,null,null,null,null,null,null,null,null,null,null,null,null,null,null,null,null,null,null,null,null,null,null,null,null,null,null,null,null,null,null,null,null,null,null,null,null,null,"",null,null,null,null,null,null,null,"年",null,null,"",null,null,null,null,"月"]
[null,null,null,null,null,null,null,null,null,null,null,null,null,null,null,null,null,null,null,null,null,null,null,null,null,null,null,null,null,null,null,null,null,null,null,null,null,null,null,null,null,null,null,null,null,null,null,null,null,null,null,null,null,null,null,null,null,null,null,null,null,null,null,null,null,null,null,null,null,null,null,null,null,null,null,null,null,null,null,null,null,null,null,null,null,null,null,null,null,null,null,null,null,null,null,null,null,null,null,null,null,null,null,null,null,null,null,null,null,null,null,null,null,null,null,null,null,null,null,null,null,null,null,null,null,null,null,null,null,null,null,null,null,null,null,null,null,null,null,null,null,null,null,null,null,null,null,null,"",null,null,null,null,null,null,null,"年",null,null,"",null,null,null,null,"月"]
["",null,null,null,null,null,null,null,null,null,null,null,null,null,null,null,null,null,null,null,null,null,null,null,null,null,"",null,null,null,null,null,null,null,null,null,"",null,null,null,null,null,null,null,null,null,null,null,null,null,null,null,null,null,null,null,null,null,null,null,null,null,null,null,null,null,null,null,null,null,null,null,null,null,null,null,"",null,null,null,null,null,null,null,null,null,null,null,null,null,null,null,null,null,null,null,null,null,null,null,null,null,null,null,null,null,null,null,null,"",null,null,null,null,null,null,null,null,null,null,null,null,null,null,null,null,null,null,null,null,null,null,null,null,null,null,null,null,null,null,null,null,null,null,null,null,null,null,"",null,null,null,null,null,null,null,"年",null,null,"",null,null,null,null,"月"]
[null,null,null,null,null,null,null,null,null,null,null,null,null,null,null,null,null,null,null,null,null,null,null,null,null,null,null,null,null,null,null,null,null,null,null,null,null,null,null,null,null,null,null,null,null,null,null,null,null,null,null,null,null,null,null,null,null,null,null,null,null,null,null,null,null,null,null,null,null,null,null,null,null,null,null,null,null,null,null,null,null,null,null,null,null,null,null,null,null,null,null,null,null,null,null,null,null,null,null,null,null,null,null,null,null,null,null,null,null,null,null,null,null,null,null,null,null,null,null,null,null,null,null,null,null,null,null,null,null,null,null,null,null,null,null,null,null,null,null,null,null,null,null,null,null,null,null,null,"",null,null,null,null,null,null,null,"年",null,null,"",null,null,null,null,"月"]
["",null,null,null,null,null,null,null,null,null,null,null,null,null,null,null,null,null,null,null,null,null,null,null,null,null,"",null,null,null,null,null,null,null,null,null,"",null,null,null,null,null,null,null,null,null,null,null,null,null,null,null,null,null,null,null,null,null,null,null,null,null,null,null,null,null,null,null,null,null,null,null,null,null,null,null,"",null,null,null,null,null,null,null,null,null,null,null,null,null,null,null,null,null,null,null,null,null,null,null,null,null,null,null,null,null,null,null,null,"",null,null,null,null,null,null,null,null,null,null,null,null,null,null,null,null,null,null,null,null,null,null,null,null,null,null,null,null,null,null,null,null,null,null,null,null,null,null,"",null,null,null,null,null,null,null,"年",null,null,"",null,null,null,null,"月"]
[null,null,null,null,null,null,null,null,null,null,null,null,null,null,null,null,null,null,null,null,null,null,null,null,null,null,null,null,null,null,null,null,null,null,null,null,null,null,null,null,null,null,null,null,null,null,null,null,null,null,null,null,null,null,null,null,null,null,null,null,null,null,null,null,null,null,null,null,null,null,null,null,null,null,null,null,null,null,null,null,null,null,null,null,null,null,null,null,null,null,null,null,null,null,null,null,null,null,null,null,null,null,null,null,null,null,null,null,null,null,null,null,null,null,null,null,null,null,null,null,null,null,null,null,null,null,null,null,null,null,null,null,null,null,null,null,null,null,null,null,null,null,null,null,null,null,null,null,"",null,null,null,null,null,null,null,"年",null,null,"",null,null,null,null,"月"]
["",null,null,null,null,null,null,null,null,null,null,null,null,null,null,null,null,null,null,null,null,null,null,null,null,null,"",null,null,null,null,null,null,null,null,null,"",null,null,null,null,null,null,null,null,null,null,null,null,null,null,null,null,null,null,null,null,null,null,null,null,null,null,null,null,null,null,null,null,null,null,null,null,null,null,null,"",null,null,null,null,null,null,null,null,null,null,null,null,null,null,null,null,null,null,null,null,null,null,null,null,null,null,null,null,null,null,null,null,"",null,null,null,null,null,null,null,null,null,null,null,null,null,null,null,null,null,null,null,null,null,null,null,null,null,null,null,null,null,null,null,null,null,null,null,null,null,null,"",null,null,null,null,null,null,null,"年",null,null,"",null,null,null,null,"月"]
[null,null,null,null,null,null,null,null,null,null,null,null,null,null,null,null,null,null,null,null,null,null,null,null,null,null,null,null,null,null,null,null,null,null,null,null,null,null,null,null,null,null,null,null,null,null,null,null,null,null,null,null,null,null,null,null,null,null,null,null,null,null,null,null,null,null,null,null,null,null,null,null,null,null,null,null,null,null,null,null,null,null,null,null,null,null,null,null,null,null,null,null,null,null,null,null,null,null,null,null,null,null,null,null,null,null,null,null,null,null,null,null,null,null,null,null,null,null,null,null,null,null,null,null,null,null,null,null,null,null,null,null,null,null,null,null,null,null,null,null,null,null,null,null,null,null,null,null,"",null,null,null,null,null,null,null,"年",null,null,"",null,null,null,null,"月"]
["",null,null,null,null,null,null,null,null,null,null,null,null,null,null,null,null,null,null,null,null,null,null,null,null,null,"",null,null,null,null,null,null,null,null,null,"",null,null,null,null,null,null,null,null,null,null,null,null,null,null,null,null,null,null,null,null,null,null,null,null,null,null,null,null,null,null,null,null,null,null,null,null,null,null,null,"",null,null,null,null,null,null,null,null,null,null,null,null,null,null,null,null,null,null,null,null,null,null,null,null,null,null,null,null,null,null,null,null,"",null,null,null,null,null,null,null,null,null,null,null,null,null,null,null,null,null,null,null,null,null,null,null,null,null,null,null,null,null,null,null,null,null,null,null,null,null,null,"",null,null,null,null,null,null,null,"年",null,null,"",null,null,null,null,"月"]
[null,null,null,null,null,null,null,null,null,null,null,null,null,null,null,null,null,null,null,null,null,null,null,null,null,null,null,null,null,null,null,null,null,null,null,null,null,null,null,null,null,null,null,null,null,null,null,null,null,null,null,null,null,null,null,null,null,null,null,null,null,null,null,null,null,null,null,null,null,null,null,null,null,null,null,null,null,null,null,null,null,null,null,null,null,null,null,null,null,null,null,null,null,null,null,null,null,null,null,null,null,null,null,null,null,null,null,null,null,null,null,null,null,null,null,null,null,null,null,null,null,null,null,null,null,null,null,null,null,null,null,null,null,null,null,null,null,null,null,null,null,null,null,null,null,null,null,null,"",null,null,null,null,null,null,null,"年",null,null,"",null,null,null,null,"月"]
["",null,null,null,null,null,null,null,null,null,null,null,null,null,null,null,null,null,null,null,null,null,null,null,null,null,"",null,null,null,null,null,null,null,null,null,"",null,null,null,null,null,null,null,null,null,null,null,null,null,null,null,null,null,null,null,null,null,null,null,null,null,null,null,null,null,null,null,null,null,null,null,null,null,null,null,"",null,null,null,null,null,null,null,null,null,null,null,null,null,null,null,null,null,null,null,null,null,null,null,null,null,null,null,null,null,null,null,null,"",null,null,null,null,null,null,null,null,null,null,null,null,null,null,null,null,null,null,null,null,null,null,null,null,null,null,null,null,null,null,null,null,null,null,null,null,null,null,"",null,null,null,null,null,null,null,"年",null,null,"",null,null,null,null,"月"]
[null,null,null,null,null,null,null,null,null,null,null,null,null,null,null,null,null,null,null,null,null,null,null,null,null,null,null,null,null,null,null,null,null,null,null,null,null,null,null,null,null,null,null,null,null,null,null,null,null,null,null,null,null,null,null,null,null,null,null,null,null,null,null,null,null,null,null,null,null,null,null,null,null,null,null,null,null,null,null,null,null,null,null,null,null,null,null,null,null,null,null,null,null,null,null,null,null,null,null,null,null,null,null,null,null,null,null,null,null,null,null,null,null,null,null,null,null,null,null,null,null,null,null,null,null,null,null,null,null,null,null,null,null,null,null,null,null,null,null,null,null,null,null,null,null,null,null,null,"",null,null,null,null,null,null,null,"年",null,null,"",null,null,null,null,"月"]
["",null,null,null,null,null,null,null,null,null,null,null,null,null,null,null,null,null,null,null,null,null,null,null,null,null,"",null,null,null,null,null,null,null,null,null,"",null,null,null,null,null,null,null,null,null,null,null,null,null,null,null,null,null,null,null,null,null,null,null,null,null,null,null,null,null,null,null,null,null,null,null,null,null,null,null,"",null,null,null,null,null,null,null,null,null,null,null,null,null,null,null,null,null,null,null,null,null,null,null,null,null,null,null,null,null,null,null,null,"",null,null,null,null,null,null,null,null,null,null,null,null,null,null,null,null,null,null,null,null,null,null,null,null,null,null,null,null,null,null,null,null,null,null,null,null,null,null,"",null,null,null,null,null,null,null,"年",null,null,"",null,null,null,null,"月"]
[null,null,null,null,null,null,null,null,null,null,null,null,null,null,null,null,null,null,null,null,null,null,null,null,null,null,null,null,null,null,null,null,null,null,null,null,null,null,null,null,null,null,null,null,null,null,null,null,null,null,null,null,null,null,null,null,null,null,null,null,null,null,null,null,null,null,null,null,null,null,null,null,null,null,null,null,null,null,null,null,null,null,null,null,null,null,null,null,null,null,null,null,null,null,null,null,null,null,null,null,null,null,null,null,null,null,null,null,null,null,null,null,null,null,null,null,null,null,null,null,null,null,null,null,null,null,null,null,null,null,null,null,null,null,null,null,null,null,null,null,null,null,null,null,null,null,null,null,"",null,null,null,null,null,null,null,"年",null,null,"",null,null,null,null,"月"]
["",null,null,null,null,null,null,null,null,null,null,null,null,null,null,null,null,null,null,null,null,null,null,null,null,null,"",null,null,null,null,null,null,null,null,null,"",null,null,null,null,null,null,null,null,null,null,null,null,null,null,null,null,null,null,null,null,null,null,null,null,null,null,null,null,null,null,null,null,null,null,null,null,null,null,null,"",null,null,null,null,null,null,null,null,null,null,null,null,null,null,null,null,null,null,null,null,null,null,null,null,null,null,null,null,null,null,null,null,"",null,null,null,null,null,null,null,null,null,null,null,null,null,null,null,null,null,null,null,null,null,null,null,null,null,null,null,null,null,null,null,null,null,null,null,null,null,null,"",null,null,null,null,null,null,null,"年",null,null,"",null,null,null,null,"月"]
[null,null,null,null,null,null,null,null,null,null,null,null,null,null,null,null,null,null,null,null,null,null,null,null,null,null,null,null,null,null,null,null,null,null,null,null,null,null,null,null,null,null,null,null,null,null,null,null,null,null,null,null,null,null,null,null,null,null,null,null,null,null,null,null,null,null,null,null,null,null,null,null,null,null,null,null,null,null,null,null,null,null,null,null,null,null,null,null,null,null,null,null,null,null,null,null,null,null,null,null,null,null,null,null,null,null,null,null,null,null,null,null,null,null,null,null,null,null,null,null,null,null,null,null,null,null,null,null,null,null,null,null,null,null,null,null,null,null,null,null,null,null,null,null,null,null,null,null,"",null,null,null,null,null,null,null,"年",null,null,"",null,null,null,null,"月"]
["",null,null,null,null,null,null,null,null,null,null,null,null,null,null,null,null,null,null,null,null,null,null,null,null,null,"",null,null,null,null,null,null,null,null,null,"",null,null,null,null,null,null,null,null,null,null,null,null,null,null,null,null,null,null,null,null,null,null,null,null,null,null,null,null,null,null,null,null,null,null,null,null,null,null,null,"",null,null,null,null,null,null,null,null,null,null,null,null,null,null,null,null,null,null,null,null,null,null,null,null,null,null,null,null,null,null,null,null,"",null,null,null,null,null,null,null,null,null,null,null,null,null,null,null,null,null,null,null,null,null,null,null,null,null,null,null,null,null,null,null,null,null,null,null,null,null,null,"",null,null,null,null,null,null,null,"年",null,null,"",null,null,null,null,"月"]
[null,null,null,null,null,null,null,null,null,null,null,null,null,null,null,null,null,null,null,null,null,null,null,null,null,null,null,null,null,null,null,null,null,null,null,null,null,null,null,null,null,null,null,null,null,null,null,null,null,null,null,null,null,null,null,null,null,null,null,null,null,null,null,null,null,null,null,null,null,null,null,null,null,null,null,null,null,null,null,null,null,null,null,null,null,null,null,null,null,null,null,null,null,null,null,null,null,null,null,null,null,null,null,null,null,null,null,null,null,null,null,null,null,null,null,null,null,null,null,null,null,null,null,null,null,null,null,null,null,null,null,null,null,null,null,null,null,null,null,null,null,null,null,null,null,null,null,null,"",null,null,null,null,null,null,null,"年",null,null,"",null,null,null,null,"月"]
["記載要領"]
[null,"１",null,null,"本表は、登録を受けた業種の各別又はその他の営業の種類の各別に作成すること。"]
[null,"２",null,null,"本表は、直前２年間の主な完成業務及び直前２年間に着手した主な未完成業務について記載すること。"]
[null,"３",null,null,"下請については、「注文者」の欄には元請業者名を記載し、「件名」の欄には下請件を記載すること。"]
[null,"４",null,null,"「測量等対象の規模等」は、例えば測量の面積・精度等、設計の階数・構造・延べ面積等を記載すること。"]
[null,"５",null,null,"「請負代金の額」は、消費税込みの金額を記載すること。"]

{"sheet":"申請書様式3","index":17,"n_rows":27,"n_cols":138,"rows_kept":27,"cut":false,"hidden":true,"merged":[[1,0,1,139],[4,1,5,24],[4,73,5,115],[4,122,5,137],[4,30,4,65],[5,30,5,44],[2,7,2,42],[20,0,20,25],[11,0,11,25],[12,0,12,25],[13,0,13,25],[14,0,14,25],[15,0,15,25],[16,0,16,25],[17,0,17,25],[18,0,18,25],[19,0,19,25],[6,0,6,25],[7,0,7,25],[8,0,8,25],[9,0,9,25],[10,0,10,25],[6,27,6,47],[7,27,7,47],[8,27,8,47],[9,27,9,47],[10,27,10,47],[16,27,16,47],[17,27,17,47],[18,27,18,47],[19,27,19,47],[20,27,20,47],[11,27,11,47],[12,27,12,47],[13,27,13,47],[14,27,14,47],[15,27,15,47],[18,48,18,68],[19,48,19,68],[20,48,20,68],[11,48,11,68],[12,48,12,68],[13,48,13,68],[14,48,14,68],[15,48,15,68],[16,48,16,68],[17,48,17,68],[6,48,6,68],[7,48,7,68],[8,48,8,68],[9,48,9,68],[10,48,10,68],[11,69,11,119],[12,69,12,119],[13,69,13,119],[14,69,14,119],[15,69,15,119],[6,69,6,119],[7,69,7,119],[8,69,8,119],[9,69,9,119],[10,69,10,119],[11,120,11,127],[12,120,12,127],[13,120,13,127],[14,120,14,127],[15,120,15,127],[6,120,6,127],[7,120,7,127],[8,120,8,127],[9,120,9,127],[10,120,10,127],[11,131,11,136],[12,131,12,136],[13,131,13,136],[14,131,14,136],[15,131,15,136],[6,131,6,136],[7,131,7,136],[8,131,8,136],[9,131,9,136],[10,131,10,136],[16,131,16,136],[17,131,17,136],[18,131,18,136],[19,131,19,136],[20,131,20,136],[16,120,16,127],[17,120,17,127],[18,120,18,127],[19,120,19,127],[20,120,20,127],[16,69,16,119],[17,69,17,119],[18,69,18,119],[19,69,19,119],[20,69,20,119]]}
["※ 受付番号",null,null,null,null,null,null,null,null,null,null,null,null,null,null,null,null,null,null,null,null,null,null,null,null,null,null,null,null,null,null,null,null,null,null,null,null,null,null,null,null,null,null,null,null,null,"※ 業者コ－ド"]
["技        術        者        経        歴        書"]
["（種類）"]
[]
[null,"氏                   名",null,null,null,null,null,null,null,null,null,null,null,null,null,null,null,null,null,null,null,null,null,null,null,null,null,null,null,null,"法   令   に   よ   る   免   許   等",null,null,null,null,null,null,null,null,null,null,null,null,null,null,null,null,null,null,null,null,null,null,null,null,null,null,null,null,null,null,null,null,null,null,null,null,null,null,null,null,null,null,"実              務             経             歴 ",null,null,null,null,null,null,null,null,null,null,null,null,null,null,null,null,null,null,null,null,null,null,null,null,null,null,null,null,null,null,null,null,null,null,null,null,null,null,null,null,null,null,null,null,null,null,null,null,"実務経験年月数"]
[null,null,null,null,null,null,null,null,null,null,null,null,null,null,null,null,null,null,null,null,null,null,null,null,null,null,null,null,null,null,"名          称",null,null,null,null,null,null,null,null,null,null,null,null,null,null,null,null,null,null,null,null,"取  得  年  月  日"]
["",null,null,null,null,null,null,null,null,null,null,null,null,null,null,null,null,null,null,null,null,null,null,null,null,null,null,"",null,null,null,null,null,null,null,null,null,null,null,null,null,null,null,null,null,null,null,null,"",null,null,null,null,null,null,null,null,null,null,null,null,null,null,null,null,null,null,null,null,"",null,null,null,null,null,null,null,null,null,null,null,null,null,null,null,null,null,null,null,null,null,null,null,null,null,null,null,null,null,null,null,null,null,null,null,null,null,null,null,null,null,null,null,null,null,null,null,null,null,null,"",null,null,null,null,null,null,null,"年",null,null,"",null,null,null,null,null,"月"]
["",null,null,null,null,null,null,null,null,null,null,null,null,null,null,null,null,null,null,null,null,null,null,null,null,null,null,"",null,null,null,null,null,null,null,null,null,null,null,null,null,null,null,null,null,null,null,null,"",null,null,null,null,null,null,null,null,null,null,null,null,null,null,null,null,null,null,null,null,"",null,null,null,null,null,null,null,null,null,null,null,null,null,null,null,null,null,null,null,null,null,null,null,null,null,null,null,null,null,null,null,null,null,null,null,null,null,null,null,null,null,null,null,null,null,null,null,null,null,null,"",null,null,null,null,null,null,null,"年",null,null,"",null,null,null,null,null,"月"]
["",null,null,null,null,null,null,null,null,null,null,null,null,null,null,null,null,null,null,null,null,null,null,null,null,null,null,"",null,null,null,null,null,null,null,null,null,null,null,null,null,null,null,null,null,null,null,null,"",null,null,null,null,null,null,null,null,null,null,null,null,null,null,null,null,null,null,null,null,"",null,null,null,null,null,null,null,null,null,null,null,null,null,null,null,null,null,null,null,null,null,null,null,null,null,null,null,null,null,null,null,null,null,null,null,null,null,null,null,null,null,null,null,null,null,null,null,null,null,null,"",null,null,null,null,null,null,null,"年",null,null,"",null,null,null,null,null,"月"]
["",null,null,null,null,null,null,null,null,null,null,null,null,null,null,null,null,null,null,null,null,null,null,null,null,null,null,"",null,null,null,null,null,null,null,null,null,null,null,null,null,null,null,null,null,null,null,null,"",null,null,null,null,null,null,null,null,null,null,null,null,null,null,null,null,null,null,null,null,"",null,null,null,null,null,null,null,null,null,null,null,null,null,null,null,null,null,null,null,null,null,null,null,null,null,null,null,null,null,null,null,null,null,null,null,null,null,null,null,null,null,null,null,null,null,null,null,null,null,null,"",null,null,null,null,null,null,null,"年",null,null,"",null,null,null,null,null,"月"]
["",null,null,null,null,null,null,null,null,null,null,null,null,null,null,null,null,null,null,null,null,null,null,null,null,null,null,"",null,null,null,null,null,null,null,null,null,null,null,null,null,null,null,null,null,null,null,null,"",null,null,null,null,null,null,null,null,null,null,null,null,null,null,null,null,null,null,null,null,"",null,null,null,null,null,null,null,null,null,null,null,null,null,null,null,null,null,null,null,null,null,null,null,null,null,null,null,null,null,null,null,null,null,null,null,null,null,null,null,null,null,null,null,null,null,null,null,null,null,null,"",null,null,null,null,null,null,null,"年",null,null,"",null,null,null,null,null,"月"]
["",null,null,null,null,null,null,null,null,null,null,null,null,null,null,null,null,null,null,null,null,null,null,null,null,null,null,"",null,null,null,null,null,null,null,null,null,null,null,null,null,null,null,null,null,null,null,null,"",null,null,null,null,null,null,null,null,null,null,null,null,null,null,null,null,null,null,null,null,"",null,null,null,null,null,null,null,null,null,null,null,null,null,null,null,null,null,null,null,null,null,null,null,null,null,null,null,null,null,null,null,null,null,null,null,null,null,null,null,null,null,null,null,null,null,null,null,null,null,null,"",null,null,null,null,null,null,null,"年",null,null,"",null,null,null,null,null,"月"]
["",null,null,null,null,null,null,null,null,null,null,null,null,null,null,null,null,null,null,null,null,null,null,null,null,null,null,"",null,null,null,null,null,null,null,null,null,null,null,null,null,null,null,null,null,null,null,null,"",null,null,null,null,null,null,null,null,null,null,null,null,null,null,null,null,null,null,null,null,"",null,null,null,null,null,null,null,null,null,null,null,null,null,null,null,null,null,null,null,null,null,null,null,null,null,null,null,null,null,null,null,null,null,null,null,null,null,null,null,null,null,null,null,null,null,null,null,null,null,null,"",null,null,null,null,null,null,null,"年",null,null,"",null,null,null,null,null,"月"]
["",null,null,null,null,null,null,null,null,null,null,null,null,null,null,null,null,null,null,null,null,null,null,null,null,null,null,"",null,null,null,null,null,null,null,null,null,null,null,null,null,null,null,null,null,null,null,null,"",null,null,null,null,null,null,null,null,null,null,null,null,null,null,null,null,null,null,null,null,"",null,null,null,null,null,null,null,null,null,null,null,null,null,null,null,null,null,null,null,null,null,null,null,null,null,null,null,null,null,null,null,null,null,null,null,null,null,null,null,null,null,null,null,null,null,null,null,null,null,null,"",null,null,null,null,null,null,null,"年",null,null,"",null,null,null,null,null,"月"]
["",null,null,null,null,null,null,null,null,null,null,null,null,null,null,null,null,null,null,null,null,null,null,null,null,null,null,"",null,null,null,null,null,null,null,null,null,null,null,null,null,null,null,null,null,null,null,null,"",null,null,null,null,null,null,null,null,null,null,null,null,null,null,null,null,null,null,null,null,"",null,null,null,null,null,null,null,null,null,null,null,null,null,null,null,null,null,null,null,null,null,null,null,null,null,null,null,null,null,null,null,null,null,null,null,null,null,null,null,null,null,null,null,null,null,null,null,null,null,null,"",null,null,null,null,null,null,null,"年",null,null,"",null,null,null,null,null,"月"]
["",null,null,null,null,null,null,null,null,null,null,null,null,null,null,null,null,null,null,null,null,null,null,null,null,null,null,"",null,null,null,null,null,null,null,null,null,null,null,null,null,null,null,null,null,null,null,null,"",null,null,null,null,null,null,null,null,null,null,null,null,null,null,null,null,null,null,null,null,"",null,null,null,null,null,null,null,null,null,null,null,null,null,null,null,null,null,null,null,null,null,null,null,null,null,null,null,null,null,null,null,null,null,null,null,null,null,null,null,null,null,null,null,null,null,null,null,null,null,null,"",null,null,null,null,null,null,null,"年",null,null,"",null,null,null,null,null,"月"]
["",null,null,null,null,null,null,null,null,null,null,null,null,null,null,null,null,null,null,null,null,null,null,null,null,null,null,"",null,null,null,null,null,null,null,null,null,null,null,null,null,null,null,null,null,null,null,null,"",null,null,null,null,null,null,null,null,null,null,null,null,null,null,null,null,null,null,null,null,"",null,null,null,null,null,null,null,null,null,null,null,null,null,null,null,null,null,null,null,null,null,null,null,null,null,null,null,null,null,null,null,null,null,null,null,null,null,null,null,null,null,null,null,null,null,null,null,null,null,null,"",null,null,null,null,null,null,null,"年",null,null,"",null,null,null,null,null,"月"]
["",null,null,null,null,null,null,null,null,null,null,null,null,null,null,null,null,null,null,null,null,null,null,null,null,null,null,"",null,null,null,null,null,null,null,null,null,null,null,null,null,null,null,null,null,null,null,null,"",null,null,null,null,null,null,null,null,null,null,null,null,null,null,null,null,null,null,null,null,"",null,null,null,null,null,null,null,null,null,null,null,null,null,null,null,null,null,null,null,null,null,null,null,null,null,null,null,null,null,null,null,null,null,null,null,null,null,null,null,null,null,null,null,null,null,null,null,null,null,null,"",null,null,null,null,null,null,null,"年",null,null,"",null,null,null,null,null,"月"]
["",null,null,null,null,null,null,null,null,null,null,null,null,null,null,null,null,null,null,null,null,null,null,null,null,null,null,"",null,null,null,null,null,null,null,null,null,null,null,null,null,null,null,null,null,null,null,null,"",null,null,null,null,null,null,null,null,null,null,null,null,null,null,null,null,null,null,null,null,"",null,null,null,null,null,null,null,null,null,null,null,null,null,null,null,null,null,null,null,null,null,null,null,null,null,null,null,null,null,null,null,null,null,null,null,null,null,null,null,null,null,null,null,null,null,null,null,null,null,null,"",null,null,null,null,null,null,null,"年",null,null,"",null,null,null,null,null,"月"]
["",null,null,null,null,null,null,null,null,null,null,null,null,null,null,null,null,null,null,null,null,null,null,null,null,null,null,"",null,null,null,null,null,null,null,null,null,null,null,null,null,null,null,null,null,null,null,null,"",null,null,null,null,null,null,null,null,null,null,null,null,null,null,null,null,null,null,null,null,"",null,null,null,null,null,null,null,null,null,null,null,null,null,null,null,null,null,null,null,null,null,null,null,null,null,null,null,null,null,null,null,null,null,null,null,null,null,null,null,null,null,null,null,null,null,null,null,null,null,null,"",null,null,null,null,null,null,null,"年",null,null,"",null,null,null,null,null,"月"]
["",null,null,null,null,null,null,null,null,null,null,null,null,null,null,null,null,null,null,null,null,null,null,null,null,null,null,"",null,null,null,null,null,null,null,null,null,null,null,null,null,null,null,null,null,null,null,null,"",null,null,null,null,null,null,null,null,null,null,null,null,null,null,null,null,null,null,null,null,"",null,null,null,null,null,null,null,null,null,null,null,null,null,null,null,null,null,null,null,null,null,null,null,null,null,null,null,null,null,null,null,null,null,null,null,null,null,null,null,null,null,null,null,null,null,null,null,null,null,null,"",null,null,null,null,null,null,null,"年",null,null,"",null,null,null,null,null,"月"]
["記載要領"]
[null,"１",null,null,"本表は、土木、建築若しくは設備又は職種の各別に作成すること。"]
[null,null,null,null,"また、「氏名」の記載は、営業所（本店又は支店若しくは常時契約する事務所）ごとにまとめて行い、その直前に、（   ）書きで当該営業所名を記載すること。"]
[null,"２",null,null,"「法令による免許等」の欄には、業務に関し法律又は命令による免許又は技術若しくは技能の認定を受けたものを記載すること。"]
[null,null,null,null,"（例 ： ○○建築士、○○土木施工管理技士）"]
[null,"３",null,null,"「実務経歴」の欄には、最近のものから記載し、純粋に測量、建設コンサルタント等業務に従事した職種及び地位を記載すること。"]

{"sheet":"申請書様式3_template","index":18,"n_rows":27,"n_cols":138,"rows_kept":27,"cut":false,"hidden":true,"merged":[[6,131,6,136],[1,0,1,139],[2,7,2,42],[4,1,5,24],[4,30,4,65],[4,73,5,115],[4,122,5,137],[5,30,5,44],[6,0,6,25],[6,27,6,47],[6,48,6,68],[6,69,6,119],[6,120,6,127],[8,131,8,136],[7,0,7,25],[7,27,7,47],[7,48,7,68],[7,69,7,119],[7,120,7,127],[7,131,7,136],[8,0,8,25],[8,27,8,47],[8,48,8,68],[8,69,8,119],[8,120,8,127],[10,131,10,136],[9,0,9,25],[9,27,9,47],[9,48,9,68],[9,69,9,119],[9,120,9,127],[9,131,9,136],[10,0,10,25],[10,27,10,47],[10,48,10,68],[10,69,10,119],[10,120,10,127],[12,131,12,136],[11,0,11,25],[11,27,11,47],[11,48,11,68],[11,69,11,119],[11,120,11,127],[11,131,11,136],[12,0,12,25],[12,27,12,47],[12,48,12,68],[12,69,12,119],[12,120,12,127],[14,131,14,136],[13,0,13,25],[13,27,13,47],[13,48,13,68],[13,69,13,119],[13,120,13,127],[13,131,13,136],[14,0,14,25],[14,27,14,47],[14,48,14,68],[14,69,14,119],[14,120,14,127],[16,131,16,136],[15,0,15,25],[15,27,15,47],[15,48,15,68],[15,69,15,119],[15,120,15,127],[15,131,15,136],[16,0,16,25],[16,27,16,47],[16,48,16,68],[16,69,16,119],[16,120,16,127],[18,131,18,136],[17,0,17,25],[17,27,17,47],[17,48,17,68],[17,69,17,119],[17,120,17,127],[17,131,17,136],[18,0,18,25],[18,27,18,47],[18,48,18,68],[18,69,18,119],[18,120,18,127],[20,131,20,136],[19,0,19,25],[19,27,19,47],[19,48,19,68],[19,69,19,119],[19,120,19,127],[19,131,19,136],[20,0,20,25],[20,27,20,47],[20,48,20,68],[20,69,20,119],[20,120,20,127]]}
["※ 受付番号",null,null,null,null,null,null,null,null,null,null,null,null,null,null,null,null,null,null,null,null,null,null,null,null,null,null,null,null,null,null,null,null,null,null,null,null,null,null,null,null,null,null,null,null,null,"※ 業者コ－ド"]
["技        術        者        経        歴        書"]
["（種類）"]
[]
[null,"氏                   名",null,null,null,null,null,null,null,null,null,null,null,null,null,null,null,null,null,null,null,null,null,null,null,null,null,null,null,null,"法   令   に   よ   る   免   許   等",null,null,null,null,null,null,null,null,null,null,null,null,null,null,null,null,null,null,null,null,null,null,null,null,null,null,null,null,null,null,null,null,null,null,null,null,null,null,null,null,null,null,"実              務             経             歴 ",null,null,null,null,null,null,null,null,null,null,null,null,null,null,null,null,null,null,null,null,null,null,null,null,null,null,null,null,null,null,null,null,null,null,null,null,null,null,null,null,null,null,null,null,null,null,null,null,"実務経験年月数"]
[null,null,null,null,null,null,null,null,null,null,null,null,null,null,null,null,null,null,null,null,null,null,null,null,null,null,null,null,null,null,"名          称",null,null,null,null,null,null,null,null,null,null,null,null,null,null,null,null,null,null,null,null,"取  得  年  月  日"]
["",null,null,null,null,null,null,null,null,null,null,null,null,null,null,null,null,null,null,null,null,null,null,null,null,null,null,"",null,null,null,null,null,null,null,null,null,null,null,null,null,null,null,null,null,null,null,null,"",null,null,null,null,null,null,null,null,null,null,null,null,null,null,null,null,null,null,null,null,"",null,null,null,null,null,null,null,null,null,null,null,null,null,null,null,null,null,null,null,null,null,null,null,null,null,null,null,null,null,null,null,null,null,null,null,null,null,null,null,null,null,null,null,null,null,null,null,null,null,null,"",null,null,null,null,null,null,null,"年",null,null,"",null,null,null,null,null,"月"]
["",null,null,null,null,null,null,null,null,null,null,null,null,null,null,null,null,null,null,null,null,null,null,null,null,null,null,"",null,null,null,null,null,null,null,null,null,null,null,null,null,null,null,null,null,null,null,null,"",null,null,null,null,null,null,null,null,null,null,null,null,null,null,null,null,null,null,null,null,"",null,null,null,null,null,null,null,null,null,null,null,null,null,null,null,null,null,null,null,null,null,null,null,null,null,null,null,null,null,null,null,null,null,null,null,null,null,null,null,null,null,null,null,null,null,null,null,null,null,null,"",null,null,null,null,null,null,null,"年",null,null,"",null,null,null,null,null,"月"]
["",null,null,null,null,null,null,null,null,null,null,null,null,null,null,null,null,null,null,null,null,null,null,null,null,null,null,"",null,null,null,null,null,null,null,null,null,null,null,null,null,null,null,null,null,null,null,null,"",null,null,null,null,null,null,null,null,null,null,null,null,null,null,null,null,null,null,null,null,"",null,null,null,null,null,null,null,null,null,null,null,null,null,null,null,null,null,null,null,null,null,null,null,null,null,null,null,null,null,null,null,null,null,null,null,null,null,null,null,null,null,null,null,null,null,null,null,null,null,null,"",null,null,null,null,null,null,null,"年",null,null,"",null,null,null,null,null,"月"]
["",null,null,null,null,null,null,null,null,null,null,null,null,null,null,null,null,null,null,null,null,null,null,null,null,null,null,"",null,null,null,null,null,null,null,null,null,null,null,null,null,null,null,null,null,null,null,null,"",null,null,null,null,null,null,null,null,null,null,null,null,null,null,null,null,null,null,null,null,"",null,null,null,null,null,null,null,null,null,null,null,null,null,null,null,null,null,null,null,null,null,null,null,null,null,null,null,null,null,null,null,null,null,null,null,null,null,null,null,null,null,null,null,null,null,null,null,null,null,null,"",null,null,null,null,null,null,null,"年",null,null,"",null,null,null,null,null,"月"]
["",null,null,null,null,null,null,null,null,null,null,null,null,null,null,null,null,null,null,null,null,null,null,null,null,null,null,"",null,null,null,null,null,null,null,null,null,null,null,null,null,null,null,null,null,null,null,null,"",null,null,null,null,null,null,null,null,null,null,null,null,null,null,null,null,null,null,null,null,"",null,null,null,null,null,null,null,null,null,null,null,null,null,null,null,null,null,null,null,null,null,null,null,null,null,null,null,null,null,null,null,null,null,null,null,null,null,null,null,null,null,null,null,null,null,null,null,null,null,null,"",null,null,null,null,null,null,null,"年",null,null,"",null,null,null,null,null,"月"]
["",null,null,null,null,null,null,null,null,null,null,null,null,null,null,null,null,null,null,null,null,null,null,null,null,null,null,"",null,null,null,null,null,null,null,null,null,null,null,null,null,null,null,null,null,null,null,null,"",null,null,null,null,null,null,null,null,null,null,null,null,null,null,null,null,null,null,null,null,"",null,null,null,null,null,null,null,null,null,null,null,null,null,null,null,null,null,null,null,null,null,null,null,null,null,null,null,null,null,null,null,null,null,null,null,null,null,null,null,null,null,null,null,null,null,null,null,null,null,null,"",null,null,null,null,null,null,null,"年",null,null,"",null,null,null,null,null,"月"]
["",null,null,null,null,null,null,null,null,null,null,null,null,null,null,null,null,null,null,null,null,null,null,null,null,null,null,"",null,null,null,null,null,null,null,null,null,null,null,null,null,null,null,null,null,null,null,null,"",null,null,null,null,null,null,null,null,null,null,null,null,null,null,null,null,null,null,null,null,"",null,null,null,null,null,null,null,null,null,null,null,null,null,null,null,null,null,null,null,null,null,null,null,null,null,null,null,null,null,null,null,null,null,null,null,null,null,null,null,null,null,null,null,null,null,null,null,null,null,null,"",null,null,null,null,null,null,null,"年",null,null,"",null,null,null,null,null,"月"]
["",null,null,null,null,null,null,null,null,null,null,null,null,null,null,null,null,null,null,null,null,null,null,null,null,null,null,"",null,null,null,null,null,null,null,null,null,null,null,null,null,null,null,null,null,null,null,null,"",null,null,null,null,null,null,null,null,null,null,null,null,null,null,null,null,null,null,null,null,"",null,null,null,null,null,null,null,null,null,null,null,null,null,null,null,null,null,null,null,null,null,null,null,null,null,null,null,null,null,null,null,null,null,null,null,null,null,null,null,null,null,null,null,null,null,null,null,null,null,null,"",null,null,null,null,null,null,null,"年",null,null,"",null,null,null,null,null,"月"]
["",null,null,null,null,null,null,null,null,null,null,null,null,null,null,null,null,null,null,null,null,null,null,null,null,null,null,"",null,null,null,null,null,null,null,null,null,null,null,null,null,null,null,null,null,null,null,null,"",null,null,null,null,null,null,null,null,null,null,null,null,null,null,null,null,null,null,null,null,"",null,null,null,null,null,null,null,null,null,null,null,null,null,null,null,null,null,null,null,null,null,null,null,null,null,null,null,null,null,null,null,null,null,null,null,null,null,null,null,null,null,null,null,null,null,null,null,null,null,null,"",null,null,null,null,null,null,null,"年",null,null,"",null,null,null,null,null,"月"]
["",null,null,null,null,null,null,null,null,null,null,null,null,null,null,null,null,null,null,null,null,null,null,null,null,null,null,"",null,null,null,null,null,null,null,null,null,null,null,null,null,null,null,null,null,null,null,null,"",null,null,null,null,null,null,null,null,null,null,null,null,null,null,null,null,null,null,null,null,"",null,null,null,null,null,null,null,null,null,null,null,null,null,null,null,null,null,null,null,null,null,null,null,null,null,null,null,null,null,null,null,null,null,null,null,null,null,null,null,null,null,null,null,null,null,null,null,null,null,null,"",null,null,null,null,null,null,null,"年",null,null,"",null,null,null,null,null,"月"]
["",null,null,null,null,null,null,null,null,null,null,null,null,null,null,null,null,null,null,null,null,null,null,null,null,null,null,"",null,null,null,null,null,null,null,null,null,null,null,null,null,null,null,null,null,null,null,null,"",null,null,null,null,null,null,null,null,null,null,null,null,null,null,null,null,null,null,null,null,"",null,null,null,null,null,null,null,null,null,null,null,null,null,null,null,null,null,null,null,null,null,null,null,null,null,null,null,null,null,null,null,null,null,null,null,null,null,null,null,null,null,null,null,null,null,null,null,null,null,null,"",null,null,null,null,null,null,null,"年",null,null,"",null,null,null,null,null,"月"]
["",null,null,null,null,null,null,null,null,null,null,null,null,null,null,null,null,null,null,null,null,null,null,null,null,null,null,"",null,null,null,null,null,null,null,null,null,null,null,null,null,null,null,null,null,null,null,null,"",null,null,null,null,null,null,null,null,null,null,null,null,null,null,null,null,null,null,null,null,"",null,null,null,null,null,null,null,null,null,null,null,null,null,null,null,null,null,null,null,null,null,null,null,null,null,null,null,null,null,null,null,null,null,null,null,null,null,null,null,null,null,null,null,null,null,null,null,null,null,null,"",null,null,null,null,null,null,null,"年",null,null,"",null,null,null,null,null,"月"]
["",null,null,null,null,null,null,null,null,null,null,null,null,null,null,null,null,null,null,null,null,null,null,null,null,null,null,"",null,null,null,null,null,null,null,null,null,null,null,null,null,null,null,null,null,null,null,null,"",null,null,null,null,null,null,null,null,null,null,null,null,null,null,null,null,null,null,null,null,"",null,null,null,null,null,null,null,null,null,null,null,null,null,null,null,null,null,null,null,null,null,null,null,null,null,null,null,null,null,null,null,null,null,null,null,null,null,null,null,null,null,null,null,null,null,null,null,null,null,null,"",null,null,null,null,null,null,null,"年",null,null,"",null,null,null,null,null,"月"]
["",null,null,null,null,null,null,null,null,null,null,null,null,null,null,null,null,null,null,null,null,null,null,null,null,null,null,"",null,null,null,null,null,null,null,null,null,null,null,null,null,null,null,null,null,null,null,null,"",null,null,null,null,null,null,null,null,null,null,null,null,null,null,null,null,null,null,null,null,"",null,null,null,null,null,null,null,null,null,null,null,null,null,null,null,null,null,null,null,null,null,null,null,null,null,null,null,null,null,null,null,null,null,null,null,null,null,null,null,null,null,null,null,null,null,null,null,null,null,null,"",null,null,null,null,null,null,null,"年",null,null,"",null,null,null,null,null,"月"]
["",null,null,null,null,null,null,null,null,null,null,null,null,null,null,null,null,null,null,null,null,null,null,null,null,null,null,"",null,null,null,null,null,null,null,null,null,null,null,null,null,null,null,null,null,null,null,null,"",null,null,null,null,null,null,null,null,null,null,null,null,null,null,null,null,null,null,null,null,"",null,null,null,null,null,null,null,null,null,null,null,null,null,null,null,null,null,null,null,null,null,null,null,null,null,null,null,null,null,null,null,null,null,null,null,null,null,null,null,null,null,null,null,null,null,null,null,null,null,null,"",null,null,null,null,null,null,null,"年",null,null,"",null,null,null,null,null,"月"]
["記載要領"]
[null,"１",null,null,"本表は、土木、建築若しくは設備又は職種の各別に作成すること。"]
[null,null,null,null,"また、「氏名」の記載は、営業所（本店又は支店若しくは常時契約する事務所）ごとにまとめて行い、その直前に、（   ）書きで当該営業所名を記載すること。"]
[null,"２",null,null,"「法令による免許等」の欄には、業務に関し法律又は命令による免許又は技術若しくは技能の認定を受けたものを記載すること。"]
[null,null,null,null,"（例 ： ○○建築士、○○土木施工管理技士）"]
[null,"３",null,null,"「実務経歴」の欄には、最近のものから記載し、純粋に測量、建設コンサルタント等業務に従事した職種及び地位を記載すること。"]

{"sheet":"申請書様式4","index":19,"n_rows":39,"n_cols":129,"rows_kept":39,"cut":false,"hidden":true,"merged":[[4,128,5,160],[1,0,1,166],[5,100,6,119],[3,100,4,119],[4,4,5,34],[4,45,5,96],[27,0,28,2],[29,0,30,2],[31,0,32,2],[7,3,8,35],[9,3,10,35],[11,3,12,35],[13,3,14,35],[15,3,16,35],[17,3,18,35],[19,3,20,35],[21,3,22,35],[23,3,24,35],[25,3,26,35],[27,3,28,35],[17,0,18,2],[19,0,20,2],[21,0,22,2],[23,0,24,2],[25,0,26,2],[7,0,8,2],[9,0,10,2],[11,0,12,2],[13,0,14,2],[15,0,16,2],[7,40,7,41],[8,40,8,41],[8,42,8,43],[9,36,9,37],[9,38,9,39],[9,40,9,41],[12,40,12,41],[12,42,12,43],[13,40,13,41],[10,40,10,41],[10,42,10,43],[11,40,11,41],[16,40,16,41],[16,42,16,43],[17,40,17,41],[14,40,14,41],[14,42,14,43],[15,40,15,41],[29,3,30,35],[31,3,32,35],[7,36,7,37],[8,36,8,37],[7,38,7,39],[8,38,8,39],[10,36,10,37],[10,38,10,39],[12,36,12,37],[12,38,12,39],[14,36,14,37],[14,38,14,39],[16,36,16,37],[16,38,16,39],[18,36,18,37],[18,38,18,39],[13,36,13,37],[13,38,13,39],[11,36,11,37],[11,38,11,39],[17,36,17,37],[17,38,17,39],[15,36,15,37],[15,38,15,39],[20,36,20,37],[20,38,20,39],[20,40,20,41],[20,42,20,43],[21,36,21,37],[21,38,21,39],[21,40,21,41],[18,40,18,41],[18,42,18,43],[19,36,19,37],[19,38,19,39],[19,40,19,41],[24,36,24,37],[24,38,24,39],[24,40,24,41],[24,42,24,43],[25,36,25,37],[25,38,25,39],[25,40,25,41],[22,36,22,37],[22,38,22,39],[22,40,22,41],[22,42,22,43],[23,36,23,37],[23,38,23,39],[23,40,23,41],[28,38,28,39],[28,40,28,41],[28,42,28,43],[29,36,29,37],[29,38,29,39],[29,40,29,41],[26,36,26,37],[26,38,26,39],[26,40,26,41],[26,42,26,43],[27,36,27,37],[27,38,27,39],[27,40,27,41],[32,36,32,37],[32,38,32,39],[32,40,32,41],[32,42,32,43],[7,44,7,46],[8,44,8,46],[9,44,9,46],[10,44,10,46],[11,44,11,46],[12,44,12,46],[13,44,13,46],[14,44,14,46],[15,44,15,46],[16,44,16,46],[17,44,17,46],[18,44,18,46],[30,36,30,37],[30,38,30,39],[30,40,30,41],[30,42,30,43],[31,36,31,37],[31,38,31,39],[31,40,31,41],[28,36,28,37],[32,44,32,46],[7,47,7,49],[8,47,8,49],[9,47,9,49],[10,47,10,49],[11,47,11,49],[12,47,12,49],[13,47,13,49],[14,47,14,49],[15,47,15,49],[16,47,16,49],[17,47,17,49],[18,47,18,49],[24,44,24,46],[25,44,25,46],[26,44,26,46],[27,44,27,46],[28,44,28,46],[19,44,19,46],[20,44,20,46],[21,44,21,46],[22,44,22,46],[23,44,23,46],[28,47,28,49],[29,44,29,46],[30,44,30,46],[31,44,31,46],[20,50,20,52],[21,50,21,52],[22,50,22,52],[23,50,23,52],[29,47,29,49],[30,47,30,49],[31,47,31,49],[32,47,32,49],[7,50,7,52],[8,50,8,52],[9,50,9,52],[10,50,10,52],[11,50,11,52],[12,50,12,52],[13,50,13,52],[14,50,14,52],[15,50,15,52],[16,50,16,52],[17,50,17,52],[18,50,18,52],[24,47,24,49],[25,47,25,49],[26,47,26,49],[27,47,27,49],[19,47,19,49],[20,47,20,49],[21,47,21,49],[22,47,22,49],[23,47,23,49],[22,53,22,55],[23,53,23,55],[29,50,29,52],[30,50,30,52],[31,50,31,52],[32,50,32,52],[7,53,7,55],[8,53,8,55],[9,53,9,55],[10,53,10,55],[11,53,11,55],[12,53,12,55],[13,53,13,55],[14,53,14,55],[15,53,15,55],[16,53,16,55],[17,53,17,55],[18,53,18,55],[24,50,24,52],[25,50,25,52],[26,50,26,52],[27,50,27,52],[28,50,28,52],[19,50,19,52],[29,53,29,55],[30,53,30,55],[31,53,31,55],[32,53,32,55],[7,56,7,58],[8,56,8,58],[9,56,9,58],[10,56,10,58],[11,56,11,58],[12,56,12,58],[13,56,13,58],[14,56,14,58],[15,56,15,58],[16,56,16,58],[17,56,17,58],[18,56,18,58],[24,53,24,55],[25,53,25,55],[26,53,26,55],[27,53,27,55],[28,53,28,55],[19,53,19,55],[20,53,20,55],[21,53,21,55],[32,56,32,58],[7,59,7,61],[8,59,8,61],[9,59,9,61],[10,59,10,61],[11,59,11,61],[12,59,12,61],[13,59,13,61],[14,59,14,61],[15,59,15,61],[16,59,16,61],[17,59,17,61],[18,59,18,61],[24,56,24,58],[25,56,25,58],[26,56,26,58],[27,56,27,58],[28,56,28,58],[19,56,19,58],[20,56,20,58],[21,56,21,58],[22,56,22,58],[23,56,23,58],[28,59,28,61],[29,56,29,58],[30,56,30,58],[31,56,31,58],[20,62,20,64],[21,62,21,64],[22,62,22,64],[23,62,23,64],[29,59,29,61],[30,59,30,61],[31,59,31,61],[32,59,32,61],[7,62,7,64],[8,62,8,64],[9,62,9,64],[10,62,10,64],[11,62,11,64],[12,62,12,64],[13,62,13,64],[14,62,14,64],[15,62,15,64],[16,62,16,64],[17,62,17,64],[18,62,18,64],[24,59,24,61],[25,59,25,61],[26,59,26,61],[27,59,27,61],[19,59,19,61],[20,59,20,61],[21,59,21,61],[22,59,22,61],[23,59,23,61],[22,65,22,67],[23,65,23,67],[29,62,29,64],[30,62,30,64],[31,62,31,64],[32,62,32,64],[7,65,7,67],[8,65,8,67],[9,65,9,67],[10,65,10,67],[11,65,11,67],[12,65,12,67],[13,65,13,67],[14,65,14,67],[15,65,15,67],[16,65,16,67],[17,65,17,67],[18,65,18,67],[24,62,24,64],[25,62,25,64],[26,62,26,64],[27,62,27,64],[28,62,28,64],[19,62,19,64],[29,65,29,67],[30,65,30,67],[31,65,31,67],[32,65,32,67],[7,68,7,70],[8,68,8,70],[9,68,9,70],[10,68,10,70],[11,68,11,70],[12,68,12,70],[13,68,13,70],[14,68,14,70],[15,68,15,70],[16,68,16,70],[17,68,17,70],[18,68,18,70],[24,65,24,67],[25,65,25,67],[26,65,26,67],[27,65,27,67],[28,65,28,67],[19,65,19,67],[20,65,20,67],[21,65,21,67],[32,68,32,70],[7,71,7,73],[8,71,8,73],[9,71,9,73],[10,71,10,73],[11,71,11,73],[12,71,12,73],[13,71,13,73],[14,71,14,73],[15,71,15,73],[16,71,16,73],[17,71,17,73],[18,71,18,73],[24,68,24,70],[25,68,25,70],[26,68,26,70],[27,68,27,70],[28,68,28,70],[19,68,19,70],[20,68,20,70],[21,68,21,70],[22,68,22,70],[23,68,23,70],[28,71,28,73],[29,68,29,70],[30,68,30,70],[31,68,31,70],[20,74,20,76],[21,74,21,76],[22,74,22,76],[23,74,23,76],[29,71,29,73],[30,71,30,73],[31,71,31,73],[32,71,32,73],[7,74,7,76],[8,74,8,76],[9,74,9,76],[10,74,10,76],[11,74,11,76],[12,74,12,76],[13,74,13,76],[14,74,14,76],[15,74,15,76],[16,74,16,76],[17,74,17,76],[18,74,18,76],[24,71,24,73],[25,71,25,73],[26,71,26,73],[27,71,27,73],[19,71,19,73],[20,71,20,73],[21,71,21,73],[22,71,22,73],[23,71,23,73],[22,77,22,79],[23,77,23,79],[29,74,29,76],[30,74,30,76],[31,74,31,76],[32,74,32,76],[7,77,7,79],[8,77,8,79],[9,77,9,79],[10,77,10,79],[11,77,11,79],[12,77,12,79],[13,77,13,79],[14,77,14,79],[15,77,15,79],[16,77,16,79],[17,77,17,79],[18,77,18,79],[24,74,24,76],[25,74,25,76],[26,74,26,76],[27,74,27,76],[28,74,28,76],[19,74,19,76],[29,77,29,79],[30,77,30,79],[31,77,31,79],[32,77,32,79],[7,80,7,82],[8,80,8,82],[9,80,9,82],[10,80,10,82],[11,80,11,82],[12,80,12,82],[13,80,13,82],[14,80,14,82],[15,80,15,82],[16,80,16,82],[17,80,17,82],[18,80,18,82],[24,77,24,79],[25,77,25,79],[26,77,26,79],[27,77,27,79],[28,77,28,79],[19,77,19,79],[20,77,20,79],[21,77,21,79],[32,80,32,82],[7,83,7,85],[8,83,8,85],[9,83,9,85],[10,83,10,85],[11,83,11,85],[12,83,12,85],[13,83,13,85],[14,83,14,85],[15,83,15,85],[16,83,16,85],[17,83,17,85],[18,83,18,85],[24,80,24,82],[25,80,25,82],[26,80,26,82],[27,80,27,82],[28,80,28,82],[19,80,19,82],[20,80,20,82],[21,80,21,82],[22,80,22,82],[23,80,23,82],[28,83,28,85],[29,80,29,82],[30,80,30,82],[31,80,31,82],[20,86,20,88],[21,86,21,88],[22,86,22,88],[23,86,23,88],[29,83,29,85],[30,83,30,85],[31,83,31,85],[32,83,32,85],[7,86,7,88],[8,86,8,88],[9,86,9,88],[10,86,10,88],[11,86,11,88],[12,86,12,88],[13,86,13,88],[14,86,14,88],[15,86,15,88],[16,86,16,88],[17,86,17,88],[18,86,18,88],[24,83,24,85],[25,83,25,85],[26,83,26,85],[27,83,27,85],[19,83,19,85],[20,83,20,85],[21,83,21,85],[22,83,22,85],[23,83,23,85],[22,89,22,91],[23,89,23,91],[29,86,29,88],[30,86,30,88],[31,86,31,88],[32,86,32,88],[7,89,7,91],[8,89,8,91],[9,89,9,91],[10,89,10,91],[11,89,11,91],[12,89,12,91],[13,89,13,91],[14,89,14,91],[15,89,15,91],[16,89,16,91],[17,89,17,91],[18,89,18,91],[24,86,24,88],[25,86,25,88],[26,86,26,88],[27,86,27,88],[28,86,28,88],[19,86,19,88],[29,89,29,91],[30,89,30,91],[31,89,31,91],[32,89,32,91],[7,92,7,94],[8,92,8,94],[9,92,9,94],[10,92,10,94],[11,92,11,94],[12,92,12,94],[13,92,13,94],[14,92,14,94],[15,92,15,94],[16,92,16,94],[17,92,17,94],[18,92,18,94],[24,89,24,91],[25,89,25,91],[26,89,26,91],[27,89,27,91],[28,89,28,91],[19,89,19,91],[20,89,20,91],[21,89,21,91],[32,92,32,94],[7,95,7,97],[8,95,8,97],[9,95,9,97],[10,95,10,97],[11,95,11,97],[12,95,12,97],[13,95,13,97],[14,95,14,97],[15,95,15,97],[16,95,16,97],[17,95,17,97],[18,95,18,97],[24,92,24,94],[25,92,25,94],[26,92,26,94],[27,92,27,94],[28,92,28,94],[19,92,19,94],[20,92,20,94],[21,92,21,94],[22,92,22,94],[23,92,23,94],[28,95,28,97],[29,92,29,94],[30,92,30,94],[31,92,31,94],[20,98,20,99],[21,98,21,99],[22,98,22,99],[23,98,23,99],[29,95,29,97],[30,95,30,97],[31,95,31,97],[32,95,32,97],[7,98,7,99],[8,98,8,99],[9,98,9,99],[10,98,10,99],[11,98,11,99],[12,98,12,99],[13,98,13,99],[14,98,14,99],[15,98,15,99],[16,98,16,99],[17,98,17,99],[18,98,18,99],[24,95,24,97],[25,95,25,97],[26,95,26,97],[27,95,27,97],[19,95,19,97],[20,95,20,97],[21,95,21,97],[22,95,22,97],[23,95,23,97],[22,100,22,101],[23,100,23,101],[29,98,29,99],[30,98,30,99],[31,98,31,99],[32,98,32,99],[7,100,7,101],[8,100,8,101],[9,100,9,101],[10,100,10,101],[11,100,11,101],[12,100,12,101],[13,100,13,101],[14,100,14,101],[15,100,15,101],[16,100,16,101],[17,100,17,101],[18,100,18,101],[24,98,24,99],[25,98,25,99],[26,98,26,99],[27,98,27,99],[28,98,28,99],[19,98,19,99],[29,100,29,101],[30,100,30,101],[31,100,31,101],[32,100,32,101],[7,102,7,103],[8,102,8,103],[9,102,9,103],[10,102,10,103],[11,102,11,103],[12,102,12,103],[13,102,13,103],[14,102,14,103],[15,102,15,103],[16,102,16,103],[17,102,17,103],[18,102,18,103],[24,100,24,101],[25,100,25,101],[26,100,26,101],[27,100,27,101],[28,100,28,101],[19,100,19,101],[20,100,20,101],[21,100,21,101],[32,102,32,103],[7,104,7,105],[8,104,8,105],[9,104,9,105],[10,104,10,105],[11,104,11,105],[12,104,12,105],[13,104,13,105],[14,104,14,105],[15,104,15,105],[16,104,16,105],[17,104,17,105],[18,104,18,105],[24,102,24,103],[25,102,25,103],[26,102,26,103],[27,102,27,103],[28,102,28,103],[19,102,19,103],[20,102,20,103],[21,102,21,103],[22,102,22,103],[23,102,23,103],[28,104,28,105],[29,102,29,103],[30,102,30,103],[31,102,31,103],[20,106,20,107],[21,106,21,107],[22,106,22,107],[23,106,23,107],[29,104,29,105],[30,104,30,105],[31,104,31,105],[32,104,32,105],[7,106,7,107],[8,106,8,107],[9,106,9,107],[10,106,10,107],[11,106,11,107],[12,106,12,107],[13,106,13,107],[14,106,14,107],[15,106,15,107],[16,106,16,107],[17,106,17,107],[18,106,18,107],[24,104,24,105],[25,104,25,105],[26,104,26,105],[27,104,27,105],[19,104,19,105],[20,104,20,105],[21,104,21,105],[22,104,22,105],[23,104,23,105],[22,108,22,109],[23,108,23,109],[29,106,29,107],[30,106,30,107],[31,106,31,107],[32,106,32,107],[7,108,7,109],[8,108,8,109],[9,108,9,109],[10,108,10,109],[11,108,11,109],[12,108,12,109],[13,108,13,109],[14,108,14,109],[15,108,15,109],[16,108,16,109],[17,108,17,109],[18,108,18,109],[24,106,24,107],[25,106,25,107],[26,106,26,107],[27,106,27,107],[28,106,28,107],[19,106,19,107],[29,108,29,109],[30,108,30,109],[31,108,31,109],[32,108,32,109],[7,110,7,111],[8,110,8,111],[9,110,9,111],[10,110,10,111],[11,110,11,111],[12,110,12,111],[13,110,13,111],[14,110,14,111],[15,110,15,111],[16,110,16,111],[17,110,17,111],[18,110,18,111],[24,108,24,109],[25,108,25,109],[26,108,26,109],[27,108,27,109],[28,108,28,109],[19,108,19,109],[20,108,20,109],[21,108,21,109],[32,110,32,111],[7,112,7,113],[8,112,8,113],[9,112,9,113],[10,112,10,113],[11,112,11,113],[12,112,12,113],[13,112,13,113],[14,112,14,113],[15,112,15,113],[16,112,16,113],[17,112,17,113],[18,112,18,113],[24,110,24,111],[25,110,25,111],[26,110,26,111],[27,110,27,111],[28,110,28,111],[19,110,19,111],[20,110,20,111],[21,110,21,111],[22,110,22,111],[23,110,23,111],[28,112,28,113],[29,110,29,111],[30,110,30,111],[31,110,31,111],[20,114,20,115],[21,114,21,115],[22,114,22,115],[23,114,23,115],[29,112,29,113],[30,112,30,113],[31,112,31,113],[32,112,32,113],[7,114,7,115],[8,114,8,115],[9,114,9,115],[10,114,10,115],[11,114,11,115],[12,114,12,115],[13,114,13,115],[14,114,14,115],[15,114,15,115],[16,114,16,115],[17,114,17,115],[18,114,18,115],[24,112,24,113],[25,112,25,113],[26,112,26,113],[27,112,27,113],[19,112,19,113],[20,112,20,113],[21,112,21,113],[22,112,22,113],[23,112,23,113],[22,116,22,117],[23,116,23,117],[29,114,29,115],[30,114,30,115],[31,114,31,115],[32,114,32,115],[7,116,7,117],[8,116,8,117],[9,116,9,117],[10,116,10,117],[11,116,11,117],[12,116,12,117],[13,116,13,117],[14,116,14,117],[15,116,15,117],[16,116,16,117],[17,116,17,117],[18,116,18,117],[24,114,24,115],[25,114,25,115],[26,114,26,115],[27,114,27,115],[28,114,28,115],[19,114,19,115],[29,116,29,117],[30,116,30,117],[31,116,31,117],[32,116,32,117],[7,118,7,119],[8,118,8,119],[9,118,9,119],[10,118,10,119],[11,118,11,119],[12,118,12,119],[13,118,13,119],[14,118,14,119],[15,118,15,119],[16,118,16,119],[17,118,17,119],[18,118,18,119],[24,116,24,117],[25,116,25,117],[26,116,26,117],[27,116,27,117],[28,116,28,117],[19,116,19,117],[20,116,20,117],[21,116,21,117],[16,120,16,121],[17,120,17,121],[18,120,18,121],[24,118,24,119],[25,118,25,119],[26,118,26,119],[27,118,27,119],[28,118,28,119],[19,118,19,119],[20,118,20,119],[21,118,21,119],[22,118,22,119],[23,118,23,119],[19,120,19,121],[20,120,20,121],[21,120,21,121],[22,120,22,121],[23,120,23,121],[7,120,7,121],[8,120,8,121],[9,120,9,121],[10,120,10,121],[11,120,11,121],[12,120,12,121],[13,120,13,121],[14,120,14,121],[15,120,15,121],[29,118,29,119],[30,118,30,119],[31,118,31,119],[32,118,32,119],[29,120,29,121],[30,120,30,121],[31,120,31,121],[32,120,32,121],[24,120,24,121],[25,120,25,121],[26,120,26,121],[27,120,27,121],[28,120,28,121]]}
["※ 受付番号",null,null,null,null,null,null,null,null,null,null,null,null,null,null,null,null,null,null,null,null,null,null,null,null,null,null,null,null,null,null,null,null,null,null,null,null,null,null,null,null,null,null,null,null,null,"※ 業者コ－ド"]
["営          業          所          一          覧          表"]
[]
[null,null,null,null,null,null,null,null,null,null,null,null,null,null,null,null,null,null,null,null,null,null,null,null,null,null,null,null,null,null,null,null,null,null,null,null,null,null,null,null,null,null,null,null,null,null,null,null,null,null,null,null,null,null,null,null,null,null,null,null,null,null,null,null,null,null,null,null,null,null,null,null,null,null,null,null,null,null,null,null,null,null,null,null,null,null,null,null,null,null,null,null,null,null,null,null,null,null,null,null,"電 話 番 号  （上段）"]
["番",null,null,null,"営    業    所    名    称",null,null,null,null,null,null,null,null,null,null,null,null,null,null,null,null,null,null,null,null,null,null,null,null,null,null,null,null,null,null,null,null,"郵  便",null,null,null,null,null,null,null,"所            在            地",null,null,null,null,null,null,null,null,null,null,null,null,null,null,null,null,null,null,null,null,null,null,null,null,null,null,null,null,null,null,null,null,null,null,null,null,null,null,null,null,null,null,null,null,null,null,null,null,null,null,null,null,null,null,null,null,null,null,null,null,null,null,null,null,null,null,null,null,null,null,null,null,null,null,null,null,null,null,null,null,null,null,"営             業             区             域"]
["号",null,null,null,null,null,null,null,null,null,null,null,null,null,null,null,null,null,null,null,null,null,null,null,null,null,null,null,null,null,null,null,null,null,null,null,null,"番  号",null,null,null,null,null,null,null,null,null,null,null,null,null,null,null,null,null,null,null,null,null,null,null,null,null,null,null,null,null,null,null,null,null,null,null,null,null,null,null,null,null,null,null,null,null,null,null,null,null,null,null,null,null,null,null,null,null,null,null,null,null,null,"F A X 番 号  （下段）"]
[]
[1,null,null,"",null,null,null,null,null,null,null,null,null,null,null,null,null,null,null,null,null,null,null,null,null,null,null,null,null,null,null,null,null,null,null,null,null,null,null,null,null,null,"-"]
[]
[2,null,null,"",null,null,null,null,null,null,null,null,null,null,null,null,null,null,null,null,null,null,null,null,null,null,null,null,null,null,null,null,null,null,null,null,null,null,null,null,null,null,"-"]
[]
[3,null,null,"",null,null,null,null,null,null,null,null,null,null,null,null,null,null,null,null,null,null,null,null,null,null,null,null,null,null,null,null,null,null,null,null,null,null,null,null,null,null,"-"]
[]
[4,null,null,"",null,null,null,null,null,null,null,null,null,null,null,null,null,null,null,null,null,null,null,null,null,null,null,null,null,null,null,null,null,null,null,null,null,null,null,null,null,null,"-"]
[]
[5,null,null,"",null,null,null,null,null,null,null,null,null,null,null,null,null,null,null,null,null,null,null,null,null,null,null,null,null,null,null,null,null,null,null,null,null,null,null,null,null,null,"-"]
[]
[6,null,null,"",null,null,null,null,null,null,null,null,null,null,null,null,null,null,null,null,null,null,null,null,null,null,null,null,null,null,null,null,null,null,null,null,null,null,null,null,null,null,"-"]
[]
[7,null,null,"",null,null,null,null,null,null,null,null,null,null,null,null,null,null,null,null,null,null,null,null,null,null,null,null,null,null,null,null,null,null,null,null,null,null,null,null,null,null,"-"]
[]
[8,null,null,"",null,null,null,null,null,null,null,null,null,null,null,null,null,null,null,null,null,null,null,null,null,null,null,null,null,null,null,null,null,null,null,null,null,null,null,null,null,null,"-"]
[]
[9,null,null,"",null,null,null,null,null,null,null,null,null,null,null,null,null,null,null,null,null,null,null,null,null,null,null,null,null,null,null,null,null,null,null,null,null,null,null,null,null,null,"-"]
[]
[10,null,null,"",null,null,null,null,null,null,null,null,null,null,null,null,null,null,null,null,null,null,null,null,null,null,null,null,null,null,null,null,null,null,null,null,null,null,null,null,null,null,"-"]
[]
[11,null,null,"",null,null,null,null,null,null,null,null,null,null,null,null,null,null,null,null,null,null,null,null,null,null,null,null,null,null,null,null,null,null,null,null,null,null,null,null,null,null,"-"]
[]
[12,null,null,"",null,null,null,null,null,null,null,null,null,null,null,null,null,null,null,null,null,null,null,null,null,null,null,null,null,null,null,null,null,null,null,null,null,null,null,null,null,null,"-"]
[]
[13,null,null,"",null,null,null,null,null,null,null,null,null,null,null,null,null,null,null,null,null,null,null,null,null,null,null,null,null,null,null,null,null,null,null,null,null,null,null,null,null,null,"-"]
[]
["記載要領"]
[null,"１",null,null,"本表は、申請日現在で作成すること。"]
[null,"２",null,null,"「営業所名称」欄には、常時契約を締結する本店又は支店等営業所の名称を記載すること。"]
[null,"３",null,null,"「所在地」欄には、営業所の所在地を上段から左詰めで記載すること。"]
[null,"４",null,null,"「電話番号・ＦＡＸ番号」欄には、上段に電話番号を、下段にＦＡＸ番号を記載することとし、市外局番、市内局番及び番号は、「－（ハイフン）」で区切ること。"]
[null,null,null,null,"なお、FAX番号を有していない場合は、空欄とすること。"]

{"sheet":"申請書様式5","index":20,"n_rows":18,"n_cols":161,"rows_kept":18,"cut":false,"hidden":true,"merged":[[9,157,9,159],[10,157,10,159],[11,157,11,159],[9,160,9,162],[10,160,10,162],[11,160,11,162],[9,151,9,153],[9,154,9,156],[10,151,10,153],[10,154,10,156],[11,151,11,153],[11,154,11,156],[9,145,9,147],[9,148,9,150],[10,145,10,147],[10,148,10,150],[11,145,11,147],[11,148,11,150],[9,139,9,141],[9,142,9,144],[10,139,10,141],[10,142,10,144],[11,139,11,141],[11,142,11,144],[9,133,9,135],[9,136,9,138],[10,133,10,135],[10,136,10,138],[11,133,11,135],[11,136,11,138],[9,127,9,129],[9,130,9,132],[10,127,10,129],[10,130,10,132],[11,127,11,129],[11,130,11,132],[9,121,9,123],[9,124,9,126],[10,121,10,123],[10,124,10,126],[11,121,11,123],[11,124,11,126],[9,115,9,117],[9,118,9,120],[10,115,10,117],[10,118,10,120],[11,115,11,117],[11,118,11,120],[9,109,9,111],[9,112,9,114],[10,109,10,111],[10,112,10,114],[11,109,11,111],[11,112,11,114],[9,103,9,105],[9,106,9,108],[10,103,10,105],[10,106,10,108],[11,103,11,105],[11,106,11,108],[9,97,9,99],[9,100,9,102],[10,97,10,99],[10,100,10,102],[11,97,11,99],[11,100,11,102],[9,91,9,93],[9,94,9,96],[10,91,10,93],[10,94,10,96],[11,91,11,93],[11,94,11,96],[9,85,9,87],[9,88,9,90],[10,85,10,87],[10,88,10,90],[11,85,11,87],[11,88,11,90],[9,79,9,81],[9,82,9,84],[10,79,10,81],[10,82,10,84],[11,79,11,81],[11,82,11,84],[9,73,9,75],[9,76,9,78],[10,73,10,75],[10,76,10,78],[11,73,11,75],[11,76,11,78],[9,67,9,69],[9,70,9,72],[10,67,10,69],[10,70,10,72],[11,67,11,69],[11,70,11,72],[10,46,10,48],[11,43,11,45],[11,46,11,48],[9,61,9,63],[9,64,9,66],[10,61,10,63],[10,64,10,66],[11,61,11,63],[11,64,11,66],[9,55,9,57],[9,58,9,60],[10,55,10,57],[10,58,10,60],[11,55,11,57],[11,58,11,60],[17,19,17,87],[9,22,9,24],[9,25,9,27],[9,28,9,30],[10,22,10,24],[11,22,11,24],[11,25,11,27],[10,25,10,27],[10,28,10,30],[11,28,11,30],[9,31,9,33],[9,34,9,36],[10,31,10,33],[10,34,10,36],[11,31,11,33],[11,34,11,36],[9,49,9,51],[9,52,9,54],[10,49,10,51],[10,52,10,54],[11,49,11,51],[11,52,11,54],[9,46,9,48],[10,43,10,45],[4,22,4,24],[5,28,8,30],[5,31,8,33],[5,34,8,36],[5,37,8,39],[5,25,8,27],[9,1,9,20],[10,1,10,20],[11,1,11,20],[5,43,8,45],[5,40,8,42],[5,22,8,24],[9,37,9,39],[9,40,9,42],[10,37,10,39],[10,40,10,42],[11,37,11,39],[11,40,11,42],[9,43,9,45],[5,58,8,60],[5,61,8,63],[5,64,8,66],[5,67,8,69],[5,46,8,48],[5,49,8,51],[5,52,8,54],[5,55,8,57],[5,82,8,84],[5,118,8,120],[5,121,8,123],[5,124,8,126],[5,127,8,129],[5,85,8,87],[5,88,8,90],[5,91,8,93],[5,70,8,72],[5,73,8,75],[5,76,8,78],[5,79,8,81],[5,106,8,108],[5,109,8,111],[3,22,3,162],[5,5,6,17],[0,0,0,162],[17,5,17,18],[17,100,17,102],[17,103,17,120],[17,124,17,162],[5,151,8,153],[5,154,8,156],[5,157,8,159],[5,130,8,132],[5,133,8,135],[5,136,8,138],[5,160,8,162],[5,139,8,141],[5,142,8,144],[5,112,8,114],[5,115,8,117],[5,94,8,96],[5,97,8,99],[5,100,8,102],[5,103,8,105],[5,145,8,147],[5,148,8,150]]}
["業　　　態　　　調　　　書"]
[]
[]
[null,null,null,null,null,null,null,null,null,null,null,null,null,null,null,null,null,null,null,null,null,null,"本 社 ・ 支 店 ・ 営 業 所 又 は 出 張 所 の 所 在 都 道 府 県 別 希 望 地 域"]
[null,null,null,null,null,null,null,null,null,null,null,null,null,null,null,null,null,null,null,null,null,null,1,null,null,{"$f":"W5+1","v":2},null,null,{"$f":"Z5+1","v":3},null,null,{"$f":"AC5+1","v":4},null,null,{"$f":"AF5+1","v":5},null,null,{"$f":"AI5+1","v":6},null,null,{"$f":"AL5+1","v":7},null,null,{"$f":"AO5+1","v":8},null,null,{"$f":"AR5+1","v":9},null,null,{"$f":"AU5+1","v":10},null,null,{"$f":"AX5+1","v":11},null,null,{"$f":"BA5+1","v":12},null,null,{"$f":"BD5+1","v":13},null,null,{"$f":"BG5+1","v":14},null,null,{"$f":"BJ5+1","v":15},null,null,{"$f":"BM5+1","v":16},null,null,{"$f":"BP5+1","v":17},null,null,{"$f":"BS5+1","v":18},null,null,{"$f":"BV5+1","v":19},null,null,{"$f":"BY5+1","v":20},null,null,{"$f":"CB5+1","v":21},null,null,{"$f":"CE5+1","v":22},null,null,{"$f":"CH5+1","v":23},null,null,{"$f":"CK5+1","v":24},null,null,{"$f":"CN5+1","v":25},null,null,{"$f":"CQ5+1","v":26},null,null,{"$f":"CT5+1","v":27},null,null,{"$f":"CW5+1","v":28},null,null,{"$f":"CZ5+1","v":29},null,null,{"$f":"DC5+1","v":30},null,null,{"$f":"DF5+1","v":31},null,null,{"$f":"DI5+1","v":32},null,null,{"$f":"DL5+1","v":33},null,null,{"$f":"DO5+1","v":34},null,null,{"$f":"DR5+1","v":35},null,null,{"$f":"DU5+1","v":36},null,null,{"$f":"DX5+1","v":37},null,null,{"$f":"EA5+1","v":38},null,null,{"$f":"ED5+1","v":39},null,null,{"$f":"EG5+1","v":40},null,null,{"$f":"EJ5+1","v":41},null,null,{"$f":"EM5+1","v":42},null,null,{"$f":"EP5+1","v":43},null,null,{"$f":"ES5+1","v":44},null,null,{"$f":"EV5+1","v":45},null,null,{"$f":"EY5+1","v":46},null,null,{"$f":"FB5+1","v":47}]
[null,null,null,null,null,"参加希望業種",null,null,null,null,null,null,null,null,null,null,null,null,null,null,null,null,"北海道",null,null,"青森",null,null,"岩手",null,null,"宮城",null,null,"秋田",null,null,"山形",null,null,"福島",null,null,"茨城",null,null,"栃木",null,null,"群馬",null,null,"埼玉",null,null,"千葉",null,null,"東京",null,null,"神奈川",null,null,"新潟",null,null,"富山",null,null,"石川",null,null,"福井",null,null,"山梨",null,null,"長野",null,null,"岐阜",null,null,"静岡",null,null,"愛知",null,null,"三重",null,null,"滋賀",null,null,"京都",null,null,"大阪",null,null,"兵庫",null,null,"奈良",null,null,"和歌山",null,null,"鳥取",null,null,"島根",null,null,"岡山",null,null,"広島",null,null,"山口",null,null,"徳島",null,null,"香川",null,null,"愛媛",null,null,"高知",null,null,"福岡",null,null,"佐賀",null,null,"長崎",null,null,"熊本",null,null,"大分",null,null,"宮崎",null,null,"鹿児島",null,null,"沖縄"]
[]
[]
[]
[null,"測　　　　　量"]
[null,"建築関係建設\nコンサルタント"]
[null,"地質調査業務"]
[]
[null,null,null,null,null,null,null,null,null,null,null,null,null,null,null,null,null,null,null,null,null,null,"　Ａ　　……　本社・支店・営業所等があり、業務を希望する都道府県"]
[null,null,null,null,null,null,null,null,null,null,null,null,null,null,null,null,null,null,null,null,null,null,"　B　　……　本社・支店・営業所等はないが、業務を希望する都道府県"]
[null,null,null,null,null,null,null,null,null,null,null,null,null,null,null,null,null,null,null,null,null,null,"空欄　……　希望しない"]
[]
[null,null,null,null,null,"会　社　名",null,null,null,null,null,null,null,null,null,null,null,null,null,null,null,null,null,null,null,null,null,null,null,null,null,null,null,null,null,null,null,null,null,null,null,null,null,null,null,null,null,null,null,null,null,null,null,null,null,null,null,null,null,null,null,null,null,null,null,null,null,null,null,null,null,null,null,null,null,null,null,null,null,null,null,null,null,null,null,null,null,null,null,null,null,null,null,null,null,null,null,null,null,null,"※",null,null,"登録番号\n(当省使用欄)"]

{"sheet":"申請書様式6","index":21,"n_rows":36,"n_cols":7,"rows_kept":36,"cut":false,"hidden":true,"merged":[[11,3,11,5],[2,0,2,8],[4,2,4,7],[6,2,6,7],[8,2,8,7],[10,2,10,7],[35,3,35,8],[14,4,14,5],[27,4,27,8],[29,4,29,8],[30,5,30,8],[31,5,31,8],[34,3,34,8]]}
[]
[]
["委　　任　　状"]
[]
[null,"受任者"]
[]
[null,"　住所"]
[]
[null,"　登録番号",""]
[]
[null,"　氏名"]
[null,null,"（連絡先","",null,null,"）"]
[]
[]
[null,"　私は上記の者を代理人と定め、　　　　　　　　　　",null,null,null,null,"の一般競争（指名"]
[null,"競争）参加資格審査の申請について次の権限を委任します。"]
[]
[null,"委任事項"]
[]
[null,"　1.申請書類の作成"]
[]
[null,"　1.申請代理"]
[]
[null,"　1.記載事項の訂正"]
[]
[null,null,"年　月　日"]
[]
[null,null,null,"委任者"]
[]
[null,null,null,"住所"]
[null,null,null,"　　　商号又は名称"]
[null,null,null,"代表者氏名"]
[]
[null,"※以下、必ず記載ください。"]
[null,"　（担当者氏名）",null,"　"]
[null,"　（連絡先）"]

{"sheet":"申請書様式7","index":22,"n_rows":33,"n_cols":17,"rows_kept":33,"cut":false,"hidden":true,"merged":[[28,15,28,17],[25,1,25,2],[26,1,26,2],[20,1,20,2],[21,1,21,2],[22,1,22,2],[25,6,25,8],[26,6,26,8],[22,12,22,14],[24,1,24,2],[22,9,22,11],[23,6,23,8],[0,0,0,17],[11,0,11,17],[15,1,15,2],[16,1,16,2],[15,9,15,11],[16,9,16,11],[6,0,8,0],[7,1,7,2],[7,3,7,4],[7,5,7,6],[7,7,7,8],[15,15,15,17],[16,15,16,17],[15,6,15,8],[16,6,16,8],[14,15,14,17],[15,12,15,14],[16,12,16,14],[14,12,14,14],[6,1,6,9],[14,6,14,8],[2,10,2,11],[5,0,5,17],[2,12,2,14],[2,2,2,9],[2,0,2,1],[4,0,4,17],[15,4,15,5],[16,4,16,5],[13,6,13,17],[27,12,27,14],[24,9,24,11],[25,9,25,11],[26,9,26,11],[27,9,27,11],[27,15,27,17],[17,1,17,2],[12,1,14,2],[14,9,14,11],[12,3,14,5],[12,6,12,17],[27,6,27,8],[23,4,23,5],[24,4,24,5],[25,4,25,5],[26,4,26,5],[27,4,27,5],[19,12,19,14],[19,1,19,2],[29,4,29,5],[30,4,30,5],[30,9,30,11],[23,12,23,14],[16,0,30,0],[31,7,31,8],[31,10,31,11],[31,13,31,14],[17,12,17,14],[20,12,20,14],[21,12,21,14],[28,1,28,2],[28,4,28,5],[28,6,28,8],[28,9,28,11],[28,12,28,14],[19,6,19,8],[32,0,32,17],[24,6,24,8],[19,9,19,11],[18,15,18,17],[29,6,29,8],[19,15,19,17],[24,15,24,17],[23,15,23,17],[21,15,21,17],[22,15,22,17],[25,15,25,17],[26,15,26,17],[29,15,29,17],[24,12,24,14],[25,12,25,14],[26,12,26,14],[29,9,29,11],[29,1,29,2],[31,4,31,5],[18,12,18,14],[23,9,23,11],[30,1,30,2],[30,6,30,8],[20,9,20,11],[31,16,31,17],[17,15,17,17],[18,1,18,2],[17,6,17,8],[22,6,22,8],[18,6,18,8],[18,9,18,11],[20,15,20,17],[17,4,17,5],[18,4,18,5],[19,4,19,5],[20,4,20,5],[21,4,21,5],[22,4,22,5],[30,15,30,17],[30,12,30,14],[20,6,20,8],[21,6,21,8],[17,9,17,11],[21,9,21,11],[29,12,29,14],[31,0,31,2],[27,1,27,2],[23,1,23,2]]}
["調　　　査　　　票"]
[]
["会　社　名",null,null,null,null,null,null,null,null,null,"登 録 番 号"]
[null,null,null,null,null,null,null,null,null,null,null,null,"※付与されている場合のみ記入してください。"]
["　次の事項について、必要事項を記入してください。"]
["①　貴社が希望する業務区分に○印を記入してください。ただし、希望する業務区分のうち、他事務所の協力を得る場合は△印を記入してください（希望しない場合は×印を記入し、空欄としないでください。）。\n　　なお、希望する場合には、業態調書についても記入してください。"]
["業務区分","建　　　　　　　　　　　　　　　　　築"]
[null,"意匠",null,"構造",null,"設備",null,"耐震",null,"工事監理"]
[null,"設計","積算","設計","積算","設計","積算","診断","補強設計"]
["○△×印"]
[]
["②　本店、支店、営業所及び出張所について、その所在地（都道府県名のみ）及びそこに所属する技術者の人数を記入してください。複数ある場合はその全て（日本国内のみ）について記入してください。\n　　なお、記載する技術者は自社の常勤職員のみとし、非常勤職員、友好・協力関係にある別企業の職員等は記載しないでください。"]
[null,"所　　　　在\n都道府県名",null,"技術者\nの人数",null,null,"※構造設計一級建築士、設備設計一級建築士、一級建築士、二級建築士の人数の合計を記入してください。"]
[null,null,null,null,null,null,"内　　　　　　　　　　　訳"]
[null,null,null,null,null,null,"構造設計\n一級建築士",null,null,"設備設計\n一級建築士",null,null,"一級建築士",null,null,"二級建築士"]
["本店",null,null,"計","名",null,"名",null,null,"名",null,null,"名",null,null,"名"]
["支店・営業所・出張所",null,null,"計","名",null,"名",null,null,"名",null,null,"名",null,null,"名"]
[null,null,null,"計","名",null,"名",null,null,"名",null,null,"名",null,null,"名"]
[null,null,null,"計","名",null,"名",null,null,"名",null,null,"名",null,null,"名"]
[null,null,null,"計","名",null,"名",null,null,"名",null,null,"名",null,null,"名"]
[null,null,null,"計","名",null,"名",null,null,"名",null,null,"名",null,null,"名"]
[null,null,null,"計","名",null,"名",null,null,"名",null,null,"名",null,null,"名"]
[null,null,null,"計","名",null,"名",null,null,"名",null,null,"名",null,null,"名"]
[null,null,null,"計","名",null,"名",null,null,"名",null,null,"名",null,null,"名"]
[null,null,null,"計","名",null,"名",null,null,"名",null,null,"名",null,null,"名"]
[null,null,null,"計","名",null,"名",null,null,"名",null,null,"名",null,null,"名"]
[null,null,null,"計","名",null,"名",null,null,"名",null,null,"名",null,null,"名"]
[null,null,null,"計","名",null,"名",null,null,"名",null,null,"名",null,null,"名"]
[null,null,null,"計","名",null,"名",null,null,"名",null,null,"名",null,null,"名"]
[null,null,null,"計","名",null,"名",null,null,"名",null,null,"名",null,null,"名"]
[null,null,null,"計","名",null,"名",null,null,"名",null,null,"名",null,null,"名"]
["合　　　計",null,null,"合計","名",null,"合計","名",null,"合計","名",null,"合計","名",null,"合計","名"]
["（注）欄が不足する場合は、適宜追加してください。"]

{"sheet":"申請書様式8","index":23,"n_rows":24,"n_cols":154,"rows_kept":24,"cut":false,"hidden":true,"merged":[[0,0,0,156],[16,10,16,14],[17,10,17,14],[6,138,9,140],[6,141,9,143],[6,120,9,122],[6,123,9,125],[2,3,2,18],[4,15,4,155],[6,144,9,146],[6,147,9,149],[6,150,9,152],[6,153,9,155],[6,132,9,134],[6,135,9,137],[2,93,2,95],[6,93,9,95],[6,72,9,74],[6,75,9,77],[6,78,9,80],[6,81,9,83],[2,96,2,113],[2,117,2,155],[6,126,9,128],[6,129,9,131],[6,108,9,110],[6,111,9,113],[6,114,9,116],[6,117,9,119],[6,96,9,98],[6,99,9,101],[6,102,9,104],[6,105,9,107],[6,60,9,62],[6,63,9,65],[6,66,9,68],[6,69,9,71],[6,54,9,56],[6,57,9,59],[6,84,9,86],[6,87,9,89],[6,90,9,92],[6,48,9,50],[6,51,9,53],[6,33,9,35],[6,15,9,17],[6,36,9,38],[6,39,9,41],[6,42,9,44],[6,45,9,47],[6,30,9,32],[5,15,5,17],[6,21,9,23],[6,24,9,26],[6,27,9,29],[10,5,11,9],[6,18,9,20],[6,0,6,14],[10,15,10,17],[10,18,10,20],[11,15,11,17],[10,21,10,23],[11,21,11,23],[12,5,13,9],[14,5,15,9],[10,0,19,4],[14,10,14,14],[10,10,10,14],[11,10,11,14],[12,10,12,14],[13,10,13,14],[15,10,15,14],[18,5,19,14],[16,5,17,9],[17,15,17,17],[11,18,11,20],[12,18,12,20],[13,18,13,20],[14,18,14,20],[15,18,15,20],[16,18,16,20],[17,18,17,20],[12,15,12,17],[13,15,13,17],[14,15,14,17],[15,15,15,17],[16,15,16,17],[16,27,16,29],[17,24,17,26],[17,27,17,29],[17,21,17,23],[10,24,10,26],[10,27,10,29],[11,24,11,26],[11,27,11,29],[12,24,12,26],[12,27,12,29],[13,24,13,26],[13,27,13,29],[14,24,14,26],[14,27,14,29],[15,24,15,26],[15,27,15,29],[16,24,16,26],[12,21,12,23],[13,21,13,23],[14,21,14,23],[15,21,15,23],[16,21,16,23],[10,48,10,50],[10,36,10,38],[10,39,10,41],[11,36,11,38],[11,39,11,41],[12,36,12,38],[12,39,12,41],[17,30,17,32],[17,33,17,35],[10,30,10,32],[10,33,10,35],[11,30,11,32],[11,33,11,35],[12,30,12,32],[12,33,12,35],[13,30,13,32],[13,33,13,35],[14,30,14,32],[14,33,14,35],[15,30,15,32],[15,33,15,35],[16,30,16,32],[16,33,16,35],[16,36,16,38],[16,51,16,53],[17,48,17,50],[17,36,17,38],[17,39,17,41],[13,36,13,38],[13,39,13,41],[14,36,14,38],[14,39,14,41],[15,36,15,38],[15,39,15,41],[16,39,16,41],[17,42,17,44],[17,45,17,47],[15,42,15,44],[15,45,15,47],[16,42,16,44],[16,45,16,47],[17,51,17,53],[13,48,13,50],[13,51,13,53],[14,48,14,50],[14,51,14,53],[15,48,15,50],[10,42,10,44],[10,45,10,47],[11,42,11,44],[11,45,11,47],[12,42,12,44],[12,45,12,47],[13,42,13,44],[13,45,13,47],[14,42,14,44],[14,45,14,47],[11,48,11,50],[11,51,11,53],[12,48,12,50],[12,51,12,53],[18,57,19,59],[10,54,10,56],[10,57,10,59],[11,54,11,56],[11,57,11,59],[12,54,12,56],[12,57,12,59],[13,54,13,56],[13,57,13,59],[14,54,14,56],[14,57,14,59],[15,54,15,56],[15,57,15,59],[16,54,16,56],[16,57,16,59],[15,51,15,53],[17,54,17,56],[17,57,17,59],[10,51,10,53],[16,48,16,50],[18,60,19,62],[18,63,19,65],[13,60,13,62],[13,63,13,65],[14,60,14,62],[14,63,14,65],[15,60,15,62],[15,63,15,65],[10,72,10,74],[10,60,10,62],[10,63,10,65],[11,60,11,62],[11,63,11,65],[12,60,12,62],[12,63,12,65],[16,60,16,62],[16,63,16,65],[17,60,17,62],[17,63,17,65],[10,75,10,77],[11,72,11,74],[11,75,11,77],[12,72,12,74],[12,75,12,77],[17,66,17,68],[17,69,17,71],[18,66,19,68],[18,69,19,71],[10,66,10,68],[10,69,10,71],[11,66,11,68],[11,69,11,71],[12,66,12,68],[12,69,12,71],[13,66,13,68],[13,69,13,71],[14,66,14,68],[14,69,14,71],[15,66,15,68],[15,69,15,71],[16,66,16,68],[16,69,16,71],[16,72,16,74],[16,75,16,77],[17,72,17,74],[17,75,17,77],[18,72,19,74],[18,75,19,77],[13,72,13,74],[13,75,13,77],[14,72,14,74],[14,75,14,77],[15,72,15,74],[15,75,15,77],[10,84,10,86],[10,87,10,89],[11,84,11,86],[11,87,11,89],[12,84,12,86],[12,87,12,89],[17,78,17,80],[17,81,17,83],[18,78,19,80],[18,81,19,83],[10,78,10,80],[10,81,10,83],[11,78,11,80],[11,81,11,83],[12,78,12,80],[12,81,12,83],[13,78,13,80],[13,81,13,83],[14,78,14,80],[14,81,14,83],[15,78,15,80],[15,81,15,83],[16,78,16,80],[16,81,16,83],[16,84,16,86],[16,87,16,89],[17,84,17,86],[17,87,17,89],[18,84,19,86],[18,87,19,89],[13,84,13,86],[13,87,13,89],[14,84,14,86],[14,87,14,89],[15,84,15,86],[15,87,15,89],[10,96,10,98],[10,99,10,101],[11,96,11,98],[11,99,11,101],[12,96,12,98],[12,99,12,101],[17,90,17,92],[17,93,17,95],[18,90,19,92],[18,93,19,95],[10,90,10,92],[10,93,10,95],[11,90,11,92],[11,93,11,95],[12,90,12,92],[12,93,12,95],[13,90,13,92],[13,93,13,95],[14,90,14,92],[14,93,14,95],[15,90,15,92],[15,93,15,95],[16,90,16,92],[16,93,16,95],[16,96,16,98],[16,99,16,101],[17,96,17,98],[17,99,17,101],[18,96,19,98],[18,99,19,101],[13,96,13,98],[13,99,13,101],[14,96,14,98],[14,99,14,101],[15,96,15,98],[15,99,15,101],[10,108,10,110],[10,111,10,113],[11,108,11,110],[11,111,11,113],[12,108,12,110],[12,111,12,113],[17,102,17,104],[17,105,17,107],[18,102,19,104],[18,105,19,107],[10,102,10,104],[10,105,10,107],[11,102,11,104],[11,105,11,107],[12,102,12,104],[12,105,12,107],[13,102,13,104],[13,105,13,107],[14,102,14,104],[14,105,14,107],[15,102,15,104],[15,105,15,107],[16,102,16,104],[16,105,16,107],[16,108,16,110],[16,111,16,113],[17,108,17,110],[17,111,17,113],[18,108,19,110],[18,111,19,113],[13,108,13,110],[13,111,13,113],[14,108,14,110],[14,111,14,113],[15,108,15,110],[15,111,15,113],[10,120,10,122],[10,123,10,125],[11,120,11,122],[11,123,11,125],[12,120,12,122],[12,123,12,125],[17,114,17,116],[17,117,17,119],[18,114,19,116],[18,117,19,119],[10,114,10,116],[10,117,10,119],[11,114,11,116],[11,117,11,119],[12,114,12,116],[12,117,12,119],[13,114,13,116],[13,117,13,119],[14,114,14,116],[14,117,14,119],[15,114,15,116],[15,117,15,119],[16,114,16,116],[16,117,16,119],[16,120,16,122],[16,123,16,125],[17,120,17,122],[17,123,17,125],[18,120,19,122],[18,123,19,125],[13,120,13,122],[13,123,13,125],[14,120,14,122],[14,123,14,125],[15,120,15,122],[15,123,15,125],[10,132,10,134],[10,135,10,137],[11,132,11,134],[11,135,11,137],[12,132,12,134],[12,135,12,137],[17,126,17,128],[17,129,17,131],[18,126,19,128],[18,129,19,131],[10,126,10,128],[10,129,10,131],[11,126,11,128],[11,129,11,131],[12,126,12,128],[12,129,12,131],[13,126,13,128],[13,129,13,131],[14,126,14,128],[14,129,14,131],[15,126,15,128],[15,129,15,131],[16,126,16,128],[16,129,16,131],[16,132,16,134],[16,135,16,137],[17,132,17,134],[17,135,17,137],[18,132,19,134],[18,135,19,137],[13,132,13,134],[13,135,13,137],[14,132,14,134],[14,135,14,137],[15,132,15,134],[15,135,15,137],[10,144,10,146],[10,147,10,149],[11,144,11,146],[11,147,11,149],[12,144,12,146],[12,147,12,149],[17,138,17,140],[17,141,17,143],[18,138,19,140],[18,141,19,143],[10,138,10,140],[10,141,10,143],[11,138,11,140],[11,141,11,143],[12,138,12,140],[12,141,12,143],[13,138,13,140],[13,141,13,143],[14,138,14,140],[14,141,14,143],[15,138,15,140],[15,141,15,143],[16,138,16,140],[16,141,16,143],[16,144,16,146],[16,147,16,149],[17,144,17,146],[17,147,17,149],[18,144,19,146],[18,147,19,149],[13,144,13,146],[13,147,13,149],[14,144,14,146],[14,147,14,149],[15,144,15,146],[15,147,15,149],[18,15,19,17],[18,18,19,20],[18,21,19,23],[18,24,19,26],[18,27,19,29],[18,30,19,32],[18,33,19,35],[18,36,19,38],[18,39,19,41],[2,19,2,87],[15,153,15,155],[16,153,16,155],[17,153,17,155],[18,153,19,155],[10,153,10,155],[11,153,11,155],[12,153,12,155],[13,153,13,155],[14,153,14,155],[18,150,19,152],[10,150,10,152],[11,150,11,152],[12,150,12,152],[13,150,13,152],[14,150,14,152],[15,150,15,152],[16,150,16,152],[17,150,17,152],[18,42,19,44],[18,45,19,47],[18,48,19,50],[18,51,19,53],[18,54,19,56]]}
["業　　　態　　　調　　　書（アンケート用）"]
[]
[null,null,null,"会　社　名",null,null,null,null,null,null,null,null,null,null,null,null,null,null,null,null,null,null,null,null,null,null,null,null,null,null,null,null,null,null,null,null,null,null,null,null,null,null,null,null,null,null,null,null,null,null,null,null,null,null,null,null,null,null,null,null,null,null,null,null,null,null,null,null,null,null,null,null,null,null,null,null,null,null,null,null,null,null,null,null,null,null,null,null,null,null,null,null,null,null,null,null,"登録番号"]
[]
[null,null,null,null,null,null,null,null,null,null,null,null,null,null,null,"本 社 ・ 支 店 ・ 営 業 所 又 は 出 張 所 の 所 在 都 道 府 県 別 希 望 地 域"]
[null,null,null,null,null,null,null,null,null,null,null,null,null,null,null,1,null,null,{"$f":"P6+1","v":2},null,null,{"$f":"S6+1","v":3},null,null,{"$f":"V6+1","v":4},null,null,{"$f":"Y6+1","v":5},null,null,{"$f":"AB6+1","v":6},null,null,{"$f":"AE6+1","v":7},null,null,{"$f":"AH6+1","v":8},null,null,{"$f":"AK6+1","v":9},null,null,{"$f":"AN6+1","v":10},null,null,{"$f":"AQ6+1","v":11},null,null,{"$f":"AT6+1","v":12},null,null,{"$f":"AW6+1","v":13},null,null,{"$f":"AZ6+1","v":14},null,null,{"$f":"BC6+1","v":15},null,null,{"$f":"BF6+1","v":16},null,null,{"$f":"BI6+1","v":17},null,null,{"$f":"BL6+1","v":18},null,null,{"$f":"BO6+1","v":19},null,null,{"$f":"BR6+1","v":20},null,null,{"$f":"BU6+1","v":21},null,null,{"$f":"BX6+1","v":22},null,null,{"$f":"CA6+1","v":23},null,null,{"$f":"CD6+1","v":24},null,null,{"$f":"CG6+1","v":25},null,null,{"$f":"CJ6+1","v":26},null,null,{"$f":"CM6+1","v":27},null,null,{"$f":"CP6+1","v":28},null,null,{"$f":"CS6+1","v":29},null,null,{"$f":"CV6+1","v":30},null,null,{"$f":"CY6+1","v":31},null,null,{"$f":"DB6+1","v":32},null,null,{"$f":"DE6+1","v":33},null,null,{"$f":"DH6+1","v":34},null,null,{"$f":"DK6+1","v":35},null,null,{"$f":"DN6+1","v":36},null,null,{"$f":"DQ6+1","v":37},null,null,{"$f":"DT6+1","v":38},null,null,{"$f":"DW6+1","v":39},null,null,{"$f":"DZ6+1","v":40},null,null,{"$f":"EC6+1","v":41},null,null,{"$f":"EF6+1","v":42},null,null,{"$f":"EI6+1","v":43},null,null,{"$f":"EL6+1","v":44},null,null,{"$f":"EO6+1","v":45},null,null,{"$f":"ER6+1","v":46},null,null,{"$f":"EU6+1","v":47}]
["参加希望業種",null,null,null,null,null,null,null,null,null,null,null,null,null,null,"北海道",null,null,"青森",null,null,"岩手",null,null,"宮城",null,null,"秋田",null,null,"山形",null,null,"福島",null,null,"茨城",null,null,"栃木",null,null,"群馬",null,null,"埼玉",null,null,"千葉",null,null,"東京",null,null,"神奈川",null,null,"新潟",null,null,"富山",null,null,"石川",null,null,"福井",null,null,"山梨",null,null,"長野",null,null,"岐阜",null,null,"静岡",null,null,"愛知",null,null,"三重",null,null,"滋賀",null,null,"京都",null,null,"大阪",null,null,"兵庫",null,null,"奈良",null,null,"和歌山",null,null,"鳥取",null,null,"島根",null,null,"岡山",null,null,"広島",null,null,"山口",null,null,"徳島",null,null,"香川",null,null,"愛媛",null,null,"高知",null,null,"福岡",null,null,"佐賀",null,null,"長崎",null,null,"熊本",null,null,"大分",null,null,"宮崎",null,null,"鹿児島",null,null,"沖縄"]
[]
[]
[]
["建\n築\n関\n係\n建\n設\nコ\nン\nサ\nル\nタ\nン\nト\n業\n務",null,null,null,null,"意匠",null,null,null,null,"設計"]
[null,null,null,null,null,null,null,null,null,null,"積算"]
[null,null,null,null,null,"構造",null,null,null,null,"設計"]
[null,null,null,null,null,null,null,null,null,null,"積算"]
[null,null,null,null,null,"設備",null,null,null,null,"設計"]
[null,null,null,null,null,null,null,null,null,null,"積算"]
[null,null,null,null,null,"耐震",null,null,null,null,"診断"]
[null,null,null,null,null,null,null,null,null,null,"補強設計"]
[null,null,null,null,null,"工事監理"]
[]
[]
[null,null,null,null,null,null,null,null,null,null,null,null,null,null,null,"　Ａ　　……　本社・支店・営業所等があり、業務を希望する都道府県"]
[null,null,null,null,null,null,null,null,null,null,null,null,null,null,null,"　B　　……　本社・支店・営業所等はないが、業務を希望する都道府県"]
[null,null,null,null,null,null,null,null,null,null,null,null,null,null,null,"空欄　……　希望しない"]

{"sheet":"QRコード","index":24,"n_rows":19,"n_cols":7,"rows_kept":19,"cut":false,"hidden":true,"merged":[[2,2,2,4],[2,5,2,6],[2,7,2,8],[3,2,3,4],[3,5,3,6],[3,7,3,8]]}
["測量・建設コンサルタント等用申請書類読込用QRコード"]
[]
[null,"業者名：",null,null,null,"メール配信希望有無"]
[null,"出力日：",null,null,null,"配信先メールアドレス"]
[]
[null,"①様式1-1、様式1-2、様式1-3",null,null,null,null,"②様式5"]
[]
[]
[]
[]
[]
[]
[]
[]
[]
[]
[]
[]
[null,"③様式7"]